{"text_format":"1","workbook":"xlsx","n_sheets":4,"sheets":["بنين","طباعة قوائم الفصول","سجل درجات","غياب1-1"],"not_rendered":{"charts":0,"images":0,"macros":1,"external_links":0,"defined_names":12,"comments":3,"pivot_tables":0},"unopened":[],"bounds":{"document_bytes":16777216,"sheet_cells":100000,"rows_first":2000,"rows_last":500,"rows_between":2000,"halvings":0,"cell_chars":16384,"cell_head_chars":4096},"cells_cut":0,"cells_raw":0,"read":"whole","date_system":"1900"}

{"sheet":"بنين","index":0,"n_rows":2664,"n_cols":20,"rows_kept":2664,"cut":false,"hidden":false,"merged":[[7,1,7,6],[4,8,4,9],[1,2,3,6]]}
[]
[null,null,"يرجى التأكد من صحة البيانات وعدم ترك خليه فارغة خصوصا عمود الجنس لأنه مبني عليه الأبجده والترتيب ( البنين ثم البنات ) يمكن كتابة الصفوف الثلاثة في هذا الجدول ويقوم البرنامج بالفرز تلقائيا"]
[]
[null,null,null,null,null,null,null,null,null,null,null,null,null,null,null,null,"الاول"]
[null,null,null,null,null,null,"الصف","الاول","الاعدادي",null,null,null,null,null,null,null,"الثاني"]
[null,null,null,null,null,null,null,null,null,null,null,null,null,null,null,null,"الثالث","مستجد","ذكر ","مسلم"]
[null,null,null,null,null,null,null,null,null,null,null,null,null,null,null,null,null,"معيد","انثى","مسيحي"]
[null,"بنـــــــــــــــــــــين وبنات",null,null,null,null,null,null,null,null,null,null,null,null,null,null,null,"مستجدة",null,"مسلمه"]
[null,"م","الاســـــــم","الفصل"," القيد","الجنس","الديانة",null,null,null,null,null,null,null,null,null,null,"معيدة",null,"مسيحيه"]
[null,{"$f":"IF(C10=\"\",\"\",ROW()-9)","v":1},"ابراهيم ابراهيم على ابراهيم البدحى","1\\1","مستجد","ذكر ","مسلم",{"$f":"IF(F10=$S$6,\"1\",IF(F10=$S$7,\"2\",\"\"))","v":"1"}]
[null,2,"ابراهيم السيد ابراهيم احمد محمد","1\\1","مستجد","ذكر ","مسلم","1"]
[null,3,"ابراهيم المرسى يوسف جمال الدين","1\\1","مستجد","ذكر ","مسلم","1"]
[null,4,"ابراهيم حسن محروس محمد","1\\1","مستجد","ذكر ","مسلم","1"]
[null,5,"ابراهيم عاطف محمد حاتم","1\\1","معيد","ذكر ","مسلم","1"]
[null,6,"احمد السيد احمد محمد","1\\1","مستجد","ذكر ","مسلم","1"]
[null,7,"احمد بسيونى ابراهيم البسيونى","1\\1","مستجد","ذكر ","مسلم","1"]
[29,8,"احمد حماده صديق عبدالهادى","1\\1","مستجد","ذكر ","مسلم","1"]
[null,9,"احمد رزق مرزوق زكى احمد","1\\1","مستجد","ذكر ","مسلم","1"]
[null,10,"احمد شعبان السيد على جحا","1\\1","مستجد","ذكر ","مسلم","1"]
[null,11,"احمد محمد حلمى السيد رمضان","1\\1","معيد","ذكر ","مسلم","1"]
[null,12,"احمد محمد رجب حسن","1\\1","مستجد","ذكر ","مسلم","1"]
[null,13,"احمد محمود بدر محمود بدر","1\\1","معيد","ذكر ","مسلم","1"]
[44,14,"احمد هلال احمد العراقى","1\\1","مستجد","ذكر ","مسلم","1"]
[null,15,"اسلام الجلالى مالكى اسماعيل","1\\1","مستجد","ذكر ","مسلم","1"]
[null,16,"السيد ابراهيم ابراهيم السيد قوره","1\\1","معيد","ذكر ","مسلم","1"]
[45,17,"السيد احمد عبدالعزيز محمد الرهبينى","1\\1","معيد","ذكر ","مسلم","1"]
[1,18,"السيد بكر محى الدين بكر","1\\1","مستجد","ذكر ","مسلم","1"]
[46,19,"ايمن محمد الشحات عبدالنبى حافظ","1\\1","مستجد","ذكر ","مسلم","1"]
[47,20,"بدير احمد بدير احمد عيد","1\\1","معيد","ذكر ","مسلم","1"]
[null,21,"حاتم عبدالهادى فكرى عبدالهادى","1\\1","مستجد","ذكر ","مسلم","1"]
[null,22,"حسام محمد سعد محمد","1\\1","مستجد","ذكر ","مسلم","1"]
[2,23,"حمزه عبداللطيف حمزه البسطويسى","1\\1","معيد","ذكر ","مسلم","1"]
[null,24,"راجح المتولى عبداللطيف السيد موسى","1\\1","مستجد","ذكر ","مسلم","1"]
[null,25,"رزق محمد عبدالفتاح المرسى","1\\1","معيد","ذكر ","مسلم","1"]
[null,26,"زيدان مصطفى جمعه بدير","1\\1","مستجد","ذكر ","مسلم","1"]
[null,27,"سعد محمد سعد محمد","1\\1","معيد","ذكر ","مسلم","1"]
[null,28,"اسراء فتحى المغازى محمد","1\\1","مستجدة","انثى","مسلمه","2"]
[3,29,"اسماء السيد محمد عبدالقوى محمد","1\\1","مستجدة","انثى","مسلمه","2"]
[48,30,"اسماء السيد محمد عمرعبدالله","1\\1","معيدة","انثى","مسلمه","2"]
[null,31,"اسماء حماده فتحى عبدالمحسن","1\\1","مستجدة","انثى","مسلمه","2"]
[null,32,"اسماء عامر سعد عامر محمد","1\\1","مستجدة","انثى","مسلمه","2"]
[null,33,"اسماء ياسر البيومى محمد","1\\1","مستجدة","انثى","مسلمه","2"]
[null,34,"اسماء ياسر عبدالسلام حسن","1\\1","مستجدة","انثى","مسلمه","2"]
[49,35,"الاء عبدالحميد محمد الكومي","1\\1","مستجدة","انثى","مسلمه","2"]
[null,36,"امانى صلاح عبدالعزيز صلاح","1\\1","مستجدة","انثى","مسلمه","2"]
[null,37,"امنيه محمد الحايس البدراوى","1\\1","مستجدة","انثى","مسلمه","2"]
[null,38,"اميره عبد الله محمد رخا المشد","1\\1","مستجدة","انثى","مسلمه","2"]
[null,39,"اميره عبدالله عبدالمنعم احمد","1\\1","معيدة","انثى","مسلمه","2"]
[30,40,"ايمان زنهم جميل امبابى","1\\1","مستجدة","انثى","مسلمه","2"]
[4,41,"ايمان شعبان محمد السيد محمد","1\\1","معيدة","انثى","مسلمه","2"]
[null,42,"ايه السيد اليمانى عمرعبدالله","1\\1","معيدة","انثى","مسلمه","2"]
[null,43,"بسمه بهاءالدين عبدالنبى حافظ","1\\1","مستجدة","انثى","مسلمه","2"]
[null,44,"بشرى صلاح الدين عبدالعزيز صلاح","1\\1","مستجدة","انثى","مسلمه","2"]
[null,45,"تحيه تامر حسن عبدالغنى","1\\1","مستجدة","انثى","مسلمه","2"]
[null,46,"حبيبه ربيع محمد سيد احمد","1\\1","مستجدة","انثى","مسلمه","2"]
[null,47,"حنان السيد عبدالعزيز عبدالحميد","1\\1","مستجدة","انثى","مسلمه","2"]
[null,48,"حنان علاء عبدالخالق ابراهيم شلبى","1\\1","معيدة","انثى","مسلمه","2"]
[null,49,"خديجه عبدالفتاح مسعد محمودحجازى","1\\1","معيدة","انثى","مسلمه","2"]
[31,50,"خلود محمد احمد جمعه وهبه","1\\1","مستجدة","انثى","مسلمه","2"]
[null,51,"داليا عبدالحميد عبدالرحيم عبدالعزيز","1\\1","مستجدة","انثى","مسلمه","2"]
[null,52,"دنيا ايمن عبدالله ابو المعاطي","1\\1","معيدة","انثى","مسلمه","2"]
[null,53,"سيف الدين وجيه زكريا محمد","1\\2","معيد","ذكر ","مسلم","1"]
[null,54,"سيف عبدالهادى فكرى عبدالهادى","1\\2","معيد","ذكر ","مسلم","1",1]
[null,55,"سيف ياسر محمد على شعلان","1\\2","مستجد","ذكر ","مسلم","1",2]
[32,56,"شاهين ابراهيم على ابراهيم البوحى","1\\2","معيد","ذكر ","مسلم","1",3]
[50,57,"شكرى وليد عبد النبى عطا الله","1\\2","مستجد","ذكر ","مسلم","1",4]
[null,58,"صديق محمد صديق محمد","1\\2","مستجد","ذكر ","مسلم","1",5]
[null,59,"طه محمد العرابى رزق","1\\2","مستجد","ذكر ","مسلم","1",6]
[5,60,"عبدالحميد ابراهيم عبدالحميد يونس","1\\2","مستجد","ذكر ","مسلم","1",7]
[51,61,"عبدالحميد فهمى عبدالحميد نورالدين","1\\2","مستجد","ذكر ","مسلم","1",8]
[null,62,"عبدالرحمن يوسف مخلوف يوسف","1\\2","مستجد","ذكر ","مسلم","1",9]
[52,63,"عبدالستار محمود محمد عبدالحميد","1\\2","مستجد","ذكر ","مسلم","1",10]
[null,64,"عبدالعاطى خالد عبدالعاطى طاهر","1\\2","معيد","ذكر ","مسلم","1",11]
[null,{"$f":"IF(C74=\"\",\"\",ROW()-9)","v":65},"عبدالعزيز السيد عبدالعزيز السيد عبدالخالق","1\\2","مستجد","ذكر ","مسلم",{"$f":"IF(F74=$S$6,\"1\",IF(F74=$S$7,\"2\",\"\"))","v":"1"},12]
[53,66,"عبدالعزيز يحى عبدالعزيز محمد غازى","1\\2","معيد","ذكر ","مسلم","1",13]
[null,67,"عبدالفتاح ابراهيم توكل على عبدالمعطى","1\\2","مستجد","ذكر ","مسلم","1",14]
[null,68,"عبداللطيف خالد فتح الله عبداللطيف","1\\2","مستجد","ذكر ","مسلم","1",15]
[null,69,"عبدالله رمضان على محمد عبدالقوى","1\\2","مستجد","ذكر ","مسلم","1",16]
[3,70,"عبدالله عمر عبدالله ابوالمعاطى","1\\2","مستجد","ذكر ","مسلم","1",17]
[null,71,"عبدالله محسن على عبدالمحسن","1\\2","مستجد","ذكر ","مسلم","1",18]
[6,72,"عبدالمحسن رضا على عبدالحسن","1\\2","مستجد","ذكر ","مسلم","1",19]
[54,73,"عبدالمنعم عبده عبدالمنعم عبدالحليم هيكل","1\\2","معيد","ذكر ","مسلم","1",20]
[null,74,"على السيد ابراهيم غنيم سالم","1\\2","مستجد","ذكر ","مسلم","1",21]
[null,75,"على المتولى يوسف متولى السقا","1\\2","مستجد","ذكر ","مسلم","1",23]
[null,76,"عمار نادر ناجى ضيف","1\\2","معيد","ذكر ","مسلم","1",24]
[null,77,"عمر رمضان على محمد عبدالقوى","1\\2","مستجد","ذكر ","مسلم","1",25]
[null,78,"عمرو السعيد السعيد الطنطاوى","1\\2","مستجد","ذكر ","مسلم","1",26]
[null,79,"عمرو عبدالله غانم عبدالخالق","1\\2","مستجد","ذكر ","مسلم","1",27]
[2,80,"دنيا سلامه حافظ علي الامام","1\\2","معيدة","انثى","مسلمه","2",28]
[33,81,"دنيا عبدالمعبود زغلول عبدالمقصود","1\\2","مستجدة","انثى","مسلمه","2",22]
[7,82,"دنيا محمد عبدالباسط طه","1\\2","مستجدة","انثى","مسلمه","2"]
[34,83,"دينا عبدالعاطى البسطويسى حسن","1\\2","مستجدة","انثى","مسلمه","2"]
[17,84,"رانيا مجدى على عبدالمحسن","1\\2","مستجدة","انثى","مسلمه","2"]
[null,85,"رانيا محمد سعد سيداحمد","1\\2","معيدة","انثى","مسلمه","2"]
[18,86,"رباب عابدين شعبان الششتاوى النجار","1\\2","مستجدة","انثى","مسلمه","2"]
[null,87,"رحمه جمعه عبدالله نصر ابوريه","1\\2","مستجدة","انثى","مسلمه","2"]
[null,88,"رحمه عبدالحليم الباتع ابراهيم شادى","1\\2","مستجدة","انثى","مسلمه","2"]
[3,89,"رحمه عبدالواحد عطيه ابراهيم عبدالواحد","1\\2","معيدة","انثى","مسلمه","2"]
[null,90,"رقيه رضا عبدالجواد احمد","1\\2","مستجدة","انثى","مسلمه","2"]
[19,91,"رنا رجب الحسنين بدير الحسنين","1\\2","مستجدة","انثى","مسلمه","2"]
[null,92,"رنا علاء مسعد مصطفى","1\\2","مستجدة","انثى","مسلمه","2"]
[null,93,"روان نسيم شوقى نورالدين","1\\2","مستجدة","انثى","مسلمه","2"]
[null,94,"روضه رمزى ابراهيم محمود السيد","1\\2","مستجدة","انثى","مسلمه","2"]
[null,95,"رويدا احمد عبدالجواد احمد","1\\2","مستجدة","انثى","مسلمه","2"]
[null,96,"زهيره محمد حامد احمد","1\\2","مستجدة","انثى","مسلمه","2"]
[null,97,"ساره طاهر سعد عبدالحليم","1\\2","مستجدة","انثى","مسلمه","2"]
[null,98,"ساميه عبدالعزيز عبدالله عبدالعزيز العربى","1\\2","مستجدة","انثى","مسلمه","2"]
[null,99,"ساميه وائل السيد عطوه","1\\2","مستجدة","انثى","مسلمه","2"]
[null,100,"سحر خيرى نورالدين فهمى","1\\2","مستجدة","انثى","مسلمه","2"]
[null,101,"سلمى ابوالخير رمضان عبدالسيد","1\\2","مستجدة","انثى","مسلمه","2"]
[null,102,"سماح اسامه نصر محمدعلى","1\\2","معيدة","انثى","مسلمه","2"]
[null,103,"سماح محمد محمد عبد الجواد","1\\2","مستجدة","انثى","مسلمه","2"]
[null,104,"سناء ابراهيم ابراهيم عبدالعزيز","1\\2","مستجدة","انثى","مسلمه","2"]
[null,105,"فارس بهجت محمد محمود","1\\3","مستجد","ذكر ","مسلم","1"]
[null,106,"فارس فتحى محمد فؤاد","1\\3","مستجد","ذكر ","مسلم","1"]
[35,107,"فارس مراد السيد الجندى","1\\3","معيد","ذكر ","مسلم","1",1]
[null,108,"فتحى على فتحى عبدالمحسن","1\\3","مستجد","ذكر ","مسلم","1",2]
[4,109,"كريم السيد منصور عبد الفتاح","1\\3","معيد","ذكر ","مسلم","1",3]
[null,110,"كريم حماده ابراهيم حسن","1\\3","مستجد","ذكر ","مسلم","1",4]
[null,111,"كريم محمد رجب عبدالفتاح","1\\3","مستجد","ذكر ","مسلم","1",5]
[20,112,"كريم وليد ممدوح عبدالحميدالعراقى","1\\3","معيد","ذكر ","مسلم","1",6]
[21,113,"كريم يوسف فوزى عبدالحليم","1\\3","معيد","ذكر ","مسلم","1",7]
[null,114,"كمال عبدالجواد كمال عبدالجواد","1\\3","مستجد","ذكر ","مسلم","1",8]
[null,115,"مازن محمد عبدالمعطى على","1\\3","مستجد","ذكر ","مسلم","1",9]
[null,116,"مجدى رضا عبدالرازق ابوالفتوح","1\\3","مستجد","ذكر ","مسلم","1",10]
[null,117,"مجدى صبرى الهنداوى احمد على","1\\3","مستجد","ذكر ","مسلم","1",11]
[36,118,"محمد احمد محمد الكومى","1\\3","مستجد","ذكر ","مسلم","1",12]
[null,119,"محمد اسامه البشير سعد","1\\3","مستجد","ذكر ","مسلم","1",13]
[null,120,"محمد السيد احمد السيدعلى","1\\3","معيد","ذكر ","مسلم","1",14]
[null,121,"محمد السيد حسن على عبدالحميد","1\\3","مستجد","ذكر ","مسلم","1",15]
[null,122,"محمد السيد يحيى رياض","1\\3","مستجد","ذكر ","مسلم","1",16]
[null,123,"محمد الشحات مالكي اسماعيل","1\\3","معيد","ذكر ","مسلم","1",17]
[null,124,"محمد العدوى عبدالمجيد العدوى","1\\3","مستجد","ذكر ","مسلم","1",18]
[null,125,"محمد ايهاب احمد ابراهيم خاطر","1\\3","مستجد","ذكر ","مسلم","1",19]
[null,126,"محمد حامد عبدالرحمن السيد ابوعاصى","1\\3","مستجد","ذكر ","مسلم","1",20]
[null,127,"محمد حسن احمد عبدالمنعم","1\\3","مستجد","ذكر ","مسلم","1",21]
[null,128,"محمد حسن طه حسن محمد","1\\3","معيد","ذكر ","مسلم","1",22]
[null,{"$f":"IF(C138=\"\",\"\",ROW()-9)","v":129},"محمد شاهين على ابراهيم على","1\\3","مستجد","ذكر ","مسلم",{"$f":"IF(F138=$S$6,\"1\",IF(F138=$S$7,\"2\",\"\"))","v":"1"},23]
[null,130,"محمد عبدالنبى الشحات عبدالنبى","1\\3","مستجد","ذكر ","مسلم","1",24]
[22,131,"محمد عطوه السيد عطوه","1\\3","مستجد","ذكر ","مسلم","1",25]
[null,132,"محمد على البسيونى على","1\\3","مستجد","ذكر ","مسلم","1",26]
[5,133,"محمد فتحى محمد طه","1\\3","مستجد","ذكر ","مسلم","1",27]
[null,134,"شاديه السيد الباتع ابراهيم","1\\3","معيدة","انثى","مسلمه","2",28]
[25,135,"شروق غنام صديق عبدالهادى","1\\3","مستجدة","انثى","مسلمه","2"]
[null,136,"شهد احمد محمد عبدالقوى","1\\3","مستجدة","انثى","مسلمه","2"]
[null,137,"شهد خيرى نورالدين فهمى","1\\3","مستجدة","انثى","مسلمه","2"]
[null,138,"شهد عبدالهادى شعبان الششتاوى","1\\3","مستجدة","انثى","مسلمه","2"]
[null,139,"شهيده غازى على عبدالمحسن","1\\3","مستجدة","انثى","مسلمه","2"]
[null,140,"شيماء انور محمد فضل الله","1\\3","مستجدة","انثى","مسلمه","2"]
[null,141,"شيماء عبدالحميد عبدالنعيم احمد","1\\3","مستجدة","انثى","مسلمه","2"]
[null,142,"شيماء عبدالله السيد المنسى","1\\3","مستجدة","انثى","مسلمه","2"]
[null,143,"صباح جلال عبدالعزيز عبدالصمد قميحه","1\\3","مستجدة","انثى","مسلمه","2"]
[null,144,"عزيزه شعبان محمود احمد","1\\3","مستجدة","انثى","مسلمه","2"]
[null,145,"غاده ممدوح عبدالوهاب عبدالعزيز","1\\3","مستجدة","انثى","مسلمه","2"]
[17,146,"فاطمه عبدالرازق ابراهيم فرحات","1\\3","مستجدة","انثى","مسلمه","2"]
[null,147,"فاطمه عبدالفتاح حسن يوسف","1\\3","مستجدة","انثى","مسلمه","2"]
[null,148,"فاطمه على على محمدعلى الحسانين","1\\3","معيدة","انثى","مسلمه","2"]
[null,149,"فاطمه لطفى محمد محمد حسين","1\\3","معيدة","انثى","مسلمه","2"]
[null,150,"فاطمه محمد حافظ محمد حافظ","1\\3","مستجدة","انثى","مسلمه","2"]
[26,151,"فاطمه وليد الهنداوى مصطفى سليمان","1\\3","مستجدة","انثى","مسلمه","2"]
[27,152,"ماجده الهنداوى صبحى عبدالحميد","1\\3","مستجدة","انثى","مسلمه","2"]
[28,153,"مديحه رجب همام رجب","1\\3","مستجدة","انثى","مسلمه","2"]
[46,154,"منه العطافى عبدالرازق عبدالرازق عبدالنبى","1\\3","مستجدة","انثى","مسلمه","2"]
[6,155,"منه الله عبدربه محمد حافظ الامام","1\\3","مستجدة","انثى","مسلمه","2"]
[7,156,"منه الله محمود حمدى محمود متولى","1\\3","مستجدة","انثى","مسلمه","2"]
[null,157,"منه عبدالعاطى محمد عبدالعاطى","1\\3","مستجدة","انثى","مسلمه","2"]
[null,158,"منه فتوح عبدالغنى ابوالغيط","1\\3","مستجدة","انثى","مسلمه","2"]
[null,159,"مها طارق البندارى عبدالفتاح","1\\3","مستجدة","انثى","مسلمه","2"]
[null,160,"محمد على صديق عبد الهادى","1\\4","مستجد","ذكر ","مسلم","1",1]
[18,161,"محمد محمد ابراهيم ابراهيم هيكل","1\\4","مستجد","ذكر ","مسلم","1",2]
[null,162,"محمد محمد غازى محمد","1\\4","مستجد","ذكر ","مسلم","1",3]
[null,163,"محمد محمود العرابى رزق","1\\4","مستجد","ذكر ","مسلم","1",4]
[null,164,"محمد نور الدين نور الدين فهمى","1\\4","معيد","ذكر ","مسلم","1",5]
[null,165,"محمد هانى محمود احمد هيكل","1\\4","مستجد","ذكر ","مسلم","1",6]
[null,166,"محمد وائل احمد سلامه","1\\4","مستجد","ذكر ","مسلم","1",7]
[null,167,"محمد ياسر الطنطاوى الغريب","1\\4","مستجد","ذكر ","مسلم","1",8]
[null,168,"محمد ياسر محمد العدوى","1\\4","مستجد","ذكر ","مسلم","1",9]
[null,169,"محمد يوسف حسن يوسف على","1\\4","مستجد","ذكر ","مسلم","1",10]
[29,170,"محمود ابراهيم عبدالمجيد سراج الدين","1\\4","مستجد","ذكر ","مسلم","1",11]
[null,171,"محمود حسن طه حسن محمد","1\\4","معيد","ذكر ","مسلم","1",12]
[null,172,"محمود رزق محمد بدير محارب","1\\4","مستجد","ذكر ","مسلم","1",13]
[null,173,"محمود صبرى ابوالفتوح يونس النجار","1\\4","مستجد","ذكر ","مسلم","1",14]
[null,174,"محمود عاطف يوسف على","1\\4","مستجد","ذكر ","مسلم","1",15]
[8,175,"محمود عصام محمود الكومى","1\\4","مستجد","ذكر ","مسلم","1",16]
[null,176,"محمود محمد السيد محمودالنداف","1\\4","معيد","ذكر ","مسلم","1",17]
[null,177,"مصطفى احمد مصطفى خليل","1\\4","مستجد","ذكر ","مسلم","1",18]
[null,178,"مصطفى حسن السيد حسن المشد","1\\4","مستجد","ذكر ","مسلم","1",19]
[null,179,"معاذ عبدالمنعم عبدالعاطى محمد دياب","1\\4","معيد","ذكر ","مسلم","1",20]
[null,180,"معوض الباتع عبدالباسط ابراهيم شادى","1\\4","مستجد","ذكر ","مسلم","1",21]
[null,181,"هانى حماده يوسف عبداللطيف","1\\4","مستجد","ذكر ","مسلم","1",22]
[null,182,"هشام عبدالحميد الامام السيد النبوى","1\\4","مستجد","ذكر ","مسلم","1",23]
[null,183,"ياسر المتولى السيد السعيد جعفر","1\\4","معيد","ذكر ","مسلم","1",24]
[19,184,"يحيى محمد يحيى رياض","1\\4","مستجد","ذكر ","مسلم","1",25]
[null,185,"يوسف محمد خليفة البسطويسى","1\\4","معيد","ذكر ","مسلم","1",26]
[null,186,"يوسف ناجد المغازى محمد","1\\4","مستجد","ذكر ","مسلم","1",27]
[null,187,"شاديه السيد لطفى السيد","1\\4","مستجدة","انثى","مسلمه","2"]
[null,188,"مى محمد على محمود","1\\4","مستجدة","انثى","مسلمه","2"]
[null,189,"مياده محمود السيد احمد جمعه","1\\4","معيدة","انثى","مسلمه","2"]
[null,190,"ناريمان فرج احمد شريف","1\\4","مستجدة","انثى","مسلمه","2"]
[null,191,"نجاه السيد لطفى السيد","1\\4","مستجدة","انثى","مسلمه","2"]
[null,192,"نجلاء طارق نصر ابوالخير","1\\4","مستجدة","انثى","مسلمه","2"]
[2,{"$f":"IF(C202=\"\",\"\",ROW()-9)","v":193},"نجلاء وائل محمد عبدالعاطى","1\\4","مستجدة","انثى","مسلمه",{"$f":"IF(F202=$S$6,\"1\",IF(F202=$S$7,\"2\",\"\"))","v":"2"}]
[null,194,"نجوى محمد السيد محمود بدر","1\\4","مستجدة","انثى","مسلمه","2"]
[null,195,"ندا وائل يحيى رياض","1\\4","مستجدة","انثى","مسلمه","2"]
[null,196,"ندى محمود محمود احمد","1\\4","مستجدة","انثى","مسلمه","2"]
[null,197,"نرمين محمد البيلى طاهر","1\\4","مستجدة","انثى","مسلمه","2"]
[null,198,"نور عبدالهادى محمود احمد","1\\4","مستجدة","انثى","مسلمه","2"]
[null,199,"نورا بسيونى عبدالعزيز عبدالغنى","1\\4","مستجدة","انثى","مسلمه","2"]
[null,200,"نوران طارق محمد سليمان","1\\4","مستجدة","انثى","مسلمه","2"]
[null,201,"نورهان سامح محمد عبدالعظيم النجار","1\\4","مستجدة","انثى","مسلمه","2"]
[null,202,"نورهان ضياء عبدالواحد محمد","1\\4","مستجدة","انثى","مسلمه","2"]
[null,203,"نورهان محمد رمضان محمد","1\\4","مستجدة","انثى","مسلمه","2"]
[null,204,"نيره محمد احمد السامولى","1\\4","مستجدة","انثى","مسلمه","2"]
[59,205,"هاجر عطيه عبدالمنعم عبدالحليم هيكل","1\\4","مستجدة","انثى","مسلمه","2"]
[null,206,"هاجر عيسى ابراهيم حامد","1\\4","مستجدة","انثى","مسلمه","2"]
[null,207,"هانم يوسف احمد يوسف","1\\4","مستجدة","انثى","مسلمه","2"]
[null,208,"هبه احمد زكريا حسين","1\\4","مستجدة","انثى","مسلمه","2"]
[null,209,"هبه محمد همام دنقل كريم","1\\4","مستجدة","انثى","مسلمه","2"]
[35,210,"هدير عيسى غازى محمد عيسى","1\\4","مستجدة","انثى","مسلمه","2"]
[null,211,"هناء عبدالباسط محمد طه","1\\4","مستجدة","انثى","مسلمه","2"]
[36,212,"وفاء هانى سعد محمد","1\\4","مستجدة","انثى","مسلمه","2"]
[null,213,"يارا محمد محمد فؤاد متولى","1\\4","مستجدة","انثى","مسلمه","2"]
[null,214,"ياسمين محمد محمد الحنفى","1\\4","مستجدة","انثى","مسلمه","2",1]
[null,215,"ابراهيم عبدالرازق ابراهيم فرحات","2\\1","معيد","ذكر ","مسلم","1",2]
[null,216,"ابراهيم مخلوف يوسف مخلوف","2\\1","مستجد","ذكر ","مسلم","1",3]
[null,217,"احمد اشرف عبد الفتاح الطنطاوى","2\\1","مستجد","ذكر ","مسلم","1",4]
[null,218,"احمد اشرف محمد الكومى","2\\1","مستجد","ذكر ","مسلم","1",5]
[null,219,"احمد السيد عامر البسيونى","2\\1","معيد","ذكر ","مسلم","1",6]
[null,220,"احمد ايمن عبدالمنعم عبدالرازق نافع","2\\1","مستجد","ذكر ","مسلم","1",7]
[47,221,"احمد جلال السيد عثمان الجارحى","2\\1","مستجد","ذكر ","مسلم","1",8]
[null,222,"احمد حازم شوقى عطاالله","2\\1","مستجد","ذكر ","مسلم","1",9]
[null,223,"احمد حسن جمعه ابوالغيط","2\\1","مستجد","ذكر ","مسلم","1",10]
[37,224,"احمد رافت مصطفى احمد على","2\\1","مستجد","ذكر ","مسلم","1",11]
[null,225,"احمد رفعت سعد عامر","2\\1","معيد","ذكر ","مسلم","1",12]
[null,226,"احمد طارق صبحى احمد اليمانى","2\\1","مستجد","ذكر ","مسلم","1",13]
[38,227,"احمد عبدالحميد محمد عبدالحميد على","2\\1","مستجد","ذكر ","مسلم","1",14]
[null,228,"احمد عبدالسيد رمضان عبدالسيد","2\\1","مستجد","ذكر ","مسلم","1",15]
[null,229,"احمد عبداللطيف محمد عبداللطيف المرسى","2\\1","مستجد","ذكر ","مسلم","1",16]
[null,230,"احمد عبدالمنعم عبدالمنعم احمد","2\\1","مستجد","ذكر ","مسلم","1",17]
[null,231,"اسلام اشرف على محمد عبدالرازق","2\\1","مستجد","ذكر ","مسلم","1",18]
[null,232,"السيد يحى محمد احمد داود","2\\1","مستجد","ذكر ","مسلم","1",19]
[48,233,"المعتصم عبدالحميد عبداللطيف عبدالحميد","2\\1","مستجد","ذكر ","مسلم","1",20]
[null,234,"جلال شعبان كامل شعبان الامام","2\\1","مستجد","ذكر ","مسلم","1",21]
[null,235,"جمال طارق محمد سليمان القشلان","2\\1","مستجد","ذكر ","مسلم","1",22]
[49,236,"جميل محمد جميل عبدالفتاح","2\\1","معيد","ذكر ","مسلم","1",23]
[null,237,"حسن طارق البندارى عبدالفتاح","2\\1","معيد","ذكر ","مسلم","1",24]
[null,238,"حسن عبدالعزيز حسن عبدالغنى","2\\1","مستجد","ذكر ","مسلم","1",25]
[null,239,"حسن محمد ابراهيم السيد قوره","2\\1","مستجد","ذكر ","مسلم","1",26]
[50,240,"حمدى راضى عبدالونيس عطاالله","2\\1","معيد","ذكر ","مسلم","1",27]
[39,241,"خالد محمد ناسب عزالرجال","2\\1","مستجد","ذكر ","مسلم","1",28]
[null,242,"ربيع على سعد السيد محمد","2\\1","مستجد","ذكر ","مسلم","1"]
[20,243,"احلام محمد اليمانى الششتاوى","2\\1","مستجدة","انثى","مسلمه","2"]
[null,244,"اخلاص عبدالسلام محمد احمد","2\\1","معيدة","انثى","مسلمه","2"]
[null,245,"اسراء السيد المعداوي علي رمضان","2\\1","مستجدة","انثى","مسلمه","2"]
[null,246,"اسراء حسين طلخان احمد قوره","2\\1","مستجدة","انثى","مسلمه","2"]
[null,247,"اسراء حمدي عبدالحميد عبدالعزيزخالد","2\\1","مستجدة","انثى","مسلمه","2"]
[null,248,"اسراء عبدالعزيز عبدالعزيز اليمانى","2\\1","معيدة","انثى","مسلمه","2"]
[null,249,"اسراء محمود السيد محمود","2\\1","معيدة","انثى","مسلمه","2"]
[null,250,"اسماء محمد عبدالمعطي بدرحجازى","2\\1","مستجدة","انثى","مسلمه","2"]
[51,251,"اسماء محمد محمد محمد عاصى","2\\1","مستجدة","انثى","مسلمه","2"]
[null,252,"اسماء ياسر عبدالمعطى على السيد","2\\1","مستجدة","انثى","مسلمه","2"]
[40,253,"اسماء يوسف العزب يوسف","2\\1","مستجدة","انثى","مسلمه","2"]
[null,254,"اكرام ربيع سعد السيد النبوى","2\\1","مستجدة","انثى","مسلمه","2"]
[null,255,"الاء صبرى صبحى عبدالحميدالهنداوى","2\\1","مستجدة","انثى","مسلمه","2"]
[null,256,"الاء محمد رافت محمد","2\\1","معيدة","انثى","مسلمه","2"]
[null,{"$f":"IF(C266=\"\",\"\",ROW()-9)","v":257},"ام كلثوم على احمد عاصم جوده","2\\1","مستجدة","انثى","مسلمه",{"$f":"IF(F266=$S$6,\"1\",IF(F266=$S$7,\"2\",\"\"))","v":"2"}]
[null,258,"امانى السيد ادم على عبدالعاطى","2\\1","مستجدة","انثى","مسلمه","2"]
[3,259,"ايمان البدراوى محمود البدراوى الحايس","2\\1","مستجدة","انثى","مسلمه","2"]
[null,260,"ايمان محمد فوزى عبدالمطلب دبور","2\\1","مستجدة","انثى","مسلمه","2"]
[55,261,"ايه راضى سعد حواش","2\\1","مستجدة","انثى","مسلمه","2"]
[null,262,"بسنت زيدان جمعه بديرعبدالله","2\\1","مستجدة","انثى","مسلمه","2"]
[null,263,"بسنت عبدالمنعم محمد عبدالمنعم احمد القصبى","2\\1","مستجدة","انثى","مسلمه","2"]
[null,264,"تسنيم احمد توفيق ابراهيم","2\\1","مستجدة","انثى","مسلمه","2"]
[8,265,"ثريا واصل ابوبكر عبدالحليم","2\\1","مستجدة","انثى","مسلمه","2"]
[null,266,"جيهان سامح فتحى محمود السيد الميوطى","2\\1","مستجدة","انثى","مسلمه","2"]
[null,267,"حسناء السيد على السيد الحنفى","2\\1","مستجدة","انثى","مسلمه","2"]
[null,268,"خديجه محب قدرى ابراهيم ميسره","2\\1","مستجدة","انثى","مسلمه","2"]
[null,269,"خلود العراقى عبدالعزيز عبدربه قوره","2\\1","مستجدة","انثى","مسلمه","2"]
[37,270,"خيرى عابدين شعبان الششتاوى","2\\2","معيد","ذكر ","مسلم","1",2]
[4,271,"رجب احمد رجب سليمان رمضان","2\\2","مستجد","ذكر ","مسلم","1",1]
[null,272,"سعد بدير سعد السيد","2\\2","معيد","ذكر ","مسلم","1",3]
[1,273,"شاكر المنشاوى شاكر المنشاوى","2\\2","مستجد","ذكر ","مسلم","1",4]
[null,274,"شريف القطب الغريب الطنطاوى","2\\2","معيد","ذكر ","مسلم","1",5]
[null,275,"شريف عزت زكريا محمد احمد حديده","2\\2","مستجد","ذكر ","مسلم","1",6]
[null,276,"شوقي وحيد شوقى عطاالله","2\\2","مستجد","ذكر ","مسلم","1",7]
[1,277,"عبدالحليم احمد محمد احمد","2\\2","معيد","ذكر ","مسلم","1",8]
[38,278,"عبدالحليم جاد السيد عبدالحليم المحلاوى","2\\2","مستجد","ذكر ","مسلم","1",9]
[null,279,"عبدالحليم طارق سراج الدين عبدالمجيد","2\\2","مستجد","ذكر ","مسلم","1",10]
[null,280,"عبدالرحيم كامل عبدالرحيم عبدالعزيز","2\\2","معيد","ذكر ","مسلم","1",11]
[null,281,"عبدالعزيز محمد عبدالعزيز سعد النجار","2\\2","مستجد","ذكر ","مسلم","1",12]
[null,282,"عبدالعزيز محمد عبدالعزيز محمد","2\\2","معيد","ذكر ","مسلم","1",13]
[null,283,"عبدالله فرج الهنداوى مصطفى سليمان","2\\2","مستجد","ذكر ","مسلم","1",14]
[9,284,"عبدالوهاب محمد عبدالوهاب رمضان","2\\2","مستجد","ذكر ","مسلم","1",15]
[null,285,"على محمد ابوالخير قوره","2\\2","مستجد","ذكر ","مسلم","1",16]
[null,286,"عمرو محمود بدوي السيد بدوى","2\\2","مستجد","ذكر ","مسلم","1",17]
[39,287,"عمرو نبيل ناسب عزالرجال","2\\2","مستجد","ذكر ","مسلم","1",18]
[10,288,"عمرو وائل محمد سراج الدين","2\\2","مستجد","ذكر ","مسلم","1",19]
[null,289,"فراج ابراهيم السيد بدير","2\\2","معيد","ذكر ","مسلم","1",20]
[11,290,"كريم عصام عبدالحميد عبدالله","2\\2","معيد","ذكر ","مسلم","1",26]
[12,291,"محسن ابوغنام فوزى عبدالمطلب دبور","2\\2","مستجد","ذكر ","مسلم","1",21]
[null,292,"محمد ابراهيم السيد البدراوى الالفى","2\\2","مستجد","ذكر ","مسلم","1",22]
[40,293,"محمد احمد جمعه بدرحجازى","2\\2","مستجد","ذكر ","مسلم","1",23]
[41,294,"محمد احمد يوسف احمد جمال الدين","2\\2","مستجد","ذكر ","مسلم","1",27]
[null,295,"محمد اسامه متولى محمود الحايس","2\\2","مستجد","ذكر ","مسلم","1",28]
[null,296,"محمد جاب الله الحسينى محمد النجار","2\\2","مستجد","ذكر ","مسلم","1",24]
[null,297,"محمد عبدالله صبره عبدالصمد","2\\2","مستجد","ذكر ","مسلم","1",25]
[null,298,"دنيا عرابي يوسف متولي احمد السقا","2\\2","مستجدة","انثى","مسلمه","2"]
[42,299,"دنيا عصام سليمان عبدالواحد","2\\2","مستجدة","انثى","مسلمه","2"]
[null,300,"دينا كامل عبدالرحيم عبدالعزيز","2\\2","معيدة","انثى","مسلمه","2"]
[null,301,"رانيا ابراهيم محمد احمد","2\\2","مستجدة","انثى","مسلمه","2"]
[null,302,"رحمه عبدالفتاح مسعد محمود","2\\2","معيدة","انثى","مسلمه","2"]
[13,303,"رهف محمد انور عبدالعزيزشلبى","2\\2","مستجدة","انثى","مسلمه","2"]
[null,304,"روان مبروك عبدالسلام عبدالقادر الجداوى","2\\2","مستجدة","انثى","مسلمه","2"]
[null,305,"روعه السعيد ابوالفتوح السعيد","2\\2","مستجدة","انثى","مسلمه","2"]
[null,306,"ريهام محمد زكريا محمد أحمد","2\\2","مستجدة","انثى","مسلمه","2"]
[null,307,"ساره سامح عبدالعزيز محمدابراهيم","2\\2","مستجدة","انثى","مسلمه","2"]
[null,308,"سلمي السيد صديق محمدسرحان","2\\2","مستجدة","انثى","مسلمه","2"]
[null,309,"سمر السعيد عطيه محمد","2\\2","معيدة","انثى","مسلمه","2"]
[null,310,"سنيه محمد محمد محمود","2\\2","معيدة","انثى","مسلمه","2"]
[14,311,"سهام ابراهيم جاد اسماعيل الغريب","2\\2","مستجدة","انثى","مسلمه","2"]
[null,312,"شرين شادي عبدالعزيز عبدالصمد","2\\2","مستجدة","انثى","مسلمه","2"]
[null,313,"شهد شريف محمود محمدعبدالحميد","2\\2","مستجدة","انثى","مسلمه","2"]
[null,314,"شهد عاطف عبدالعزيز بديرطه","2\\2","مستجدة","انثى","مسلمه","2"]
[15,315,"شهد مديح الهنداوي مصطفي","2\\2","مستجدة","انثى","مسلمه","2"]
[9,316,"شيماء الهنداوي على معروف","2\\2","مستجدة","انثى","مسلمه","2"]
[null,317,"شيماء محمد محمد السيد الجابرى","2\\2","مستجدة","انثى","مسلمه","2"]
[null,318,"صابرين رزق يوسف متولي","2\\2","مستجدة","انثى","مسلمه","2"]
[null,319,"ضحي احمد صبحي احمداليمانى","2\\2","مستجدة","انثى","مسلمه","2"]
[null,320,"عزه عنترخضر يحي عنتر خضر","2\\2","مستجدة","انثى","مسلمه","2"]
[16,{"$f":"IF(C330=\"\",\"\",ROW()-9)","v":321},"فاتن عبدالباسط حامد محمدالعدوى","2\\2","مستجدة","انثى","مسلمه",{"$f":"IF(F330=$S$6,\"1\",IF(F330=$S$7,\"2\",\"\"))","v":"2"}]
[10,322,"فاطمه جهاد احمد عبدالجليل","2\\2","مستجدة","انثى","مسلمه","2"]
[11,323,"فاطمه محمد فاروق المرسى عبده","2\\2","مستجدة","انثى","مسلمه","2"]
[null,324,"منى محمد فتحى عبدالمحسن","2\\2","معيدة","انثى","مسلمه","2"]
[null,325,"محمد اسماعيل عبدالمجيد سراج الدين","2\\3","مستجد","ذكر ","مسلم","1"]
[null,326,"محمد السيد سليمان مصطفي","2\\3","مستجد","ذكر ","مسلم","1",1]
[null,327,"محمد ايمن سعد عبدالرازق ندا","2\\3","مستجد","ذكر ","مسلم","1",2]
[null,328,"محمد خاطر غانم احمدجوده","2\\3","مستجد","ذكر ","مسلم","1",3]
[23,329,"محمد رمزى صلاح عبدالعزيز","2\\3","مستجد","ذكر ","مسلم","1",4]
[null,330,"محمد رياض رياض احمد","2\\3","معيد","ذكر ","مسلم","1",5]
[12,331,"محمد شعبان السيد على","2\\3","معيد","ذكر ","مسلم","1",6]
[43,332,"محمد صابر محمد صابر ماضي","2\\3","مستجد","ذكر ","مسلم","1",7]
[null,333,"محمد عادل محمد عبدالخالق","2\\3","معيد","ذكر ","مسلم","1",8]
[null,334,"محمد عبدالرازق احمد السيد","2\\3","معيد","ذكر ","مسلم","1",9]
[52,335,"محمد عبدالعزيز يوسف عباس","2\\3","مستجد","ذكر ","مسلم","1",10]
[null,336,"محمد عبدالغنى جمعه ابوالغيط","2\\3","معيد","ذكر ","مسلم","1",11]
[null,337,"محمد عزت عبدالمعبود عبدالمقصود","2\\3","مستجد","ذكر ","مسلم","1",12]
[null,338,"محمد فتحى محمد فؤاد","2\\3","مستجد","ذكر ","مسلم","1",13]
[null,339,"محمد مجدي الهنداوي احمد علي","2\\3","مستجد","ذكر ","مسلم","1",14]
[null,340,"محمد محمود فتحي محمود","2\\3","مستجد","ذكر ","مسلم","1",15]
[null,341,"محمد محمود محمد الكومى","2\\3","معيد","ذكر ","مسلم","1",16]
[null,342,"محمد نهاد انيس متولى","2\\3","معيد","ذكر ","مسلم","1",17]
[1,343,"محمد هانى فريد المرسى","2\\3","معيد","ذكر ","مسلم","1",18]
[null,344,"محمد هشام مسعد البيومى","2\\3","معيد","ذكر ","مسلم","1",19]
[null,345,"محمد يوسف يوسف البيلي قورة","2\\3","مستجد","ذكر ","مسلم","1",20]
[null,346,"محمود خالد صالح الغريب عبدالحميد","2\\3","مستجد","ذكر ","مسلم","1",21]
[null,347,"محمود سامى محمود طه","2\\3","معيد","ذكر ","مسلم","1",22]
[null,348,"محمود عبدالحليم اسماعيل محمودالنجار","2\\3","مستجد","ذكر ","مسلم","1",23]
[null,349,"محمود محمد عبدربه العراقى","2\\3","مستجد","ذكر ","مسلم","1",24]
[13,350,"نادر الحسيني خاطر احمدجودة","2\\3","مستجد","ذكر ","مسلم","1",25]
[null,351,"نبيه عبدالنبي عطيه ونس","2\\3","مستجد","ذكر ","مسلم","1",26]
[null,352,"يونس وليد يونس عبداللطيف","2\\3","مستجد","ذكر ","مسلم","1",27]
[44,353,"فرح البسطويسي يوسف البسطويسي","2\\3","مستجدة","انثى","مسلمه","2",28]
[null,354,"فوزيه احمد عبدالمنعم احمد","2\\3","مستجدة","انثى","مسلمه","2"]
[14,355,"لوجينا محمود يحيي ابراهيم عمر","2\\3","مستجدة","انثى","مسلمه","2"]
[null,356,"مريم وسام محمد خليف","2\\3","مستجدة","انثى","مسلمه","2"]
[null,357,"منار ابراهيم سليمان مصطفي الاخرج","2\\3","مستجدة","انثى","مسلمه","2"]
[null,358,"منه الله راعى حسان صالح شريف","2\\3","مستجدة","انثى","مسلمه","2"]
[2,359,"منه الله عبدالعزيز انور عبدالعزيز","2\\3","مستجدة","انثى","مسلمه","2"]
[45,360,"منه الله عصام محمود الكومي","2\\3","مستجدة","انثى","مسلمه","2"]
[null,361,"مى اشرف احمد شريف","2\\3","مستجدة","انثى","مسلمه","2"]
[15,362,"مي السيد عبدالفتاح ابراهيم خليفة","2\\3","مستجدة","انثى","مسلمه","2"]
[null,363,"ميرنا نصر عبدالصبور عبدالعزيز","2\\3","معيدة","انثى","مسلمه","2"]
[null,364,"نجلاء ابراهيم ابراهيم السيد","2\\3","معيدة","انثى","مسلمه","2"]
[null,365,"نجلاء السعيد ابراهيم حمدى","2\\3","معيدة","انثى","مسلمه","2"]
[null,366,"نجلاء طارق السعيد السيدالمرسى","2\\3","مستجدة","انثى","مسلمه","2"]
[4,367,"ندى الشحات عثمان السيدعبدالعال","2\\3","مستجدة","انثى","مسلمه","2"]
[null,368,"ندى صلاح عبدالصبور عبدالعزيز","2\\3","معيدة","انثى","مسلمه","2"]
[16,369,"ندى عبدالقادر سالم عبدالقادرعلى","2\\3","مستجدة","انثى","مسلمه","2"]
[24,370,"نوره عبدالجواد محمد عبدالجواد ابوعاصى","2\\3","مستجدة","انثى","مسلمه","2"]
[null,371,"نورهان احمد محمد ابوالغيط","2\\3","مستجدة","انثى","مسلمه","2"]
[null,372,"نورهان عبدالعال عبدالجواد عبدالعال","2\\3","معيدة","انثى","مسلمه","2"]
[null,373,"هاجر شاكر يوسف محمدشلبى","2\\3","مستجدة","انثى","مسلمه","2"]
[null,374,"هدى اشرف كمال متولى","2\\3","مستجدة","انثى","مسلمه","2"]
[null,375,"هدى جهاد جميل امبابى","2\\3","مستجدة","انثى","مسلمه","2"]
[null,376,"هلا محمد صالح الغريب","2\\3","مستجدة","انثى","مسلمه","2"]
[null,377,"وفاء اليمانى عبد العزيز اليمانى","2\\3","مستجدة","انثى","مسلمه","2"]
[null,378,"وفاء عبدالعزيز توكل علي عبدالعاطى","2\\3","مستجدة","انثى","مسلمه","2"]
[null,379,"ابراهيم عبدالفتاح سعد حسن","3\\1","مستجد","ذكر ","مسلم","1"]
[30,380,"ابراهيم محمد العرابى رزق","3\\1","مستجد","ذكر ","مسلم","1",1]
[null,381,"ابوالنجا سامح ابوالنجا محمد","3\\1","مستجد","ذكر ","مسلم","1"]
[null,382,"احمد احمد محمد الخياط","3\\1","مستجد","ذكر ","مسلم","1",2]
[null,383,"احمد حسام الدين نظمى اليمانى","3\\1","مستجد","ذكر ","مسلم","1",3]
[31,384,"احمد خالد محمود طه","3\\1","مستجد","ذكر ","مسلم","1",4]
[null,{"$f":"IF(C394=\"\",\"\",ROW()-9)","v":385},"احمد سيد ابراهيم احمد","3\\1","مستجد","ذكر ","مسلم",{"$f":"IF(F394=$S$6,\"1\",IF(F394=$S$7,\"2\",\"\"))","v":"1"},5]
[null,386,"احمد عاطف عبدالعظيم النجار","3\\1","مستجد","ذكر ","مسلم","1",6]
[32,387,"احمد عبدالعزيز انيس متولى","3\\1","معيد","ذكر ","مسلم","1",7]
[null,388,"احمد عوض على عوض","3\\1","مستجد","ذكر ","مسلم","1",8]
[null,389,"احمد فارس عبدالجواد المحلاوى","3\\1","مستجد","ذكر ","مسلم","1",9]
[null,390,"احمد فرج عبدالعزيز محمد","3\\1","مستجد","ذكر ","مسلم","1",10]
[null,391,"احمد محمد احمد محمد","3\\1","مستجد","ذكر ","مسلم","1",11]
[33,392,"احمد محمد محفوظ عثمان","3\\1","مستجد","ذكر ","مسلم","1",12]
[null,393,"احمد وليد ممدوح عبدالحميد","3\\1","مستجد","ذكر ","مسلم","1",13]
[null,394,"احمد ياسر شوقى نورالدين","3\\1","مستجد","ذكر ","مسلم","1",14]
[null,395,"البيلى بدير البيلى عبدالجواد","3\\1","مستجد","ذكر ","مسلم","1",15]
[null,396,"السيد عبدالحليم الباتع شادى","3\\1","مستجد","ذكر ","مسلم","1",16]
[null,397,"العرابى محمود العرابى رزق","3\\1","مستجد","ذكر ","مسلم","1",17]
[null,398,"حمدى توفيق ابراهيم السداوى","3\\1","مستجد","ذكر ","مسلم","1",18]
[null,399,"حمدى جمعه عبدالله نصر","3\\1","مستجد","ذكر ","مسلم","1",19]
[null,400,"سعد صالح سعد محمد","3\\1","مستجد","ذكر ","مسلم","1",20]
[null,401,"سيف الاسلام ربيع محمد السقا","3\\1","مستجد","ذكر ","مسلم","1",22]
[null,402,"عبدالحليم محمود اسماعيل محمود النجار","3\\1","معيد","ذكر ","مسلم","1",23]
[null,403,"عبدالعاطى الجوهرى عبدالرحمن عبدالعاطى","3\\1","مستجد","ذكر ","مسلم","1",24]
[53,404,"عبدالعزيز عبدالغفار عبدالحميد خالد","3\\1","مستجد","ذكر ","مسلم","1",25]
[null,405,"عبدالله محمد عبدالمنعم احمد","3\\1","مستجد","ذكر ","مسلم","1",26]
[21,406,"عبدالله محمد محمد رخا","3\\1","مستجد","ذكر ","مسلم","1",27]
[null,407,"عبدالمجيد هشام محمد عبدالعظيم عبدالمجيد","3\\1","مستجد","ذكر ","مسلم","1",28]
[null,408,"احسان ياسر عبدالرازق ابوالفتوح","3\\1","مستجدة","انثى","مسلمه","2",29]
[null,409,"اسماء راشد محمود يوسف","3\\1","مستجدة","انثى","مسلمه","2",30]
[null,410,"اسماء على عبدالعزيز رجب","3\\1","مستجدة","انثى","مسلمه","2",31]
[null,411,"الاء جوده خاطر احمد","3\\1","مستجدة","انثى","مسلمه","2",21]
[null,412,"امال حماده محمد سيداحمد","3\\1","مستجدة","انثى","مسلمه","2",32]
[null,413,"امل احمد عبد الحافظ عبدالنبى","3\\1","مستجدة","انثى","مسلمه","2",33]
[null,414,"امل سالم على رمضان","3\\1","مستجدة","انثى","مسلمه","2",34]
[22,415,"اميره شريف محمود محمد","3\\1","مستجدة","انثى","مسلمه","2",35]
[null,416,"انجى حسن السيد عبدالله","3\\1","مستجدة","انثى","مسلمه","2",36]
[null,417,"انجى ناجى ناصف اسماعيل","3\\1","مستجدة","انثى","مسلمه","2",37]
[5,418,"ايمان احمد فتحى امام","3\\1","مستجدة","انثى","مسلمه","2",38]
[null,419,"ايمان السيد عبدالحميد محمد","3\\1","مستجدة","انثى","مسلمه","2",39]
[null,420,"ايمان محمد عبدالباسط ابراهيم شادى","3\\1","معيدة","انثى","مسلمه","2",40]
[null,421,"ايناس فتحى البيلى احمد","3\\1","مستجدة","انثى","مسلمه","2",41]
[null,422,"ايه احمد ابراهيم على","3\\1","مستجدة","انثى","مسلمه","2",42]
[null,423,"ايه المتولى مصطفى يوسف","3\\1","مستجدة","انثى","مسلمه","2",43]
[34,424,"ايه حسين ماهر ابراهيم","3\\1","مستجدة","انثى","مسلمه","2",44]
[null,425,"حنان السيد عبدالحميد محمد","3\\1","مستجدة","انثى","مسلمه","2",45]
[null,426,"حنان ايهاب يس السيد","3\\1","مستجدة","انثى","مسلمه","2",46]
[23,427,"دعاء عبدالرازق عبدالحميد على","3\\1","مستجدة","انثى","مسلمه","2",47]
[54,428,"دنيا مجدى رمضان المرسى","3\\1","معيدة","انثى","مسلمه","2",48]
[null,429,"رحمه فرحات غانم عبدالخالق","3\\1","مستجدة","انثى","مسلمه","2",49]
[null,430,"روان ناجد المغازى محمد","3\\1","مستجدة","انثى","مسلمه","2",50]
[null,431,"روايدا سامى انور عبدالعزيز","3\\1","مستجدة","انثى","مسلمه","2",51]
[null,432,"ريم سامح محمد عبدالعظيم","3\\1","مستجدة","انثى","مسلمه","2",52]
[24,433,"زينب صبرى الهنداوى احمد","3\\1","مستجدة","انثى","مسلمه","2",53]
[25,434,"زينب عبدالجليل احمد عبدالجليل","3\\1","مستجدة","انثى","مسلمه","2",54]
[null,435,"سعاد عباده على محمد","3\\1","مستجدة","انثى","مسلمه","2",55]
[null,436,"سميه حمد توكل على","3\\1","مستجدة","انثى","مسلمه","2",56]
[null,437,"شاهنده عبدالحميد عبدالنعيم احمد","3\\1","مستجدة","انثى","مسلمه","2",57]
[null,438,"شروق محمد نجاح نصر","3\\1","مستجدة","انثى","مسلمه","2",58]
[null,439,"شيماء فرحات على فرحات","3\\1","مستجدة","انثى","مسلمه","2",59]
[null,440,"على مجدى على عبدالمحسن","3\\2","مستجد","ذكر ","مسلم","1",60]
[55,441,"فارس محمد محمد الحنفى","3\\2","مستجد","ذكر ","مسلم","1",61]
[null,442,"فتحى البيلى فتحى البيلى","3\\2","مستجد","ذكر ","مسلم","1",62]
[null,443,"فتحى سراج الدين عبدالمجيد سراج الدين","3\\2","مستجد","ذكر ","مسلم","1",1]
[null,444,"فرج عبدالعزيز شحاتة عبدالعزيز","3\\2","مستجد","ذكر ","مسلم","1",2]
[null,445,"محب محمد عيد ميسره","3\\2","مستجد","ذكر ","مسلم","1",3]
[null,446,"محمد السيد محسن السيد","3\\2","مستجد","ذكر ","مسلم","1",4]
[null,447,"محمد السيد محمد جحا","3\\2","مستجد","ذكر ","مسلم","1",5]
[null,448,"محمد بسيونى ابراهيم بسيونى","3\\2","مستجد","ذكر ","مسلم","1",6]
[null,{"$f":"IF(C458=\"\",\"\",ROW()-9)","v":449},"محمد بهجت محمود يوسف","3\\2","مستجد","ذكر ","مسلم",{"$f":"IF(F458=$S$6,\"1\",IF(F458=$S$7,\"2\",\"\"))","v":"1"},7]
[null,450,"محمد رجب الحسانين بدير","3\\2","مستجد","ذكر ","مسلم","1",8]
[null,451,"محمد عبدالحميد محمد عبدالحميد","3\\2","مستجد","ذكر ","مسلم","1",9]
[null,452,"محمد علاء حلمى السيد","3\\2","مستجد","ذكر ","مسلم","1",10]
[null,453,"محمد علاءالدين غازى سليمان","3\\2","مستجد","ذكر ","مسلم","1",11]
[null,454,"محمد غنام عبدالواحد محمد","3\\2","مستجد","ذكر ","مسلم","1",12]
[26,455,"محمد يونس عطية يونس","3\\2","مستجد","ذكر ","مسلم","1",13]
[null,456,"محمود احمد محى الدين مصطفى","3\\2","مستجد","ذكر ","مسلم","1",14]
[null,457,"محمود البسيونى مسعد محمود","3\\2","مستجد","ذكر ","مسلم","1",15]
[null,458,"محمود السيد عبدالعزيز عبدالحميد","3\\2","مستجد","ذكر ","مسلم","1",16]
[null,459,"محمود رضا على عبدالمحسن","3\\2","مستجد","ذكر ","مسلم","1",17]
[41,460,"محمود عادل عبدالحميد يونس","3\\2","مستجد","ذكر ","مسلم","1",18]
[null,461,"محمود كرم الحناوى مرعى","3\\2","مستجد","ذكر ","مسلم","1",19]
[null,462,"محمود محب قدرى ابراهيم","3\\2","مستجد","ذكر ","مسلم","1",20]
[null,463,"محمود محمد زكى احمد","3\\2","مستجد","ذكر ","مسلم","1",21]
[null,464,"محمود محمد عبدالنبى عطالله","3\\2","مستجد","ذكر ","مسلم","1",22]
[42,465,"معاذ عبدالله غنام عبدالخالق","3\\2","مستجد","ذكر ","مسلم","1",23]
[null,466,"وليد يحى عبدالسميع طه","3\\2","مستجد","ذكر ","مسلم","1",24]
[null,467,"يوسف البسطويسى يوسف البسطويسى","3\\2","معيد","ذكر ","مسلم","1",25]
[null,468,"دينا عبدالله صبره عبدالصمد","3\\2","مستجدة","انثى","مسلمه","2",26]
[null,469,"صباح عبدالغنى البسيونى عبدالغنى","3\\2","مستجدة","انثى","مسلمه","2",27]
[null,470,"عائشه ابوالخير زكى احمد","3\\2","مستجدة","انثى","مسلمه","2",29]
[43,471,"علياء صبحى محمد محمود فضل الله","3\\2","معيدة","انثى","مسلمه","2",30]
[null,472,"غاده احمد مصطفى خليل","3\\2","مستجدة","انثى","مسلمه","2",28]
[56,473,"غاده حسن السيد عبدالله","3\\2","مستجدة","انثى","مسلمه","2",31]
[null,474,"فاطمه البسطويسى طه البسطويسى","3\\2","مستجدة","انثى","مسلمه","2",32]
[null,475,"فاطمه صالح عبدالعزيز رجب همام","3\\2","مستجدة","انثى","مسلمه","2",33]
[27,476,"فردوس عبدالحميد منتصر عفيفى","3\\2","مستجدة","انثى","مسلمه","2",34]
[57,477,"فريال محمد رفعت مصطفى","3\\2","مستجدة","انثى","مسلمه","2",35]
[null,478,"لينا نسيم شوقى نور الدين","3\\2","مستجدة","انثى","مسلمه","2",36]
[null,479,"مروه هانى سعد محمد","3\\2","مستجدة","انثى","مسلمه","2",37]
[null,480,"مريم سعد بدر محمود","3\\2","مستجدة","انثى","مسلمه","2",38]
[null,481,"مشيره السيد حسن على","3\\2","مستجدة","انثى","مسلمه","2",39]
[null,482,"منه شعبان ابوالعز اسماعيل","3\\2","مستجدة","انثى","مسلمه","2",40]
[null,483,"منى احمد رجب حسن","3\\2","مستجدة","انثى","مسلمه","2",41]
[null,484,"منى رمزى ابراهيم محمود","3\\2","مستجدة","انثى","مسلمه","2",42]
[null,485,"مها صبرى غازى يونس النجار","3\\2","معيدة","انثى","مسلمه","2",43]
[null,486,"ميرفت اشرف محمد عبدالحميد","3\\2","مستجدة","انثى","مسلمه","2",44]
[null,487,"ندى زيدان جمعه بدير","3\\2","مستجدة","انثى","مسلمه","2",45]
[null,488,"ندى نهادالدين مرغنى محمد على فضل","3\\2","مستجدة","انثى","مسلمه","2",46]
[null,489,"نعمه محمد الهنداوى عبدالحميد","3\\2","مستجدة","انثى","مسلمه","2",47]
[null,490,"نور سامح فوزى محمد","3\\2","مستجدة","انثى","مسلمه","2",48]
[null,491,"نورالهدى طه فاروق المرسى","3\\2","مستجدة","انثى","مسلمه","2",49]
[null,492,"نورالهدى محمد البسيونى على","3\\2","مستجدة","انثى","مسلمه","2",50]
[null,493,"نورهان رمضان مسعد كوهيه","3\\2","مستجدة","انثى","مسلمه","2",51]
[null,494,"نورهان عبدالحميد محرم العزب","3\\2","معيدة","انثى","مسلمه","2",52]
[null,495,"هاجر عبدالعزيز عبدالله العربى","3\\2","مستجدة","انثى","مسلمه","2",53]
[null,496,"هاجر هلال احمد محمد","3\\2","مستجدة","انثى","مسلمه","2",54]
[58,497,"هيام طه عبدالسميع طه","3\\2","مستجدة","انثى","مسلمه","2",55]
[28,498,"ورده السيد رجب الحسنين","3\\2","مستجدة","انثى","مسلمه","2",56]
[null,499,"ياسمين على فتحى عبدالمحسن","3\\2","مستجدة","انثى","مسلمه","2",57]
[null,"",null,null,null,null,null,"",58]
[null,"",null,null,null,null,null,"",59]
[null,"",null,null,null,null,null,"",60]
[null,"",null,null,null,null,null,"",61]
[null,""]
[]
[]
[]
[]
[]
[]
[]
[]
[]
[]
[]
[]
[]
[]
[]
[]
[]
[]
[]
[]
[]
[]
[]
[]
[]
[]
[]
[]
[]
[]
[]
[]
[]
[]
[]
[]
[]
[]
[]
[]
[]
[]
[]
[]
[]
[]
[]
[]
[]
[]
[]
[]
[]
[]
[]
[]
[]
[]
[]
[]
[]
[]
[]
[]
[]
[]
[]
[]
[]
[]
[]
[]
[]
[]
[]
[]
[]
[]
[]
[]
[]
[]
[]
[]
[]
[]
[]
[]
[]
[]
[]
[]
[]
[]
[]
[]
[]
[]
[]
[]
[]
[]
[]
[]
[]
[]
[]
[]
[]
[]
[]
[]
[]
[]
[]
[]
[]
[]
[]
[]
[]
[]
[]
[]
[]
[]
[]
[]
[]
[]
[]
[]
[]
[]
[]
[]
[]
[]
[]
[]
[]
[]
[]
[]
[]
[]
[]
[]
[]
[]
[]
[]
[]
[]
[]
[]
[]
[]
[]
[]
[]
[]
[]
[]
[]
[]
[]
[]
[]
[]
[]
[]
[]
[]
[]
[]
[]
[]
[]
[]
[]
[]
[]
[]
[]
[]
[]
[]
[]
[]
[]
[]
[]
[]
[]
[]
[]
[]
[]
[]
[]
[]
[]
[]
[]
[]
[]
[]
[]
[]
[]
[]
[]
[]
[]
[]
[]
[]
[]
[]
[]
[]
[]
[]
[]
[]
[]
[]
[]
[]
[]
[]
[]
[]
[]
[]
[]
[]
[]
[]
[]
[]
[]
[]
[]
[]
[]
[]
[]
[]
[]
[]
[]
[]
[]
[]
[]
[]
[]
[]
[]
[]
[]
[]
[]
[]
[]
[]
[]
[]
[]
[]
[]
[]
[]
[]
[]
[]
[]
[]
[]
[]
[]
[]
[]
[]
[]
[]
[]
[]
[]
[]
[]
[]
[]
[]
[]
[]
[]
[]
[]
[]
[]
[]
[]
[]
[]
[]
[]
[]
[]
[]
[]
[]
[]
[]
[]
[]
[]
[]
[]
[]
[]
[]
[]
[]
[]
[]
[]
[]
[]
[]
[]
[]
[]
[]
[]
[]
[]
[]
[]
[]
[]
[]
[]
[]
[]
[]
[]
[]
[]
[]
[]
[]
[]
[]
[]
[]
[]
[]
[]
[]
[]
[]
[]
[]
[]
[]
[]
[]
[]
[]
[]
[]
[]
[]
[]
[]
[]
[]
[]
[]
[]
[]
[]
[]
[]
[]
[]
[]
[]
[]
[]
[]
[]
[]
[]
[]
[]
[]
[]
[]
[]
[]
[]
[]
[]
[]
[]
[]
[]
[]
[]
[]
[]
[]
[]
[]
[]
[]
[]
[]
[]
[]
[]
[]
[]
[]
[]
[]
[]
[]
[]
[]
[]
[]
[]
[]
[]
[]
[]
[]
[]
[]
[]
[]
[]
[]
[]
[]
[]
[]
[]
[]
[]
[]
[]
[]
[]
[]
[]
[]
[]
[]
[]
[]
[]
[]
[]
[]
[]
[]
[]
[]
[]
[]
[]
[]
[]
[]
[]
[]
[]
[]
[]
[]
[]
[]
[]
[]
[]
[]
[]
[]
[]
[]
[]
[]
[]
[]
[]
[]
[]
[]
[]
[]
[]
[]
[]
[]
[]
[]
[]
[]
[]
[]
[]
[]
[]
[]
[]
[]
[]
[]
[]
[]
[]
[]
[]
[]
[]
[]
[]
[]
[]
[]
[]
[]
[]
[]
[]
[]
[]
[]
[]
[]
[]
[]
[]
[]
[]
[]
[]
[]
[]
[]
[]
[]
[]
[]
[]
[]
[]
[]
[]
[]
[]
[]
[]
[]
[]
[]
[]
[]
[]
[]
[]
[]
[]
[]
[]
[]
[]
[]
[]
[]
[]
[]
[]
[]
[]
[]
[]
[]
[]
[]
[]
[]
[]
[]
[]
[]
[]
[]
[]
[]
[]
[]
[]
[]
[]
[]
[]
[]
[]
[]
[]
[]
[]
[]
[]
[]
[]
[]
[]
[]
[]
[]
[]
[]
[]
[]
[]
[]
[]
[]
[]
[]
[]
[]
[]
[]
[]
[]
[]
[]
[]
[]
[]
[]
[]
[]
[]
[]
[]
[]
[]
[]
[]
[]
[]
[]
[]
[]
[]
[]
[]
[]
[]
[]
[]
[]
[]
[]
[]
[]
[]
[]
[]
[]
[]
[]
[]
[]
[]
[]
[]
[]
[]
[]
[]
[]
[]
[]
[]
[]
[]
[]
[]
[]
[]
[]
[]
[]
[]
[]
[]
[]
[]
[]
[]
[]
[]
[]
[]
[]
[]
[]
[]
[]
[]
[]
[]
[]
[]
[]
[]
[]
[]
[]
[]
[]
[]
[]
[]
[]
[]
[]
[]
[]
[]
[]
[]
[]
[]
[]
[]
[]
[]
[]
[]
[]
[]
[]
[]
[]
[]
[]
[]
[]
[]
[]
[]
[]
[]
[]
[]
[]
[]
[]
[]
[]
[]
[]
[]
[]
[]
[]
[]
[]
[]
[]
[]
[]
[]
[]
[]
[]
[]
[]
[]
[]
[]
[]
[]
[]
[]
[]
[]
[]
[]
[]
[]
[]
[]
[]
[]
[]
[]
[]
[]
[]
[]
[]
[]
[]
[]
[]
[]
[]
[]
[]
[]
[]
[]
[]
[]
[]
[]
[]
[]
[]
[]
[]
[]
[]
[]
[]
[]
[]
[]
[]
[]
[]
[]
[]
[]
[]
[]
[]
[]
[]
[]
[]
[]
[]
[]
[]
[]
[]
[]
[]
[]
[]
[]
[]
[]
[]
[]
[]
[]
[]
[]
[]
[]
[]
[]
[]
[]
[]
[]
[]
[]
[]
[]
[]
[]
[]
[]
[]
[]
[]
[]
[]
[]
[]
[]
[]
[]
[]
[]
[]
[]
[]
[]
[]
[]
[]
[]
[]
[]
[]
[]
[]
[]
[]
[]
[]
[]
[]
[]
[]
[]
[]
[]
[]
[]
[]
[]
[]
[]
[]
[]
[]
[]
[]
[]
[]
[]
[]
[]
[]
[]
[]
[]
[]
[]
[]
[]
[]
[]
[]
[]
[]
[]
[]
[]
[]
[]
[]
[]
[]
[]
[]
[]
[]
[]
[]
[]
[]
[]
[]
[]
[]
[]
[]
[]
[]
[]
[]
[]
[]
[]
[]
[]
[]
[]
[]
[]
[]
[]
[]
[]
[]
[]
[]
[]
[]
[]
[]
[]
[]
[]
[]
[]
[]
[]
[]
[]
[]
[]
[]
[]
[]
[]
[]
[]
[]
[]
[]
[]
[]
[]
[]
[]
[]
[]
[]
[]
[]
[]
[]
[]
[]
[]
[]
[]
[]
[]
[]
[]
[]
[]
[]
[]
[]
[]
[]
[]
[]
[]
[]
[]
[]
[]
[]
[]
[]
[]
[]
[]
[]
[]
[]
[]
[]
[]
[]
[]
[]
[]
[]
[]
[]
[]
[]
[]
[]
[]
[]
[]
[]
[]
[]
[]
[]
[]
[]
[]
[]
[]
[]
[]
[]
[]
[]
[]
[]
[]
[]
[]
[]
[]
[]
[]
[]
[]
[]
[]
[]
[]
[]
[]
[]
[]
[]
[]
[]
[]
[]
[]
[]
[]
[]
[]
[]
[]
[]
[]
[]
[]
[]
[]
[]
[]
[]
[]
[]
[]
[]
[]
[]
[]
[]
[]
[]
[]
[]
[]
[]
[]
[]
[]
[]
[]
[]
[]
[]
[]
[]
[]
[]
[]
[]
[]
[]
[]
[]
[]
[]
[]
[]
[]
[]
[]
[]
[]
[]
[]
[]
[]
[]
[]
[]
[]
[]
[]
[]
[]
[]
[]
[]
[]
[]
[]
[]
[]
[]
[]
[]
[]
[]
[]
[]
[]
[]
[]
[]
[]
[]
[]
[]
[]
[]
[]
[]
[]
[]
[]
[]
[]
[]
[]
[]
[]
[]
[]
[]
[]
[]
[]
[]
[]
[]
[]
[]
[]
[]
[]
[]
[]
[]
[]
[]
[]
[]
[]
[]
[]
[]
[]
[]
[]
[]
[]
[]
[]
[]
[]
[]
[]
[]
[]
[]
[]
[]
[]
[]
[]
[]
[]
[]
[]
[]
[]
[]
[]
[]
[]
[]
[]
[]
[]
[]
[]
[]
[]
[]
[]
[]
[]
[]
[]
[]
[]
[]
[]
[]
[]
[]
[]
[]
[]
[]
[]
[]
[]
[]
[]
[]
[]
[]
[]
[]
[]
[]
[]
[]
[]
[]
[]
[]
[]
[]
[]
[]
[]
[]
[]
[]
[]
[]
[]
[]
[]
[]
[]
[]
[]
[]
[]
[]
[]
[]
[]
[]
[]
[]
[]
[]
[]
[]
[]
[]
[]
[]
[]
[]
[]
[]
[]
[]
[]
[]
[]
[]
[]
[]
[]
[]
[]
[]
[]
[]
[]
[]
[]
[]
[]
[]
[]
[]
[]
[]
[]
[]
[]
[]
[]
[]
[]
[]
[]
[]
[]
[]
[]
[]
[]
[]
[]
[]
[]
[]
[]
[]
[]
[]
[]
[]
[]
[]
[]
[]
[]
[]
[]
[]
[]
[]
[]
[]
[]
[]
[]
[]
[]
[]
[]
[]
[]
[]
[]
[]
[]
[]
[]
[]
[]
[]
[]
[]
[]
[]
[]
[]
[]
[]
[]
[]
[]
[]
[]
[]
[]
[]
[]
[]
[]
[]
[]
[]
[]
[]
[]
[]
[]
[]
[]
[]
[]
[]
[]
[]
[]
[]
[]
[]
[]
[]
[]
[]
[]
[]
[]
[]
[]
[]
[]
[]
[]
[]
[]
[]
[]
[]
[]
[]
[]
[]
[]
[]
[]
[]
[]
[]
[]
[]
[]
[]
[]
[]
[]
[]
[]
[]
[]
[]
[]
[]
[]
[]
[]
[]
[]
[]
[]
[]
[]
[]
[]
[]
[]
[]
[]
[]
[]
[]
[]
[]
[]
[]
[]
[]
[]
[]
[]
[]
[]
[]
[]
[]
[]
[]
[]
[]
[]
[]
[]
[]
[]
[]
[]
[]
[]
[]
[]
[]
[]
[]
[]
[]
[]
[]
[]
[]
[]
[]
[]
[]
[]
[]
[]
[]
[]
[]
[]
[]
[]
[]
[]
[]
[]
[]
[]
[]
[]
[]
[]
[]
[]
[]
[]
[]
[]
[]
[]
[]
[]
[]
[]
[]
[]
[]
[]
[]
[]
[]
[]
[]
[]
[]
[]
[]
[]
[]
[]
[]
[]
[]
[]
[]
[]
[]
[]
[]
[]
[]
[]
[]
[]
[]
[]
[]
[]
[]
[]
[]
[]
[]
[]
[]
[]
[]
[]
[]
[]
[]
[]
[]
[]
[]
[]
[]
[]
[]
[]
[]
[]
[]
[]
[]
[]
[]
[]
[]
[]
[]
[]
[]
[]
[]
[]
[]
[]
[]
[]
[]
[]
[]
[]
[]
[]
[]
[]
[]
[]
[]
[]
[]
[]
[]
[]
[]
[]
[]
[]
[]
[]
[]
[]
[]
[]
[]
[]
[]
[]
[]
[]
[]
[]
[]
[]
[]
[]
[]
[]
[]
[]
[]
[]
[]
[]
[]
[]
[]
[]
[]
[]
[]
[]
[]
[]
[]
[]
[]
[]
[]
[]
[]
[]
[]
[]
[]
[]
[]
[]
[]
[]
[]
[]
[]
[]
[]
[]
[]
[]
[]
[]
[]
[]
[]
[]
[]
[]
[]
[]
[]
[]
[]
[]
[]
[]
[]
[]
[]
[]
[]
[]
[]
[]
[]
[]
[]
[]
[]
[]
[]
[]
[]
[]
[]
[]
[]
[]
[]
[]
[]
[]
[]
[]
[]
[]
[]
[]
[]
[]
[]
[]
[]
[]
[]
[]
[]
[]
[]
[]
[]
[]
[]
[]
[]
[]
[]
[]
[]
[]
[]
[]
[]
[]
[]
[]
[]
[]
[]
[]
[]
[]
[]
[]
[]
[]
[]
[]
[]
[]
[]
[]
[]
[]
[]
[]
[]
[]
[]
[]
[]
[]
[]
[]
[]
[]
[]
[]
[]
[]
[]
[]
[]
[]
[]
[]
[]
[]
[]
[]
[]
[]
[]
[]
[]
[]
[]
[]
[]
[]
[]
[]
[]
[]
[]
[]
[]
[]
[]
[]
[]
[]
[]
[]
[]
[]
[]
[]
[]
[]
[]
[]
[]
[]
[]
[]
[]
[]
[]
[]
[]
[]
[]
[]
[]
[]
[]
[]
[]
[]
[]
[]
[]
[]
[]
[]
[]
[]
[]
[]
[]
[]
[]
[]
[]
[]
[]
[]
[]
[]
[]
[]
[]
[]
[]
[]
[]
[]
[]
[]
[]
[]
[]
[]
[]
[]
[]
[]
[]
[]
[]
[]
[]
[]
[]
[]
[]
[]
[]
[]
[]
[]
[]
[]
[]
[]
[]
[]
[]
[]
[]
[]
[]
[]
[]
[]
[]
[]
[]
[]
[]
[]
[]
[]
[]
[]
[]
[]
[]
[]
[]
[]
[]
[]
[]
[]
[]
[]
[]
[]
[]
[]
[]
[]
[]
[]
[]
[]
[]
[]
[]
[]
[]
[]
[]
[]
[]
[]
[]
[]
[]
[]
[]
[]
[]
[]
[]
[]
[]
[]
[]
[]
[]
[]
[]
[]
[]
[]
[]
[]
[]
[]
[]
[]
[]
[]
[]
[]
[]
[]
[]
[]
[]
[]
[]
[]
[]
[]
[]
[]
[]
[]
[]
[]
[]
[]
[]
[]
[]
[]
[]
[]
[]
[]
[]
[]
[]
[]
[]
[]
[]
[]
[]
[]
[]
[]
[]
[]
[]
[]
[]
[]
[]
[]
[]
[]
[]
[]
[]
[]
[]
[]
[]
[]
[null,{"$f":"IF($H$5=\"الاول\",\"1\\1\",IF($H$5=\"الثاني\",\"2\\1\",IF($H$5=\"الثالث\",\"3\\1\",\"\")))","v":"1\\1"}]
[null,{"$f":"IF($H$5=\"الاول\",\"1\\2\",IF($H$5=\"الثاني\",\"2\\2\",IF($H$5=\"الثالث\",\"3\\2\",\"\")))","v":"1\\2"}]
[null,{"$f":"IF($H$5=\"الاول\",\"1\\3\",IF($H$5=\"الثاني\",\"2\\3\",IF($H$5=\"الثالث\",\"3\\3\",\"\")))","v":"1\\3"}]
[null,{"$f":"IF($H$5=\"الاول\",\"1\\4\",IF($H$5=\"الثاني\",\"2\\4\",IF($H$5=\"الثالث\",\"3\\4\",\"\")))","v":"1\\4"}]
[null,{"$f":"IF($H$5=\"الاول\",\"1\\5\",IF($H$5=\"الثاني\",\"2\\5\",IF($H$5=\"الثالث\",\"3\\5\",\"\")))","v":"1\\5"}]
[null,{"$f":"IF($H$5=\"الاول\",\"1\\6\",IF($H$5=\"الثاني\",\"2\\6\",IF($H$5=\"الثالث\",\"3\\6\",\"\")))","v":"1\\6"}]
[null,{"$f":"IF($H$5=\"الاول\",\"1\\7\",IF($H$5=\"الثاني\",\"2\\7\",IF($H$5=\"الثالث\",\"3\\7\",\"\")))","v":"1\\7"}]
[null,{"$f":"IF($H$5=\"الاول\",\"1\\8\",IF($H$5=\"الثاني\",\"2\\8\",IF($H$5=\"الثالث\",\"3\\8\",\"\")))","v":"1\\8"}]
[null,{"$f":"IF($H$5=\"الاول\",\"1\\9\",IF($H$5=\"الثاني\",\"2\\9\",IF($H$5=\"الثالث\",\"3\\9\",\"\")))","v":"1\\9"}]
[null,{"$f":"IF($H$5=\"الاول\",\"1\\10\",IF($H$5=\"الثاني\",\"2\\10\",IF($H$5=\"الثالث\",\"3\\10\",\"\")))","v":"1\\10"}]
[null,{"$f":"IF($H$5=\"الاول\",\"1\\11\",IF($H$5=\"الثاني\",\"2\\11\",IF($H$5=\"الثالث\",\"3\\11\",\"\")))","v":"1\\11"}]
[null,{"$f":"IF($H$5=\"الاول\",\"1\\12\",IF($H$5=\"الثاني\",\"2\\12\",IF($H$5=\"الثالث\",\"3\\12\",\"\")))","v":"1\\12"}]
[null,{"$f":"IF($H$5=\"الاول\",\"1\\13\",IF($H$5=\"الثاني\",\"2\\13\",IF($H$5=\"الثالث\",\"3\\13\",\"\")))","v":"1\\13"}]
[null,{"$f":"IF($H$5=\"الاول\",\"1\\14\",IF($H$5=\"الثاني\",\"2\\14\",IF($H$5=\"الثالث\",\"3\\14\",\"\")))","v":"1\\14"}]
[null,{"$f":"IF($H$5=\"الاول\",\"1\\15\",IF($H$5=\"الثاني\",\"2\\15\",IF($H$5=\"الثالث\",\"3\\15\",\"\")))","v":"1\\15"}]
[null,{"$f":"IF($H$5=\"الاول\",\"1\\16\",IF($H$5=\"الثاني\",\"2\\16\",IF($H$5=\"الثالث\",\"3\\16\",\"\")))","v":"1\\16"}]
[null,{"$f":"IF($H$5=\"الاول\",\"1\\17\",IF($H$5=\"الثاني\",\"2\\17\",IF($H$5=\"الثالث\",\"3\\17\",\"\")))","v":"1\\17"}]
[null,{"$f":"IF($H$5=\"الاول\",\"1\\18\",IF($H$5=\"الثاني\",\"2\\18\",IF($H$5=\"الثالث\",\"3\\18\",\"\")))","v":"1\\18"}]
[null,{"$f":"IF($H$5=\"الاول\",\"1\\19\",IF($H$5=\"الثاني\",\"2\\19\",IF($H$5=\"الثالث\",\"3\\19\",\"\")))","v":"1\\19"}]
[null,{"$f":"IF($H$5=\"الاول\",\"1\\20\",IF($H$5=\"الثاني\",\"2\\20\",IF($H$5=\"الثالث\",\"3\\20\",\"\")))","v":"1\\20"}]

{"sheet":"طباعة قوائم الفصول","index":1,"n_rows":295,"n_cols":20,"rows_kept":295,"cut":false,"hidden":false,"merged":[[7,2,7,5],[5,8,5,9],[4,0,4,1],[5,0,5,1],[6,0,6,1]]}
[]
[]
[null,null,null,null,null,null,null,null,null,null,null,null,null,null,null,null,null,"مستجد","ذكر ","مسلم"]
[null,null,null,null,null,null,null,null,null,null,null,null,null,null,null,null,null,"معيد","انثى","مسيحي"]
["مديرية التربية والتعليم بطنطا",null,null,null,null,null,null,null,null,null,null,null,null,null,null,null,"الاول","مستجدة",null,"مسلمه"]
["إدارة شرق المحلة التعليمية",null,null,null,null,null,"الصف","الثاني","الاعدادي",null,null,null,null,null,null,null,"الثاني","معيدة",null,"مسيحيه"]
["مدرسة ميت السراج الاعدادية المشتركة",null,null,null,null,null,null,null,null,null,null,null,null,null,null,null,"الثالث"]
[null,null,"قائمـــة فصـــل ",null,null,null,"2\\1"]
["م","الاســـــــم"," القيد","الجنس","الديانة","م","الاســـــــم"," القيد","الجنس","الديانة"]
[{"$f":"IF(B10=\"\",\"\",ROW()-9)","v":1},{"$f":"IFERROR(INDEX(بنين!$C$10:$C$512,SMALL(IF(بنين!$D$10:$D$512=$G$8,IF(بنين!$F$10:$F$512=$S$3,ROW($D$10:$D$512)-ROW($D$10)+1)),ROWS($B$10:B10))),\"\")","v":"ابراهيم عبدالرازق ابراهيم فرحات"},{"$f":"IFERROR(INDEX(بنين!$E$10:$E$512,SMALL(IF(بنين!$D$10:$D$512=$G$8,IF(بنين!$F$10:$F$512=$S$3,ROW($D$10:$D$512)-ROW($D$10)+1)),ROWS($B$10:C10))),\"\")","v":"معيد"},{"$f":"IFERROR(INDEX(بنين!$F$10:$F$512,SMALL(IF(بنين!$D$10:$D$512=$G$8,IF(بنين!$F$10:$F$512=$S$3,ROW($D$10:$D$512)-ROW($D$10)+1)),ROWS($B$10:D10))),\"\")","v":"ذكر "},{"$f":"IFERROR(INDEX(بنين!$G$10:$G$512,SMALL(IF(بنين!$D$10:$D$512=$G$8,IF(بنين!$F$10:$F$512=$S$3,ROW($D$10:$D$512)-ROW($D$10)+1)),ROWS($B$10:E10))),\"\")","v":"مسلم"},{"$f":"IF(G10=\"\",\"\",COUNT($A$10:$A$126)+ROW()-9)","v":29},{"$f":"IFERROR(INDEX(بنين!$C$10:$C$512,SMALL(IF(بنين!$D$10:$D$512=$G$8,IF(بنين!$F$10:$F$512=$S$4,ROW($D$10:$D$512)-ROW($D$10)+1)),ROWS($B$10:G10))),\"\")","v":"احلام محمد اليمانى الششتاوى"},{"$f":"IFERROR(INDEX(بنين!$E$10:$E$512,SMALL(IF(بنين!$D$10:$D$512=$G$8,IF(بنين!$F$10:$F$512=$S$4,ROW($D$10:$D$512)-ROW($D$10)+1)),ROWS($B$10:H10))),\"\")","v":"مستجدة"},{"$f":"IFERROR(INDEX(بنين!$F$10:$F$512,SMALL(IF(بنين!$D$10:$D$512=$G$8,IF(بنين!$F$10:$F$512=$S$4,ROW($D$10:$D$512)-ROW($D$10)+1)),ROWS($B$10:I10))),\"\")","v":"انثى"},{"$f":"IFERROR(INDEX(بنين!$G$10:$G$512,SMALL(IF(بنين!$D$10:$D$512=$G$8,IF(بنين!$F$10:$F$512=$S$4,ROW($D$10:$D$512)-ROW($D$10)+1)),ROWS($B$10:J10))),\"\")","v":"مسلمه"},null,null,null,null,{"$f":"ROW()-9","v":1}]
[{"$f":"IF(B11=\"\",\"\",ROW()-9)","v":2},{"$f":"IFERROR(INDEX(بنين!$C$10:$C$512,SMALL(IF(بنين!$D$10:$D$512=$G$8,IF(بنين!$F$10:$F$512=$S$3,ROW($D$10:$D$512)-ROW($D$10)+1)),ROWS($B$10:B11))),\"\")","v":"ابراهيم مخلوف يوسف مخلوف"},{"$f":"IFERROR(INDEX(بنين!$E$10:$E$512,SMALL(IF(بنين!$D$10:$D$512=$G$8,IF(بنين!$F$10:$F$512=$S$3,ROW($D$10:$D$512)-ROW($D$10)+1)),ROWS($B$10:C11))),\"\")","v":"مستجد"},{"$f":"IFERROR(INDEX(بنين!$F$10:$F$512,SMALL(IF(بنين!$D$10:$D$512=$G$8,IF(بنين!$F$10:$F$512=$S$3,ROW($D$10:$D$512)-ROW($D$10)+1)),ROWS($B$10:D11))),\"\")","v":"ذكر "},{"$f":"IFERROR(INDEX(بنين!$G$10:$G$512,SMALL(IF(بنين!$D$10:$D$512=$G$8,IF(بنين!$F$10:$F$512=$S$3,ROW($D$10:$D$512)-ROW($D$10)+1)),ROWS($B$10:E11))),\"\")","v":"مسلم"},30,{"$f":"IFERROR(INDEX(بنين!$C$10:$C$512,SMALL(IF(بنين!$D$10:$D$512=$G$8,IF(بنين!$F$10:$F$512=$S$4,ROW($D$10:$D$512)-ROW($D$10)+1)),ROWS($B$10:G11))),\"\")","v":"اخلاص عبدالسلام محمد احمد"},{"$f":"IFERROR(INDEX(بنين!$E$10:$E$512,SMALL(IF(بنين!$D$10:$D$512=$G$8,IF(بنين!$F$10:$F$512=$S$4,ROW($D$10:$D$512)-ROW($D$10)+1)),ROWS($B$10:H11))),\"\")","v":"معيدة"},{"$f":"IFERROR(INDEX(بنين!$F$10:$F$512,SMALL(IF(بنين!$D$10:$D$512=$G$8,IF(بنين!$F$10:$F$512=$S$4,ROW($D$10:$D$512)-ROW($D$10)+1)),ROWS($B$10:I11))),\"\")","v":"انثى"},{"$f":"IFERROR(INDEX(بنين!$G$10:$G$512,SMALL(IF(بنين!$D$10:$D$512=$G$8,IF(بنين!$F$10:$F$512=$S$4,ROW($D$10:$D$512)-ROW($D$10)+1)),ROWS($B$10:J11))),\"\")","v":"مسلمه"},null,null,null,null,2]
[{"$f":"IF(B12=\"\",\"\",ROW()-9)","v":3},{"$f":"IFERROR(INDEX(بنين!$C$10:$C$512,SMALL(IF(بنين!$D$10:$D$512=$G$8,IF(بنين!$F$10:$F$512=$S$3,ROW($D$10:$D$512)-ROW($D$10)+1)),ROWS($B$10:B12))),\"\")","v":"احمد اشرف عبد الفتاح الطنطاوى"},{"$f":"IFERROR(INDEX(بنين!$E$10:$E$512,SMALL(IF(بنين!$D$10:$D$512=$G$8,IF(بنين!$F$10:$F$512=$S$3,ROW($D$10:$D$512)-ROW($D$10)+1)),ROWS($B$10:C12))),\"\")","v":"مستجد"},{"$f":"IFERROR(INDEX(بنين!$F$10:$F$512,SMALL(IF(بنين!$D$10:$D$512=$G$8,IF(بنين!$F$10:$F$512=$S$3,ROW($D$10:$D$512)-ROW($D$10)+1)),ROWS($B$10:D12))),\"\")","v":"ذكر "},{"$f":"IFERROR(INDEX(بنين!$G$10:$G$512,SMALL(IF(بنين!$D$10:$D$512=$G$8,IF(بنين!$F$10:$F$512=$S$3,ROW($D$10:$D$512)-ROW($D$10)+1)),ROWS($B$10:E12))),\"\")","v":"مسلم"},31,{"$f":"IFERROR(INDEX(بنين!$C$10:$C$512,SMALL(IF(بنين!$D$10:$D$512=$G$8,IF(بنين!$F$10:$F$512=$S$4,ROW($D$10:$D$512)-ROW($D$10)+1)),ROWS($B$10:G12))),\"\")","v":"اسراء السيد المعداوي علي رمضان"},{"$f":"IFERROR(INDEX(بنين!$E$10:$E$512,SMALL(IF(بنين!$D$10:$D$512=$G$8,IF(بنين!$F$10:$F$512=$S$4,ROW($D$10:$D$512)-ROW($D$10)+1)),ROWS($B$10:H12))),\"\")","v":"مستجدة"},{"$f":"IFERROR(INDEX(بنين!$F$10:$F$512,SMALL(IF(بنين!$D$10:$D$512=$G$8,IF(بنين!$F$10:$F$512=$S$4,ROW($D$10:$D$512)-ROW($D$10)+1)),ROWS($B$10:I12))),\"\")","v":"انثى"},{"$f":"IFERROR(INDEX(بنين!$G$10:$G$512,SMALL(IF(بنين!$D$10:$D$512=$G$8,IF(بنين!$F$10:$F$512=$S$4,ROW($D$10:$D$512)-ROW($D$10)+1)),ROWS($B$10:J12))),\"\")","v":"مسلمه"},null,null,null,null,3]
[4,{"$f":"IFERROR(INDEX(بنين!$C$10:$C$512,SMALL(IF(بنين!$D$10:$D$512=$G$8,IF(بنين!$F$10:$F$512=$S$3,ROW($D$10:$D$512)-ROW($D$10)+1)),ROWS($B$10:B13))),\"\")","v":"احمد اشرف محمد الكومى"},{"$f":"IFERROR(INDEX(بنين!$E$10:$E$512,SMALL(IF(بنين!$D$10:$D$512=$G$8,IF(بنين!$F$10:$F$512=$S$3,ROW($D$10:$D$512)-ROW($D$10)+1)),ROWS($B$10:C13))),\"\")","v":"مستجد"},{"$f":"IFERROR(INDEX(بنين!$F$10:$F$512,SMALL(IF(بنين!$D$10:$D$512=$G$8,IF(بنين!$F$10:$F$512=$S$3,ROW($D$10:$D$512)-ROW($D$10)+1)),ROWS($B$10:D13))),\"\")","v":"ذكر "},{"$f":"IFERROR(INDEX(بنين!$G$10:$G$512,SMALL(IF(بنين!$D$10:$D$512=$G$8,IF(بنين!$F$10:$F$512=$S$3,ROW($D$10:$D$512)-ROW($D$10)+1)),ROWS($B$10:E13))),\"\")","v":"مسلم"},32,{"$f":"IFERROR(INDEX(بنين!$C$10:$C$512,SMALL(IF(بنين!$D$10:$D$512=$G$8,IF(بنين!$F$10:$F$512=$S$4,ROW($D$10:$D$512)-ROW($D$10)+1)),ROWS($B$10:G13))),\"\")","v":"اسراء حسين طلخان احمد قوره"},{"$f":"IFERROR(INDEX(بنين!$E$10:$E$512,SMALL(IF(بنين!$D$10:$D$512=$G$8,IF(بنين!$F$10:$F$512=$S$4,ROW($D$10:$D$512)-ROW($D$10)+1)),ROWS($B$10:H13))),\"\")","v":"مستجدة"},{"$f":"IFERROR(INDEX(بنين!$F$10:$F$512,SMALL(IF(بنين!$D$10:$D$512=$G$8,IF(بنين!$F$10:$F$512=$S$4,ROW($D$10:$D$512)-ROW($D$10)+1)),ROWS($B$10:I13))),\"\")","v":"انثى"},{"$f":"IFERROR(INDEX(بنين!$G$10:$G$512,SMALL(IF(بنين!$D$10:$D$512=$G$8,IF(بنين!$F$10:$F$512=$S$4,ROW($D$10:$D$512)-ROW($D$10)+1)),ROWS($B$10:J13))),\"\")","v":"مسلمه"},null,null,null,null,4]
[5,{"$f":"IFERROR(INDEX(بنين!$C$10:$C$512,SMALL(IF(بنين!$D$10:$D$512=$G$8,IF(بنين!$F$10:$F$512=$S$3,ROW($D$10:$D$512)-ROW($D$10)+1)),ROWS($B$10:B14))),\"\")","v":"احمد السيد عامر البسيونى"},{"$f":"IFERROR(INDEX(بنين!$E$10:$E$512,SMALL(IF(بنين!$D$10:$D$512=$G$8,IF(بنين!$F$10:$F$512=$S$3,ROW($D$10:$D$512)-ROW($D$10)+1)),ROWS($B$10:C14))),\"\")","v":"معيد"},{"$f":"IFERROR(INDEX(بنين!$F$10:$F$512,SMALL(IF(بنين!$D$10:$D$512=$G$8,IF(بنين!$F$10:$F$512=$S$3,ROW($D$10:$D$512)-ROW($D$10)+1)),ROWS($B$10:D14))),\"\")","v":"ذكر "},{"$f":"IFERROR(INDEX(بنين!$G$10:$G$512,SMALL(IF(بنين!$D$10:$D$512=$G$8,IF(بنين!$F$10:$F$512=$S$3,ROW($D$10:$D$512)-ROW($D$10)+1)),ROWS($B$10:E14))),\"\")","v":"مسلم"},33,{"$f":"IFERROR(INDEX(بنين!$C$10:$C$512,SMALL(IF(بنين!$D$10:$D$512=$G$8,IF(بنين!$F$10:$F$512=$S$4,ROW($D$10:$D$512)-ROW($D$10)+1)),ROWS($B$10:G14))),\"\")","v":"اسراء حمدي عبدالحميد عبدالعزيزخالد"},{"$f":"IFERROR(INDEX(بنين!$E$10:$E$512,SMALL(IF(بنين!$D$10:$D$512=$G$8,IF(بنين!$F$10:$F$512=$S$4,ROW($D$10:$D$512)-ROW($D$10)+1)),ROWS($B$10:H14))),\"\")","v":"مستجدة"},{"$f":"IFERROR(INDEX(بنين!$F$10:$F$512,SMALL(IF(بنين!$D$10:$D$512=$G$8,IF(بنين!$F$10:$F$512=$S$4,ROW($D$10:$D$512)-ROW($D$10)+1)),ROWS($B$10:I14))),\"\")","v":"انثى"},{"$f":"IFERROR(INDEX(بنين!$G$10:$G$512,SMALL(IF(بنين!$D$10:$D$512=$G$8,IF(بنين!$F$10:$F$512=$S$4,ROW($D$10:$D$512)-ROW($D$10)+1)),ROWS($B$10:J14))),\"\")","v":"مسلمه"},null,null,null,null,5]
[6,{"$f":"IFERROR(INDEX(بنين!$C$10:$C$512,SMALL(IF(بنين!$D$10:$D$512=$G$8,IF(بنين!$F$10:$F$512=$S$3,ROW($D$10:$D$512)-ROW($D$10)+1)),ROWS($B$10:B15))),\"\")","v":"احمد ايمن عبدالمنعم عبدالرازق نافع"},{"$f":"IFERROR(INDEX(بنين!$E$10:$E$512,SMALL(IF(بنين!$D$10:$D$512=$G$8,IF(بنين!$F$10:$F$512=$S$3,ROW($D$10:$D$512)-ROW($D$10)+1)),ROWS($B$10:C15))),\"\")","v":"مستجد"},{"$f":"IFERROR(INDEX(بنين!$F$10:$F$512,SMALL(IF(بنين!$D$10:$D$512=$G$8,IF(بنين!$F$10:$F$512=$S$3,ROW($D$10:$D$512)-ROW($D$10)+1)),ROWS($B$10:D15))),\"\")","v":"ذكر "},{"$f":"IFERROR(INDEX(بنين!$G$10:$G$512,SMALL(IF(بنين!$D$10:$D$512=$G$8,IF(بنين!$F$10:$F$512=$S$3,ROW($D$10:$D$512)-ROW($D$10)+1)),ROWS($B$10:E15))),\"\")","v":"مسلم"},34,{"$f":"IFERROR(INDEX(بنين!$C$10:$C$512,SMALL(IF(بنين!$D$10:$D$512=$G$8,IF(بنين!$F$10:$F$512=$S$4,ROW($D$10:$D$512)-ROW($D$10)+1)),ROWS($B$10:G15))),\"\")","v":"اسراء عبدالعزيز عبدالعزيز اليمانى"},{"$f":"IFERROR(INDEX(بنين!$E$10:$E$512,SMALL(IF(بنين!$D$10:$D$512=$G$8,IF(بنين!$F$10:$F$512=$S$4,ROW($D$10:$D$512)-ROW($D$10)+1)),ROWS($B$10:H15))),\"\")","v":"معيدة"},{"$f":"IFERROR(INDEX(بنين!$F$10:$F$512,SMALL(IF(بنين!$D$10:$D$512=$G$8,IF(بنين!$F$10:$F$512=$S$4,ROW($D$10:$D$512)-ROW($D$10)+1)),ROWS($B$10:I15))),\"\")","v":"انثى"},{"$f":"IFERROR(INDEX(بنين!$G$10:$G$512,SMALL(IF(بنين!$D$10:$D$512=$G$8,IF(بنين!$F$10:$F$512=$S$4,ROW($D$10:$D$512)-ROW($D$10)+1)),ROWS($B$10:J15))),\"\")","v":"مسلمه"},null,null,null,null,6]
[7,{"$f":"IFERROR(INDEX(بنين!$C$10:$C$512,SMALL(IF(بنين!$D$10:$D$512=$G$8,IF(بنين!$F$10:$F$512=$S$3,ROW($D$10:$D$512)-ROW($D$10)+1)),ROWS($B$10:B16))),\"\")","v":"احمد جلال السيد عثمان الجارحى"},{"$f":"IFERROR(INDEX(بنين!$E$10:$E$512,SMALL(IF(بنين!$D$10:$D$512=$G$8,IF(بنين!$F$10:$F$512=$S$3,ROW($D$10:$D$512)-ROW($D$10)+1)),ROWS($B$10:C16))),\"\")","v":"مستجد"},{"$f":"IFERROR(INDEX(بنين!$F$10:$F$512,SMALL(IF(بنين!$D$10:$D$512=$G$8,IF(بنين!$F$10:$F$512=$S$3,ROW($D$10:$D$512)-ROW($D$10)+1)),ROWS($B$10:D16))),\"\")","v":"ذكر "},{"$f":"IFERROR(INDEX(بنين!$G$10:$G$512,SMALL(IF(بنين!$D$10:$D$512=$G$8,IF(بنين!$F$10:$F$512=$S$3,ROW($D$10:$D$512)-ROW($D$10)+1)),ROWS($B$10:E16))),\"\")","v":"مسلم"},35,{"$f":"IFERROR(INDEX(بنين!$C$10:$C$512,SMALL(IF(بنين!$D$10:$D$512=$G$8,IF(بنين!$F$10:$F$512=$S$4,ROW($D$10:$D$512)-ROW($D$10)+1)),ROWS($B$10:G16))),\"\")","v":"اسراء محمود السيد محمود"},{"$f":"IFERROR(INDEX(بنين!$E$10:$E$512,SMALL(IF(بنين!$D$10:$D$512=$G$8,IF(بنين!$F$10:$F$512=$S$4,ROW($D$10:$D$512)-ROW($D$10)+1)),ROWS($B$10:H16))),\"\")","v":"معيدة"},{"$f":"IFERROR(INDEX(بنين!$F$10:$F$512,SMALL(IF(بنين!$D$10:$D$512=$G$8,IF(بنين!$F$10:$F$512=$S$4,ROW($D$10:$D$512)-ROW($D$10)+1)),ROWS($B$10:I16))),\"\")","v":"انثى"},{"$f":"IFERROR(INDEX(بنين!$G$10:$G$512,SMALL(IF(بنين!$D$10:$D$512=$G$8,IF(بنين!$F$10:$F$512=$S$4,ROW($D$10:$D$512)-ROW($D$10)+1)),ROWS($B$10:J16))),\"\")","v":"مسلمه"},null,null,null,null,7]
[8,{"$f":"IFERROR(INDEX(بنين!$C$10:$C$512,SMALL(IF(بنين!$D$10:$D$512=$G$8,IF(بنين!$F$10:$F$512=$S$3,ROW($D$10:$D$512)-ROW($D$10)+1)),ROWS($B$10:B17))),\"\")","v":"احمد حازم شوقى عطاالله"},{"$f":"IFERROR(INDEX(بنين!$E$10:$E$512,SMALL(IF(بنين!$D$10:$D$512=$G$8,IF(بنين!$F$10:$F$512=$S$3,ROW($D$10:$D$512)-ROW($D$10)+1)),ROWS($B$10:C17))),\"\")","v":"مستجد"},{"$f":"IFERROR(INDEX(بنين!$F$10:$F$512,SMALL(IF(بنين!$D$10:$D$512=$G$8,IF(بنين!$F$10:$F$512=$S$3,ROW($D$10:$D$512)-ROW($D$10)+1)),ROWS($B$10:D17))),\"\")","v":"ذكر "},{"$f":"IFERROR(INDEX(بنين!$G$10:$G$512,SMALL(IF(بنين!$D$10:$D$512=$G$8,IF(بنين!$F$10:$F$512=$S$3,ROW($D$10:$D$512)-ROW($D$10)+1)),ROWS($B$10:E17))),\"\")","v":"مسلم"},36,{"$f":"IFERROR(INDEX(بنين!$C$10:$C$512,SMALL(IF(بنين!$D$10:$D$512=$G$8,IF(بنين!$F$10:$F$512=$S$4,ROW($D$10:$D$512)-ROW($D$10)+1)),ROWS($B$10:G17))),\"\")","v":"اسماء محمد عبدالمعطي بدرحجازى"},{"$f":"IFERROR(INDEX(بنين!$E$10:$E$512,SMALL(IF(بنين!$D$10:$D$512=$G$8,IF(بنين!$F$10:$F$512=$S$4,ROW($D$10:$D$512)-ROW($D$10)+1)),ROWS($B$10:H17))),\"\")","v":"مستجدة"},{"$f":"IFERROR(INDEX(بنين!$F$10:$F$512,SMALL(IF(بنين!$D$10:$D$512=$G$8,IF(بنين!$F$10:$F$512=$S$4,ROW($D$10:$D$512)-ROW($D$10)+1)),ROWS($B$10:I17))),\"\")","v":"انثى"},{"$f":"IFERROR(INDEX(بنين!$G$10:$G$512,SMALL(IF(بنين!$D$10:$D$512=$G$8,IF(بنين!$F$10:$F$512=$S$4,ROW($D$10:$D$512)-ROW($D$10)+1)),ROWS($B$10:J17))),\"\")","v":"مسلمه"},null,null,null,null,8]
[9,{"$f":"IFERROR(INDEX(بنين!$C$10:$C$512,SMALL(IF(بنين!$D$10:$D$512=$G$8,IF(بنين!$F$10:$F$512=$S$3,ROW($D$10:$D$512)-ROW($D$10)+1)),ROWS($B$10:B18))),\"\")","v":"احمد حسن جمعه ابوالغيط"},{"$f":"IFERROR(INDEX(بنين!$E$10:$E$512,SMALL(IF(بنين!$D$10:$D$512=$G$8,IF(بنين!$F$10:$F$512=$S$3,ROW($D$10:$D$512)-ROW($D$10)+1)),ROWS($B$10:C18))),\"\")","v":"مستجد"},{"$f":"IFERROR(INDEX(بنين!$F$10:$F$512,SMALL(IF(بنين!$D$10:$D$512=$G$8,IF(بنين!$F$10:$F$512=$S$3,ROW($D$10:$D$512)-ROW($D$10)+1)),ROWS($B$10:D18))),\"\")","v":"ذكر "},{"$f":"IFERROR(INDEX(بنين!$G$10:$G$512,SMALL(IF(بنين!$D$10:$D$512=$G$8,IF(بنين!$F$10:$F$512=$S$3,ROW($D$10:$D$512)-ROW($D$10)+1)),ROWS($B$10:E18))),\"\")","v":"مسلم"},37,{"$f":"IFERROR(INDEX(بنين!$C$10:$C$512,SMALL(IF(بنين!$D$10:$D$512=$G$8,IF(بنين!$F$10:$F$512=$S$4,ROW($D$10:$D$512)-ROW($D$10)+1)),ROWS($B$10:G18))),\"\")","v":"اسماء محمد محمد محمد عاصى"},{"$f":"IFERROR(INDEX(بنين!$E$10:$E$512,SMALL(IF(بنين!$D$10:$D$512=$G$8,IF(بنين!$F$10:$F$512=$S$4,ROW($D$10:$D$512)-ROW($D$10)+1)),ROWS($B$10:H18))),\"\")","v":"مستجدة"},{"$f":"IFERROR(INDEX(بنين!$F$10:$F$512,SMALL(IF(بنين!$D$10:$D$512=$G$8,IF(بنين!$F$10:$F$512=$S$4,ROW($D$10:$D$512)-ROW($D$10)+1)),ROWS($B$10:I18))),\"\")","v":"انثى"},{"$f":"IFERROR(INDEX(بنين!$G$10:$G$512,SMALL(IF(بنين!$D$10:$D$512=$G$8,IF(بنين!$F$10:$F$512=$S$4,ROW($D$10:$D$512)-ROW($D$10)+1)),ROWS($B$10:J18))),\"\")","v":"مسلمه"},null,null,null,null,9]
[10,{"$f":"IFERROR(INDEX(بنين!$C$10:$C$512,SMALL(IF(بنين!$D$10:$D$512=$G$8,IF(بنين!$F$10:$F$512=$S$3,ROW($D$10:$D$512)-ROW($D$10)+1)),ROWS($B$10:B19))),\"\")","v":"احمد رافت مصطفى احمد على"},{"$f":"IFERROR(INDEX(بنين!$E$10:$E$512,SMALL(IF(بنين!$D$10:$D$512=$G$8,IF(بنين!$F$10:$F$512=$S$3,ROW($D$10:$D$512)-ROW($D$10)+1)),ROWS($B$10:C19))),\"\")","v":"مستجد"},{"$f":"IFERROR(INDEX(بنين!$F$10:$F$512,SMALL(IF(بنين!$D$10:$D$512=$G$8,IF(بنين!$F$10:$F$512=$S$3,ROW($D$10:$D$512)-ROW($D$10)+1)),ROWS($B$10:D19))),\"\")","v":"ذكر "},{"$f":"IFERROR(INDEX(بنين!$G$10:$G$512,SMALL(IF(بنين!$D$10:$D$512=$G$8,IF(بنين!$F$10:$F$512=$S$3,ROW($D$10:$D$512)-ROW($D$10)+1)),ROWS($B$10:E19))),\"\")","v":"مسلم"},38,{"$f":"IFERROR(INDEX(بنين!$C$10:$C$512,SMALL(IF(بنين!$D$10:$D$512=$G$8,IF(بنين!$F$10:$F$512=$S$4,ROW($D$10:$D$512)-ROW($D$10)+1)),ROWS($B$10:G19))),\"\")","v":"اسماء ياسر عبدالمعطى على السيد"},{"$f":"IFERROR(INDEX(بنين!$E$10:$E$512,SMALL(IF(بنين!$D$10:$D$512=$G$8,IF(بنين!$F$10:$F$512=$S$4,ROW($D$10:$D$512)-ROW($D$10)+1)),ROWS($B$10:H19))),\"\")","v":"مستجدة"},{"$f":"IFERROR(INDEX(بنين!$F$10:$F$512,SMALL(IF(بنين!$D$10:$D$512=$G$8,IF(بنين!$F$10:$F$512=$S$4,ROW($D$10:$D$512)-ROW($D$10)+1)),ROWS($B$10:I19))),\"\")","v":"انثى"},{"$f":"IFERROR(INDEX(بنين!$G$10:$G$512,SMALL(IF(بنين!$D$10:$D$512=$G$8,IF(بنين!$F$10:$F$512=$S$4,ROW($D$10:$D$512)-ROW($D$10)+1)),ROWS($B$10:J19))),\"\")","v":"مسلمه"},null,null,null,null,10]
[11,{"$f":"IFERROR(INDEX(بنين!$C$10:$C$512,SMALL(IF(بنين!$D$10:$D$512=$G$8,IF(بنين!$F$10:$F$512=$S$3,ROW($D$10:$D$512)-ROW($D$10)+1)),ROWS($B$10:B20))),\"\")","v":"احمد رفعت سعد عامر"},{"$f":"IFERROR(INDEX(بنين!$E$10:$E$512,SMALL(IF(بنين!$D$10:$D$512=$G$8,IF(بنين!$F$10:$F$512=$S$3,ROW($D$10:$D$512)-ROW($D$10)+1)),ROWS($B$10:C20))),\"\")","v":"معيد"},{"$f":"IFERROR(INDEX(بنين!$F$10:$F$512,SMALL(IF(بنين!$D$10:$D$512=$G$8,IF(بنين!$F$10:$F$512=$S$3,ROW($D$10:$D$512)-ROW($D$10)+1)),ROWS($B$10:D20))),\"\")","v":"ذكر "},{"$f":"IFERROR(INDEX(بنين!$G$10:$G$512,SMALL(IF(بنين!$D$10:$D$512=$G$8,IF(بنين!$F$10:$F$512=$S$3,ROW($D$10:$D$512)-ROW($D$10)+1)),ROWS($B$10:E20))),\"\")","v":"مسلم"},39,{"$f":"IFERROR(INDEX(بنين!$C$10:$C$512,SMALL(IF(بنين!$D$10:$D$512=$G$8,IF(بنين!$F$10:$F$512=$S$4,ROW($D$10:$D$512)-ROW($D$10)+1)),ROWS($B$10:G20))),\"\")","v":"اسماء يوسف العزب يوسف"},{"$f":"IFERROR(INDEX(بنين!$E$10:$E$512,SMALL(IF(بنين!$D$10:$D$512=$G$8,IF(بنين!$F$10:$F$512=$S$4,ROW($D$10:$D$512)-ROW($D$10)+1)),ROWS($B$10:H20))),\"\")","v":"مستجدة"},{"$f":"IFERROR(INDEX(بنين!$F$10:$F$512,SMALL(IF(بنين!$D$10:$D$512=$G$8,IF(بنين!$F$10:$F$512=$S$4,ROW($D$10:$D$512)-ROW($D$10)+1)),ROWS($B$10:I20))),\"\")","v":"انثى"},{"$f":"IFERROR(INDEX(بنين!$G$10:$G$512,SMALL(IF(بنين!$D$10:$D$512=$G$8,IF(بنين!$F$10:$F$512=$S$4,ROW($D$10:$D$512)-ROW($D$10)+1)),ROWS($B$10:J20))),\"\")","v":"مسلمه"},null,null,null,null,11]
[12,{"$f":"IFERROR(INDEX(بنين!$C$10:$C$512,SMALL(IF(بنين!$D$10:$D$512=$G$8,IF(بنين!$F$10:$F$512=$S$3,ROW($D$10:$D$512)-ROW($D$10)+1)),ROWS($B$10:B21))),\"\")","v":"احمد طارق صبحى احمد اليمانى"},{"$f":"IFERROR(INDEX(بنين!$E$10:$E$512,SMALL(IF(بنين!$D$10:$D$512=$G$8,IF(بنين!$F$10:$F$512=$S$3,ROW($D$10:$D$512)-ROW($D$10)+1)),ROWS($B$10:C21))),\"\")","v":"مستجد"},{"$f":"IFERROR(INDEX(بنين!$F$10:$F$512,SMALL(IF(بنين!$D$10:$D$512=$G$8,IF(بنين!$F$10:$F$512=$S$3,ROW($D$10:$D$512)-ROW($D$10)+1)),ROWS($B$10:D21))),\"\")","v":"ذكر "},{"$f":"IFERROR(INDEX(بنين!$G$10:$G$512,SMALL(IF(بنين!$D$10:$D$512=$G$8,IF(بنين!$F$10:$F$512=$S$3,ROW($D$10:$D$512)-ROW($D$10)+1)),ROWS($B$10:E21))),\"\")","v":"مسلم"},40,{"$f":"IFERROR(INDEX(بنين!$C$10:$C$512,SMALL(IF(بنين!$D$10:$D$512=$G$8,IF(بنين!$F$10:$F$512=$S$4,ROW($D$10:$D$512)-ROW($D$10)+1)),ROWS($B$10:G21))),\"\")","v":"اكرام ربيع سعد السيد النبوى"},{"$f":"IFERROR(INDEX(بنين!$E$10:$E$512,SMALL(IF(بنين!$D$10:$D$512=$G$8,IF(بنين!$F$10:$F$512=$S$4,ROW($D$10:$D$512)-ROW($D$10)+1)),ROWS($B$10:H21))),\"\")","v":"مستجدة"},{"$f":"IFERROR(INDEX(بنين!$F$10:$F$512,SMALL(IF(بنين!$D$10:$D$512=$G$8,IF(بنين!$F$10:$F$512=$S$4,ROW($D$10:$D$512)-ROW($D$10)+1)),ROWS($B$10:I21))),\"\")","v":"انثى"},{"$f":"IFERROR(INDEX(بنين!$G$10:$G$512,SMALL(IF(بنين!$D$10:$D$512=$G$8,IF(بنين!$F$10:$F$512=$S$4,ROW($D$10:$D$512)-ROW($D$10)+1)),ROWS($B$10:J21))),\"\")","v":"مسلمه"},null,null,null,null,12]
[13,{"$f":"IFERROR(INDEX(بنين!$C$10:$C$512,SMALL(IF(بنين!$D$10:$D$512=$G$8,IF(بنين!$F$10:$F$512=$S$3,ROW($D$10:$D$512)-ROW($D$10)+1)),ROWS($B$10:B22))),\"\")","v":"احمد عبدالحميد محمد عبدالحميد على"},{"$f":"IFERROR(INDEX(بنين!$E$10:$E$512,SMALL(IF(بنين!$D$10:$D$512=$G$8,IF(بنين!$F$10:$F$512=$S$3,ROW($D$10:$D$512)-ROW($D$10)+1)),ROWS($B$10:C22))),\"\")","v":"مستجد"},{"$f":"IFERROR(INDEX(بنين!$F$10:$F$512,SMALL(IF(بنين!$D$10:$D$512=$G$8,IF(بنين!$F$10:$F$512=$S$3,ROW($D$10:$D$512)-ROW($D$10)+1)),ROWS($B$10:D22))),\"\")","v":"ذكر "},{"$f":"IFERROR(INDEX(بنين!$G$10:$G$512,SMALL(IF(بنين!$D$10:$D$512=$G$8,IF(بنين!$F$10:$F$512=$S$3,ROW($D$10:$D$512)-ROW($D$10)+1)),ROWS($B$10:E22))),\"\")","v":"مسلم"},41,{"$f":"IFERROR(INDEX(بنين!$C$10:$C$512,SMALL(IF(بنين!$D$10:$D$512=$G$8,IF(بنين!$F$10:$F$512=$S$4,ROW($D$10:$D$512)-ROW($D$10)+1)),ROWS($B$10:G22))),\"\")","v":"الاء صبرى صبحى عبدالحميدالهنداوى"},{"$f":"IFERROR(INDEX(بنين!$E$10:$E$512,SMALL(IF(بنين!$D$10:$D$512=$G$8,IF(بنين!$F$10:$F$512=$S$4,ROW($D$10:$D$512)-ROW($D$10)+1)),ROWS($B$10:H22))),\"\")","v":"مستجدة"},{"$f":"IFERROR(INDEX(بنين!$F$10:$F$512,SMALL(IF(بنين!$D$10:$D$512=$G$8,IF(بنين!$F$10:$F$512=$S$4,ROW($D$10:$D$512)-ROW($D$10)+1)),ROWS($B$10:I22))),\"\")","v":"انثى"},{"$f":"IFERROR(INDEX(بنين!$G$10:$G$512,SMALL(IF(بنين!$D$10:$D$512=$G$8,IF(بنين!$F$10:$F$512=$S$4,ROW($D$10:$D$512)-ROW($D$10)+1)),ROWS($B$10:J22))),\"\")","v":"مسلمه"},null,null,null,null,13]
[14,{"$f":"IFERROR(INDEX(بنين!$C$10:$C$512,SMALL(IF(بنين!$D$10:$D$512=$G$8,IF(بنين!$F$10:$F$512=$S$3,ROW($D$10:$D$512)-ROW($D$10)+1)),ROWS($B$10:B23))),\"\")","v":"احمد عبدالسيد رمضان عبدالسيد"},{"$f":"IFERROR(INDEX(بنين!$E$10:$E$512,SMALL(IF(بنين!$D$10:$D$512=$G$8,IF(بنين!$F$10:$F$512=$S$3,ROW($D$10:$D$512)-ROW($D$10)+1)),ROWS($B$10:C23))),\"\")","v":"مستجد"},{"$f":"IFERROR(INDEX(بنين!$F$10:$F$512,SMALL(IF(بنين!$D$10:$D$512=$G$8,IF(بنين!$F$10:$F$512=$S$3,ROW($D$10:$D$512)-ROW($D$10)+1)),ROWS($B$10:D23))),\"\")","v":"ذكر "},{"$f":"IFERROR(INDEX(بنين!$G$10:$G$512,SMALL(IF(بنين!$D$10:$D$512=$G$8,IF(بنين!$F$10:$F$512=$S$3,ROW($D$10:$D$512)-ROW($D$10)+1)),ROWS($B$10:E23))),\"\")","v":"مسلم"},42,{"$f":"IFERROR(INDEX(بنين!$C$10:$C$512,SMALL(IF(بنين!$D$10:$D$512=$G$8,IF(بنين!$F$10:$F$512=$S$4,ROW($D$10:$D$512)-ROW($D$10)+1)),ROWS($B$10:G23))),\"\")","v":"الاء محمد رافت محمد"},{"$f":"IFERROR(INDEX(بنين!$E$10:$E$512,SMALL(IF(بنين!$D$10:$D$512=$G$8,IF(بنين!$F$10:$F$512=$S$4,ROW($D$10:$D$512)-ROW($D$10)+1)),ROWS($B$10:H23))),\"\")","v":"معيدة"},{"$f":"IFERROR(INDEX(بنين!$F$10:$F$512,SMALL(IF(بنين!$D$10:$D$512=$G$8,IF(بنين!$F$10:$F$512=$S$4,ROW($D$10:$D$512)-ROW($D$10)+1)),ROWS($B$10:I23))),\"\")","v":"انثى"},{"$f":"IFERROR(INDEX(بنين!$G$10:$G$512,SMALL(IF(بنين!$D$10:$D$512=$G$8,IF(بنين!$F$10:$F$512=$S$4,ROW($D$10:$D$512)-ROW($D$10)+1)),ROWS($B$10:J23))),\"\")","v":"مسلمه"},null,null,null,null,14]
[15,{"$f":"IFERROR(INDEX(بنين!$C$10:$C$512,SMALL(IF(بنين!$D$10:$D$512=$G$8,IF(بنين!$F$10:$F$512=$S$3,ROW($D$10:$D$512)-ROW($D$10)+1)),ROWS($B$10:B24))),\"\")","v":"احمد عبداللطيف محمد عبداللطيف المرسى"},{"$f":"IFERROR(INDEX(بنين!$E$10:$E$512,SMALL(IF(بنين!$D$10:$D$512=$G$8,IF(بنين!$F$10:$F$512=$S$3,ROW($D$10:$D$512)-ROW($D$10)+1)),ROWS($B$10:C24))),\"\")","v":"مستجد"},{"$f":"IFERROR(INDEX(بنين!$F$10:$F$512,SMALL(IF(بنين!$D$10:$D$512=$G$8,IF(بنين!$F$10:$F$512=$S$3,ROW($D$10:$D$512)-ROW($D$10)+1)),ROWS($B$10:D24))),\"\")","v":"ذكر "},{"$f":"IFERROR(INDEX(بنين!$G$10:$G$512,SMALL(IF(بنين!$D$10:$D$512=$G$8,IF(بنين!$F$10:$F$512=$S$3,ROW($D$10:$D$512)-ROW($D$10)+1)),ROWS($B$10:E24))),\"\")","v":"مسلم"},43,{"$f":"IFERROR(INDEX(بنين!$C$10:$C$512,SMALL(IF(بنين!$D$10:$D$512=$G$8,IF(بنين!$F$10:$F$512=$S$4,ROW($D$10:$D$512)-ROW($D$10)+1)),ROWS($B$10:G24))),\"\")","v":"ام كلثوم على احمد عاصم جوده"},{"$f":"IFERROR(INDEX(بنين!$E$10:$E$512,SMALL(IF(بنين!$D$10:$D$512=$G$8,IF(بنين!$F$10:$F$512=$S$4,ROW($D$10:$D$512)-ROW($D$10)+1)),ROWS($B$10:H24))),\"\")","v":"مستجدة"},{"$f":"IFERROR(INDEX(بنين!$F$10:$F$512,SMALL(IF(بنين!$D$10:$D$512=$G$8,IF(بنين!$F$10:$F$512=$S$4,ROW($D$10:$D$512)-ROW($D$10)+1)),ROWS($B$10:I24))),\"\")","v":"انثى"},{"$f":"IFERROR(INDEX(بنين!$G$10:$G$512,SMALL(IF(بنين!$D$10:$D$512=$G$8,IF(بنين!$F$10:$F$512=$S$4,ROW($D$10:$D$512)-ROW($D$10)+1)),ROWS($B$10:J24))),\"\")","v":"مسلمه"},null,null,null,null,15]
[16,{"$f":"IFERROR(INDEX(بنين!$C$10:$C$512,SMALL(IF(بنين!$D$10:$D$512=$G$8,IF(بنين!$F$10:$F$512=$S$3,ROW($D$10:$D$512)-ROW($D$10)+1)),ROWS($B$10:B25))),\"\")","v":"احمد عبدالمنعم عبدالمنعم احمد"},{"$f":"IFERROR(INDEX(بنين!$E$10:$E$512,SMALL(IF(بنين!$D$10:$D$512=$G$8,IF(بنين!$F$10:$F$512=$S$3,ROW($D$10:$D$512)-ROW($D$10)+1)),ROWS($B$10:C25))),\"\")","v":"مستجد"},{"$f":"IFERROR(INDEX(بنين!$F$10:$F$512,SMALL(IF(بنين!$D$10:$D$512=$G$8,IF(بنين!$F$10:$F$512=$S$3,ROW($D$10:$D$512)-ROW($D$10)+1)),ROWS($B$10:D25))),\"\")","v":"ذكر "},{"$f":"IFERROR(INDEX(بنين!$G$10:$G$512,SMALL(IF(بنين!$D$10:$D$512=$G$8,IF(بنين!$F$10:$F$512=$S$3,ROW($D$10:$D$512)-ROW($D$10)+1)),ROWS($B$10:E25))),\"\")","v":"مسلم"},44,{"$f":"IFERROR(INDEX(بنين!$C$10:$C$512,SMALL(IF(بنين!$D$10:$D$512=$G$8,IF(بنين!$F$10:$F$512=$S$4,ROW($D$10:$D$512)-ROW($D$10)+1)),ROWS($B$10:G25))),\"\")","v":"امانى السيد ادم على عبدالعاطى"},{"$f":"IFERROR(INDEX(بنين!$E$10:$E$512,SMALL(IF(بنين!$D$10:$D$512=$G$8,IF(بنين!$F$10:$F$512=$S$4,ROW($D$10:$D$512)-ROW($D$10)+1)),ROWS($B$10:H25))),\"\")","v":"مستجدة"},{"$f":"IFERROR(INDEX(بنين!$F$10:$F$512,SMALL(IF(بنين!$D$10:$D$512=$G$8,IF(بنين!$F$10:$F$512=$S$4,ROW($D$10:$D$512)-ROW($D$10)+1)),ROWS($B$10:I25))),\"\")","v":"انثى"},{"$f":"IFERROR(INDEX(بنين!$G$10:$G$512,SMALL(IF(بنين!$D$10:$D$512=$G$8,IF(بنين!$F$10:$F$512=$S$4,ROW($D$10:$D$512)-ROW($D$10)+1)),ROWS($B$10:J25))),\"\")","v":"مسلمه"},null,null,null,null,16]
[17,{"$f":"IFERROR(INDEX(بنين!$C$10:$C$512,SMALL(IF(بنين!$D$10:$D$512=$G$8,IF(بنين!$F$10:$F$512=$S$3,ROW($D$10:$D$512)-ROW($D$10)+1)),ROWS($B$10:B26))),\"\")","v":"اسلام اشرف على محمد عبدالرازق"},{"$f":"IFERROR(INDEX(بنين!$E$10:$E$512,SMALL(IF(بنين!$D$10:$D$512=$G$8,IF(بنين!$F$10:$F$512=$S$3,ROW($D$10:$D$512)-ROW($D$10)+1)),ROWS($B$10:C26))),\"\")","v":"مستجد"},{"$f":"IFERROR(INDEX(بنين!$F$10:$F$512,SMALL(IF(بنين!$D$10:$D$512=$G$8,IF(بنين!$F$10:$F$512=$S$3,ROW($D$10:$D$512)-ROW($D$10)+1)),ROWS($B$10:D26))),\"\")","v":"ذكر "},{"$f":"IFERROR(INDEX(بنين!$G$10:$G$512,SMALL(IF(بنين!$D$10:$D$512=$G$8,IF(بنين!$F$10:$F$512=$S$3,ROW($D$10:$D$512)-ROW($D$10)+1)),ROWS($B$10:E26))),\"\")","v":"مسلم"},45,{"$f":"IFERROR(INDEX(بنين!$C$10:$C$512,SMALL(IF(بنين!$D$10:$D$512=$G$8,IF(بنين!$F$10:$F$512=$S$4,ROW($D$10:$D$512)-ROW($D$10)+1)),ROWS($B$10:G26))),\"\")","v":"ايمان البدراوى محمود البدراوى الحايس"},{"$f":"IFERROR(INDEX(بنين!$E$10:$E$512,SMALL(IF(بنين!$D$10:$D$512=$G$8,IF(بنين!$F$10:$F$512=$S$4,ROW($D$10:$D$512)-ROW($D$10)+1)),ROWS($B$10:H26))),\"\")","v":"مستجدة"},{"$f":"IFERROR(INDEX(بنين!$F$10:$F$512,SMALL(IF(بنين!$D$10:$D$512=$G$8,IF(بنين!$F$10:$F$512=$S$4,ROW($D$10:$D$512)-ROW($D$10)+1)),ROWS($B$10:I26))),\"\")","v":"انثى"},{"$f":"IFERROR(INDEX(بنين!$G$10:$G$512,SMALL(IF(بنين!$D$10:$D$512=$G$8,IF(بنين!$F$10:$F$512=$S$4,ROW($D$10:$D$512)-ROW($D$10)+1)),ROWS($B$10:J26))),\"\")","v":"مسلمه"},null,null,null,null,17]
[18,{"$f":"IFERROR(INDEX(بنين!$C$10:$C$512,SMALL(IF(بنين!$D$10:$D$512=$G$8,IF(بنين!$F$10:$F$512=$S$3,ROW($D$10:$D$512)-ROW($D$10)+1)),ROWS($B$10:B27))),\"\")","v":"السيد يحى محمد احمد داود"},{"$f":"IFERROR(INDEX(بنين!$E$10:$E$512,SMALL(IF(بنين!$D$10:$D$512=$G$8,IF(بنين!$F$10:$F$512=$S$3,ROW($D$10:$D$512)-ROW($D$10)+1)),ROWS($B$10:C27))),\"\")","v":"مستجد"},{"$f":"IFERROR(INDEX(بنين!$F$10:$F$512,SMALL(IF(بنين!$D$10:$D$512=$G$8,IF(بنين!$F$10:$F$512=$S$3,ROW($D$10:$D$512)-ROW($D$10)+1)),ROWS($B$10:D27))),\"\")","v":"ذكر "},{"$f":"IFERROR(INDEX(بنين!$G$10:$G$512,SMALL(IF(بنين!$D$10:$D$512=$G$8,IF(بنين!$F$10:$F$512=$S$3,ROW($D$10:$D$512)-ROW($D$10)+1)),ROWS($B$10:E27))),\"\")","v":"مسلم"},46,{"$f":"IFERROR(INDEX(بنين!$C$10:$C$512,SMALL(IF(بنين!$D$10:$D$512=$G$8,IF(بنين!$F$10:$F$512=$S$4,ROW($D$10:$D$512)-ROW($D$10)+1)),ROWS($B$10:G27))),\"\")","v":"ايمان محمد فوزى عبدالمطلب دبور"},{"$f":"IFERROR(INDEX(بنين!$E$10:$E$512,SMALL(IF(بنين!$D$10:$D$512=$G$8,IF(بنين!$F$10:$F$512=$S$4,ROW($D$10:$D$512)-ROW($D$10)+1)),ROWS($B$10:H27))),\"\")","v":"مستجدة"},{"$f":"IFERROR(INDEX(بنين!$F$10:$F$512,SMALL(IF(بنين!$D$10:$D$512=$G$8,IF(بنين!$F$10:$F$512=$S$4,ROW($D$10:$D$512)-ROW($D$10)+1)),ROWS($B$10:I27))),\"\")","v":"انثى"},{"$f":"IFERROR(INDEX(بنين!$G$10:$G$512,SMALL(IF(بنين!$D$10:$D$512=$G$8,IF(بنين!$F$10:$F$512=$S$4,ROW($D$10:$D$512)-ROW($D$10)+1)),ROWS($B$10:J27))),\"\")","v":"مسلمه"},null,null,null,null,18]
[19,{"$f":"IFERROR(INDEX(بنين!$C$10:$C$512,SMALL(IF(بنين!$D$10:$D$512=$G$8,IF(بنين!$F$10:$F$512=$S$3,ROW($D$10:$D$512)-ROW($D$10)+1)),ROWS($B$10:B28))),\"\")","v":"المعتصم عبدالحميد عبداللطيف عبدالحميد"},{"$f":"IFERROR(INDEX(بنين!$E$10:$E$512,SMALL(IF(بنين!$D$10:$D$512=$G$8,IF(بنين!$F$10:$F$512=$S$3,ROW($D$10:$D$512)-ROW($D$10)+1)),ROWS($B$10:C28))),\"\")","v":"مستجد"},{"$f":"IFERROR(INDEX(بنين!$F$10:$F$512,SMALL(IF(بنين!$D$10:$D$512=$G$8,IF(بنين!$F$10:$F$512=$S$3,ROW($D$10:$D$512)-ROW($D$10)+1)),ROWS($B$10:D28))),\"\")","v":"ذكر "},{"$f":"IFERROR(INDEX(بنين!$G$10:$G$512,SMALL(IF(بنين!$D$10:$D$512=$G$8,IF(بنين!$F$10:$F$512=$S$3,ROW($D$10:$D$512)-ROW($D$10)+1)),ROWS($B$10:E28))),\"\")","v":"مسلم"},47,{"$f":"IFERROR(INDEX(بنين!$C$10:$C$512,SMALL(IF(بنين!$D$10:$D$512=$G$8,IF(بنين!$F$10:$F$512=$S$4,ROW($D$10:$D$512)-ROW($D$10)+1)),ROWS($B$10:G28))),\"\")","v":"ايه راضى سعد حواش"},{"$f":"IFERROR(INDEX(بنين!$E$10:$E$512,SMALL(IF(بنين!$D$10:$D$512=$G$8,IF(بنين!$F$10:$F$512=$S$4,ROW($D$10:$D$512)-ROW($D$10)+1)),ROWS($B$10:H28))),\"\")","v":"مستجدة"},{"$f":"IFERROR(INDEX(بنين!$F$10:$F$512,SMALL(IF(بنين!$D$10:$D$512=$G$8,IF(بنين!$F$10:$F$512=$S$4,ROW($D$10:$D$512)-ROW($D$10)+1)),ROWS($B$10:I28))),\"\")","v":"انثى"},{"$f":"IFERROR(INDEX(بنين!$G$10:$G$512,SMALL(IF(بنين!$D$10:$D$512=$G$8,IF(بنين!$F$10:$F$512=$S$4,ROW($D$10:$D$512)-ROW($D$10)+1)),ROWS($B$10:J28))),\"\")","v":"مسلمه"},null,null,null,null,19]
[20,{"$f":"IFERROR(INDEX(بنين!$C$10:$C$512,SMALL(IF(بنين!$D$10:$D$512=$G$8,IF(بنين!$F$10:$F$512=$S$3,ROW($D$10:$D$512)-ROW($D$10)+1)),ROWS($B$10:B29))),\"\")","v":"جلال شعبان كامل شعبان الامام"},{"$f":"IFERROR(INDEX(بنين!$E$10:$E$512,SMALL(IF(بنين!$D$10:$D$512=$G$8,IF(بنين!$F$10:$F$512=$S$3,ROW($D$10:$D$512)-ROW($D$10)+1)),ROWS($B$10:C29))),\"\")","v":"مستجد"},{"$f":"IFERROR(INDEX(بنين!$F$10:$F$512,SMALL(IF(بنين!$D$10:$D$512=$G$8,IF(بنين!$F$10:$F$512=$S$3,ROW($D$10:$D$512)-ROW($D$10)+1)),ROWS($B$10:D29))),\"\")","v":"ذكر "},{"$f":"IFERROR(INDEX(بنين!$G$10:$G$512,SMALL(IF(بنين!$D$10:$D$512=$G$8,IF(بنين!$F$10:$F$512=$S$3,ROW($D$10:$D$512)-ROW($D$10)+1)),ROWS($B$10:E29))),\"\")","v":"مسلم"},48,{"$f":"IFERROR(INDEX(بنين!$C$10:$C$512,SMALL(IF(بنين!$D$10:$D$512=$G$8,IF(بنين!$F$10:$F$512=$S$4,ROW($D$10:$D$512)-ROW($D$10)+1)),ROWS($B$10:G29))),\"\")","v":"بسنت زيدان جمعه بديرعبدالله"},{"$f":"IFERROR(INDEX(بنين!$E$10:$E$512,SMALL(IF(بنين!$D$10:$D$512=$G$8,IF(بنين!$F$10:$F$512=$S$4,ROW($D$10:$D$512)-ROW($D$10)+1)),ROWS($B$10:H29))),\"\")","v":"مستجدة"},{"$f":"IFERROR(INDEX(بنين!$F$10:$F$512,SMALL(IF(بنين!$D$10:$D$512=$G$8,IF(بنين!$F$10:$F$512=$S$4,ROW($D$10:$D$512)-ROW($D$10)+1)),ROWS($B$10:I29))),\"\")","v":"انثى"},{"$f":"IFERROR(INDEX(بنين!$G$10:$G$512,SMALL(IF(بنين!$D$10:$D$512=$G$8,IF(بنين!$F$10:$F$512=$S$4,ROW($D$10:$D$512)-ROW($D$10)+1)),ROWS($B$10:J29))),\"\")","v":"مسلمه"},null,null,null,null,20]
[21,{"$f":"IFERROR(INDEX(بنين!$C$10:$C$512,SMALL(IF(بنين!$D$10:$D$512=$G$8,IF(بنين!$F$10:$F$512=$S$3,ROW($D$10:$D$512)-ROW($D$10)+1)),ROWS($B$10:B30))),\"\")","v":"جمال طارق محمد سليمان القشلان"},{"$f":"IFERROR(INDEX(بنين!$E$10:$E$512,SMALL(IF(بنين!$D$10:$D$512=$G$8,IF(بنين!$F$10:$F$512=$S$3,ROW($D$10:$D$512)-ROW($D$10)+1)),ROWS($B$10:C30))),\"\")","v":"مستجد"},{"$f":"IFERROR(INDEX(بنين!$F$10:$F$512,SMALL(IF(بنين!$D$10:$D$512=$G$8,IF(بنين!$F$10:$F$512=$S$3,ROW($D$10:$D$512)-ROW($D$10)+1)),ROWS($B$10:D30))),\"\")","v":"ذكر "},{"$f":"IFERROR(INDEX(بنين!$G$10:$G$512,SMALL(IF(بنين!$D$10:$D$512=$G$8,IF(بنين!$F$10:$F$512=$S$3,ROW($D$10:$D$512)-ROW($D$10)+1)),ROWS($B$10:E30))),\"\")","v":"مسلم"},49,{"$f":"IFERROR(INDEX(بنين!$C$10:$C$512,SMALL(IF(بنين!$D$10:$D$512=$G$8,IF(بنين!$F$10:$F$512=$S$4,ROW($D$10:$D$512)-ROW($D$10)+1)),ROWS($B$10:G30))),\"\")","v":"بسنت عبدالمنعم محمد عبدالمنعم احمد القصبى"},{"$f":"IFERROR(INDEX(بنين!$E$10:$E$512,SMALL(IF(بنين!$D$10:$D$512=$G$8,IF(بنين!$F$10:$F$512=$S$4,ROW($D$10:$D$512)-ROW($D$10)+1)),ROWS($B$10:H30))),\"\")","v":"مستجدة"},{"$f":"IFERROR(INDEX(بنين!$F$10:$F$512,SMALL(IF(بنين!$D$10:$D$512=$G$8,IF(بنين!$F$10:$F$512=$S$4,ROW($D$10:$D$512)-ROW($D$10)+1)),ROWS($B$10:I30))),\"\")","v":"انثى"},{"$f":"IFERROR(INDEX(بنين!$G$10:$G$512,SMALL(IF(بنين!$D$10:$D$512=$G$8,IF(بنين!$F$10:$F$512=$S$4,ROW($D$10:$D$512)-ROW($D$10)+1)),ROWS($B$10:J30))),\"\")","v":"مسلمه"},null,null,null,null,21]
[22,{"$f":"IFERROR(INDEX(بنين!$C$10:$C$512,SMALL(IF(بنين!$D$10:$D$512=$G$8,IF(بنين!$F$10:$F$512=$S$3,ROW($D$10:$D$512)-ROW($D$10)+1)),ROWS($B$10:B31))),\"\")","v":"جميل محمد جميل عبدالفتاح"},{"$f":"IFERROR(INDEX(بنين!$E$10:$E$512,SMALL(IF(بنين!$D$10:$D$512=$G$8,IF(بنين!$F$10:$F$512=$S$3,ROW($D$10:$D$512)-ROW($D$10)+1)),ROWS($B$10:C31))),\"\")","v":"معيد"},{"$f":"IFERROR(INDEX(بنين!$F$10:$F$512,SMALL(IF(بنين!$D$10:$D$512=$G$8,IF(بنين!$F$10:$F$512=$S$3,ROW($D$10:$D$512)-ROW($D$10)+1)),ROWS($B$10:D31))),\"\")","v":"ذكر "},{"$f":"IFERROR(INDEX(بنين!$G$10:$G$512,SMALL(IF(بنين!$D$10:$D$512=$G$8,IF(بنين!$F$10:$F$512=$S$3,ROW($D$10:$D$512)-ROW($D$10)+1)),ROWS($B$10:E31))),\"\")","v":"مسلم"},50,{"$f":"IFERROR(INDEX(بنين!$C$10:$C$512,SMALL(IF(بنين!$D$10:$D$512=$G$8,IF(بنين!$F$10:$F$512=$S$4,ROW($D$10:$D$512)-ROW($D$10)+1)),ROWS($B$10:G31))),\"\")","v":"تسنيم احمد توفيق ابراهيم"},{"$f":"IFERROR(INDEX(بنين!$E$10:$E$512,SMALL(IF(بنين!$D$10:$D$512=$G$8,IF(بنين!$F$10:$F$512=$S$4,ROW($D$10:$D$512)-ROW($D$10)+1)),ROWS($B$10:H31))),\"\")","v":"مستجدة"},{"$f":"IFERROR(INDEX(بنين!$F$10:$F$512,SMALL(IF(بنين!$D$10:$D$512=$G$8,IF(بنين!$F$10:$F$512=$S$4,ROW($D$10:$D$512)-ROW($D$10)+1)),ROWS($B$10:I31))),\"\")","v":"انثى"},{"$f":"IFERROR(INDEX(بنين!$G$10:$G$512,SMALL(IF(بنين!$D$10:$D$512=$G$8,IF(بنين!$F$10:$F$512=$S$4,ROW($D$10:$D$512)-ROW($D$10)+1)),ROWS($B$10:J31))),\"\")","v":"مسلمه"},null,null,null,null,22]
[23,{"$f":"IFERROR(INDEX(بنين!$C$10:$C$512,SMALL(IF(بنين!$D$10:$D$512=$G$8,IF(بنين!$F$10:$F$512=$S$3,ROW($D$10:$D$512)-ROW($D$10)+1)),ROWS($B$10:B32))),\"\")","v":"حسن طارق البندارى عبدالفتاح"},{"$f":"IFERROR(INDEX(بنين!$E$10:$E$512,SMALL(IF(بنين!$D$10:$D$512=$G$8,IF(بنين!$F$10:$F$512=$S$3,ROW($D$10:$D$512)-ROW($D$10)+1)),ROWS($B$10:C32))),\"\")","v":"معيد"},{"$f":"IFERROR(INDEX(بنين!$F$10:$F$512,SMALL(IF(بنين!$D$10:$D$512=$G$8,IF(بنين!$F$10:$F$512=$S$3,ROW($D$10:$D$512)-ROW($D$10)+1)),ROWS($B$10:D32))),\"\")","v":"ذكر "},{"$f":"IFERROR(INDEX(بنين!$G$10:$G$512,SMALL(IF(بنين!$D$10:$D$512=$G$8,IF(بنين!$F$10:$F$512=$S$3,ROW($D$10:$D$512)-ROW($D$10)+1)),ROWS($B$10:E32))),\"\")","v":"مسلم"},51,{"$f":"IFERROR(INDEX(بنين!$C$10:$C$512,SMALL(IF(بنين!$D$10:$D$512=$G$8,IF(بنين!$F$10:$F$512=$S$4,ROW($D$10:$D$512)-ROW($D$10)+1)),ROWS($B$10:G32))),\"\")","v":"ثريا واصل ابوبكر عبدالحليم"},{"$f":"IFERROR(INDEX(بنين!$E$10:$E$512,SMALL(IF(بنين!$D$10:$D$512=$G$8,IF(بنين!$F$10:$F$512=$S$4,ROW($D$10:$D$512)-ROW($D$10)+1)),ROWS($B$10:H32))),\"\")","v":"مستجدة"},{"$f":"IFERROR(INDEX(بنين!$F$10:$F$512,SMALL(IF(بنين!$D$10:$D$512=$G$8,IF(بنين!$F$10:$F$512=$S$4,ROW($D$10:$D$512)-ROW($D$10)+1)),ROWS($B$10:I32))),\"\")","v":"انثى"},{"$f":"IFERROR(INDEX(بنين!$G$10:$G$512,SMALL(IF(بنين!$D$10:$D$512=$G$8,IF(بنين!$F$10:$F$512=$S$4,ROW($D$10:$D$512)-ROW($D$10)+1)),ROWS($B$10:J32))),\"\")","v":"مسلمه"},null,null,null,null,23]
[24,{"$f":"IFERROR(INDEX(بنين!$C$10:$C$512,SMALL(IF(بنين!$D$10:$D$512=$G$8,IF(بنين!$F$10:$F$512=$S$3,ROW($D$10:$D$512)-ROW($D$10)+1)),ROWS($B$10:B33))),\"\")","v":"حسن عبدالعزيز حسن عبدالغنى"},{"$f":"IFERROR(INDEX(بنين!$E$10:$E$512,SMALL(IF(بنين!$D$10:$D$512=$G$8,IF(بنين!$F$10:$F$512=$S$3,ROW($D$10:$D$512)-ROW($D$10)+1)),ROWS($B$10:C33))),\"\")","v":"مستجد"},{"$f":"IFERROR(INDEX(بنين!$F$10:$F$512,SMALL(IF(بنين!$D$10:$D$512=$G$8,IF(بنين!$F$10:$F$512=$S$3,ROW($D$10:$D$512)-ROW($D$10)+1)),ROWS($B$10:D33))),\"\")","v":"ذكر "},{"$f":"IFERROR(INDEX(بنين!$G$10:$G$512,SMALL(IF(بنين!$D$10:$D$512=$G$8,IF(بنين!$F$10:$F$512=$S$3,ROW($D$10:$D$512)-ROW($D$10)+1)),ROWS($B$10:E33))),\"\")","v":"مسلم"},52,{"$f":"IFERROR(INDEX(بنين!$C$10:$C$512,SMALL(IF(بنين!$D$10:$D$512=$G$8,IF(بنين!$F$10:$F$512=$S$4,ROW($D$10:$D$512)-ROW($D$10)+1)),ROWS($B$10:G33))),\"\")","v":"جيهان سامح فتحى محمود السيد الميوطى"},{"$f":"IFERROR(INDEX(بنين!$E$10:$E$512,SMALL(IF(بنين!$D$10:$D$512=$G$8,IF(بنين!$F$10:$F$512=$S$4,ROW($D$10:$D$512)-ROW($D$10)+1)),ROWS($B$10:H33))),\"\")","v":"مستجدة"},{"$f":"IFERROR(INDEX(بنين!$F$10:$F$512,SMALL(IF(بنين!$D$10:$D$512=$G$8,IF(بنين!$F$10:$F$512=$S$4,ROW($D$10:$D$512)-ROW($D$10)+1)),ROWS($B$10:I33))),\"\")","v":"انثى"},{"$f":"IFERROR(INDEX(بنين!$G$10:$G$512,SMALL(IF(بنين!$D$10:$D$512=$G$8,IF(بنين!$F$10:$F$512=$S$4,ROW($D$10:$D$512)-ROW($D$10)+1)),ROWS($B$10:J33))),\"\")","v":"مسلمه"},null,null,null,null,24]
[25,{"$f":"IFERROR(INDEX(بنين!$C$10:$C$512,SMALL(IF(بنين!$D$10:$D$512=$G$8,IF(بنين!$F$10:$F$512=$S$3,ROW($D$10:$D$512)-ROW($D$10)+1)),ROWS($B$10:B34))),\"\")","v":"حسن محمد ابراهيم السيد قوره"},{"$f":"IFERROR(INDEX(بنين!$E$10:$E$512,SMALL(IF(بنين!$D$10:$D$512=$G$8,IF(بنين!$F$10:$F$512=$S$3,ROW($D$10:$D$512)-ROW($D$10)+1)),ROWS($B$10:C34))),\"\")","v":"مستجد"},{"$f":"IFERROR(INDEX(بنين!$F$10:$F$512,SMALL(IF(بنين!$D$10:$D$512=$G$8,IF(بنين!$F$10:$F$512=$S$3,ROW($D$10:$D$512)-ROW($D$10)+1)),ROWS($B$10:D34))),\"\")","v":"ذكر "},{"$f":"IFERROR(INDEX(بنين!$G$10:$G$512,SMALL(IF(بنين!$D$10:$D$512=$G$8,IF(بنين!$F$10:$F$512=$S$3,ROW($D$10:$D$512)-ROW($D$10)+1)),ROWS($B$10:E34))),\"\")","v":"مسلم"},53,{"$f":"IFERROR(INDEX(بنين!$C$10:$C$512,SMALL(IF(بنين!$D$10:$D$512=$G$8,IF(بنين!$F$10:$F$512=$S$4,ROW($D$10:$D$512)-ROW($D$10)+1)),ROWS($B$10:G34))),\"\")","v":"حسناء السيد على السيد الحنفى"},{"$f":"IFERROR(INDEX(بنين!$E$10:$E$512,SMALL(IF(بنين!$D$10:$D$512=$G$8,IF(بنين!$F$10:$F$512=$S$4,ROW($D$10:$D$512)-ROW($D$10)+1)),ROWS($B$10:H34))),\"\")","v":"مستجدة"},{"$f":"IFERROR(INDEX(بنين!$F$10:$F$512,SMALL(IF(بنين!$D$10:$D$512=$G$8,IF(بنين!$F$10:$F$512=$S$4,ROW($D$10:$D$512)-ROW($D$10)+1)),ROWS($B$10:I34))),\"\")","v":"انثى"},{"$f":"IFERROR(INDEX(بنين!$G$10:$G$512,SMALL(IF(بنين!$D$10:$D$512=$G$8,IF(بنين!$F$10:$F$512=$S$4,ROW($D$10:$D$512)-ROW($D$10)+1)),ROWS($B$10:J34))),\"\")","v":"مسلمه"},null,null,null,null,25]
[26,{"$f":"IFERROR(INDEX(بنين!$C$10:$C$512,SMALL(IF(بنين!$D$10:$D$512=$G$8,IF(بنين!$F$10:$F$512=$S$3,ROW($D$10:$D$512)-ROW($D$10)+1)),ROWS($B$10:B35))),\"\")","v":"حمدى راضى عبدالونيس عطاالله"},{"$f":"IFERROR(INDEX(بنين!$E$10:$E$512,SMALL(IF(بنين!$D$10:$D$512=$G$8,IF(بنين!$F$10:$F$512=$S$3,ROW($D$10:$D$512)-ROW($D$10)+1)),ROWS($B$10:C35))),\"\")","v":"معيد"},{"$f":"IFERROR(INDEX(بنين!$F$10:$F$512,SMALL(IF(بنين!$D$10:$D$512=$G$8,IF(بنين!$F$10:$F$512=$S$3,ROW($D$10:$D$512)-ROW($D$10)+1)),ROWS($B$10:D35))),\"\")","v":"ذكر "},{"$f":"IFERROR(INDEX(بنين!$G$10:$G$512,SMALL(IF(بنين!$D$10:$D$512=$G$8,IF(بنين!$F$10:$F$512=$S$3,ROW($D$10:$D$512)-ROW($D$10)+1)),ROWS($B$10:E35))),\"\")","v":"مسلم"},54,{"$f":"IFERROR(INDEX(بنين!$C$10:$C$512,SMALL(IF(بنين!$D$10:$D$512=$G$8,IF(بنين!$F$10:$F$512=$S$4,ROW($D$10:$D$512)-ROW($D$10)+1)),ROWS($B$10:G35))),\"\")","v":"خديجه محب قدرى ابراهيم ميسره"},{"$f":"IFERROR(INDEX(بنين!$E$10:$E$512,SMALL(IF(بنين!$D$10:$D$512=$G$8,IF(بنين!$F$10:$F$512=$S$4,ROW($D$10:$D$512)-ROW($D$10)+1)),ROWS($B$10:H35))),\"\")","v":"مستجدة"},{"$f":"IFERROR(INDEX(بنين!$F$10:$F$512,SMALL(IF(بنين!$D$10:$D$512=$G$8,IF(بنين!$F$10:$F$512=$S$4,ROW($D$10:$D$512)-ROW($D$10)+1)),ROWS($B$10:I35))),\"\")","v":"انثى"},{"$f":"IFERROR(INDEX(بنين!$G$10:$G$512,SMALL(IF(بنين!$D$10:$D$512=$G$8,IF(بنين!$F$10:$F$512=$S$4,ROW($D$10:$D$512)-ROW($D$10)+1)),ROWS($B$10:J35))),\"\")","v":"مسلمه"},null,null,null,null,26]
[27,{"$f":"IFERROR(INDEX(بنين!$C$10:$C$512,SMALL(IF(بنين!$D$10:$D$512=$G$8,IF(بنين!$F$10:$F$512=$S$3,ROW($D$10:$D$512)-ROW($D$10)+1)),ROWS($B$10:B36))),\"\")","v":"خالد محمد ناسب عزالرجال"},{"$f":"IFERROR(INDEX(بنين!$E$10:$E$512,SMALL(IF(بنين!$D$10:$D$512=$G$8,IF(بنين!$F$10:$F$512=$S$3,ROW($D$10:$D$512)-ROW($D$10)+1)),ROWS($B$10:C36))),\"\")","v":"مستجد"},{"$f":"IFERROR(INDEX(بنين!$F$10:$F$512,SMALL(IF(بنين!$D$10:$D$512=$G$8,IF(بنين!$F$10:$F$512=$S$3,ROW($D$10:$D$512)-ROW($D$10)+1)),ROWS($B$10:D36))),\"\")","v":"ذكر "},{"$f":"IFERROR(INDEX(بنين!$G$10:$G$512,SMALL(IF(بنين!$D$10:$D$512=$G$8,IF(بنين!$F$10:$F$512=$S$3,ROW($D$10:$D$512)-ROW($D$10)+1)),ROWS($B$10:E36))),\"\")","v":"مسلم"},55,{"$f":"IFERROR(INDEX(بنين!$C$10:$C$512,SMALL(IF(بنين!$D$10:$D$512=$G$8,IF(بنين!$F$10:$F$512=$S$4,ROW($D$10:$D$512)-ROW($D$10)+1)),ROWS($B$10:G36))),\"\")","v":"خلود العراقى عبدالعزيز عبدربه قوره"},{"$f":"IFERROR(INDEX(بنين!$E$10:$E$512,SMALL(IF(بنين!$D$10:$D$512=$G$8,IF(بنين!$F$10:$F$512=$S$4,ROW($D$10:$D$512)-ROW($D$10)+1)),ROWS($B$10:H36))),\"\")","v":"مستجدة"},{"$f":"IFERROR(INDEX(بنين!$F$10:$F$512,SMALL(IF(بنين!$D$10:$D$512=$G$8,IF(بنين!$F$10:$F$512=$S$4,ROW($D$10:$D$512)-ROW($D$10)+1)),ROWS($B$10:I36))),\"\")","v":"انثى"},{"$f":"IFERROR(INDEX(بنين!$G$10:$G$512,SMALL(IF(بنين!$D$10:$D$512=$G$8,IF(بنين!$F$10:$F$512=$S$4,ROW($D$10:$D$512)-ROW($D$10)+1)),ROWS($B$10:J36))),\"\")","v":"مسلمه"},null,null,null,null,27]
[28,{"$f":"IFERROR(INDEX(بنين!$C$10:$C$512,SMALL(IF(بنين!$D$10:$D$512=$G$8,IF(بنين!$F$10:$F$512=$S$3,ROW($D$10:$D$512)-ROW($D$10)+1)),ROWS($B$10:B37))),\"\")","v":"ربيع على سعد السيد محمد"},{"$f":"IFERROR(INDEX(بنين!$E$10:$E$512,SMALL(IF(بنين!$D$10:$D$512=$G$8,IF(بنين!$F$10:$F$512=$S$3,ROW($D$10:$D$512)-ROW($D$10)+1)),ROWS($B$10:C37))),\"\")","v":"مستجد"},{"$f":"IFERROR(INDEX(بنين!$F$10:$F$512,SMALL(IF(بنين!$D$10:$D$512=$G$8,IF(بنين!$F$10:$F$512=$S$3,ROW($D$10:$D$512)-ROW($D$10)+1)),ROWS($B$10:D37))),\"\")","v":"ذكر "},{"$f":"IFERROR(INDEX(بنين!$G$10:$G$512,SMALL(IF(بنين!$D$10:$D$512=$G$8,IF(بنين!$F$10:$F$512=$S$3,ROW($D$10:$D$512)-ROW($D$10)+1)),ROWS($B$10:E37))),\"\")","v":"مسلم"},"",{"$f":"IFERROR(INDEX(بنين!$C$10:$C$512,SMALL(IF(بنين!$D$10:$D$512=$G$8,IF(بنين!$F$10:$F$512=$S$4,ROW($D$10:$D$512)-ROW($D$10)+1)),ROWS($B$10:G37))),\"\")","v":""},{"$f":"IFERROR(INDEX(بنين!$E$10:$E$512,SMALL(IF(بنين!$D$10:$D$512=$G$8,IF(بنين!$F$10:$F$512=$S$4,ROW($D$10:$D$512)-ROW($D$10)+1)),ROWS($B$10:H37))),\"\")","v":""},{"$f":"IFERROR(INDEX(بنين!$F$10:$F$512,SMALL(IF(بنين!$D$10:$D$512=$G$8,IF(بنين!$F$10:$F$512=$S$4,ROW($D$10:$D$512)-ROW($D$10)+1)),ROWS($B$10:I37))),\"\")","v":""},{"$f":"IFERROR(INDEX(بنين!$G$10:$G$512,SMALL(IF(بنين!$D$10:$D$512=$G$8,IF(بنين!$F$10:$F$512=$S$4,ROW($D$10:$D$512)-ROW($D$10)+1)),ROWS($B$10:J37))),\"\")","v":""},null,null,null,null,28]
["",{"$f":"IFERROR(INDEX(بنين!$C$10:$C$512,SMALL(IF(بنين!$D$10:$D$512=$G$8,IF(بنين!$F$10:$F$512=$S$3,ROW($D$10:$D$512)-ROW($D$10)+1)),ROWS($B$10:B38))),\"\")","v":""},{"$f":"IFERROR(INDEX(بنين!$E$10:$E$512,SMALL(IF(بنين!$D$10:$D$512=$G$8,IF(بنين!$F$10:$F$512=$S$3,ROW($D$10:$D$512)-ROW($D$10)+1)),ROWS($B$10:C38))),\"\")","v":""},{"$f":"IFERROR(INDEX(بنين!$F$10:$F$512,SMALL(IF(بنين!$D$10:$D$512=$G$8,IF(بنين!$F$10:$F$512=$S$3,ROW($D$10:$D$512)-ROW($D$10)+1)),ROWS($B$10:D38))),\"\")","v":""},{"$f":"IFERROR(INDEX(بنين!$G$10:$G$512,SMALL(IF(بنين!$D$10:$D$512=$G$8,IF(بنين!$F$10:$F$512=$S$3,ROW($D$10:$D$512)-ROW($D$10)+1)),ROWS($B$10:E38))),\"\")","v":""},"",{"$f":"IFERROR(INDEX(بنين!$C$10:$C$512,SMALL(IF(بنين!$D$10:$D$512=$G$8,IF(بنين!$F$10:$F$512=$S$4,ROW($D$10:$D$512)-ROW($D$10)+1)),ROWS($B$10:G38))),\"\")","v":""},{"$f":"IFERROR(INDEX(بنين!$E$10:$E$512,SMALL(IF(بنين!$D$10:$D$512=$G$8,IF(بنين!$F$10:$F$512=$S$4,ROW($D$10:$D$512)-ROW($D$10)+1)),ROWS($B$10:H38))),\"\")","v":""},{"$f":"IFERROR(INDEX(بنين!$F$10:$F$512,SMALL(IF(بنين!$D$10:$D$512=$G$8,IF(بنين!$F$10:$F$512=$S$4,ROW($D$10:$D$512)-ROW($D$10)+1)),ROWS($B$10:I38))),\"\")","v":""},{"$f":"IFERROR(INDEX(بنين!$G$10:$G$512,SMALL(IF(بنين!$D$10:$D$512=$G$8,IF(بنين!$F$10:$F$512=$S$4,ROW($D$10:$D$512)-ROW($D$10)+1)),ROWS($B$10:J38))),\"\")","v":""},null,null,null,null,29]
["",{"$f":"IFERROR(INDEX(بنين!$C$10:$C$512,SMALL(IF(بنين!$D$10:$D$512=$G$8,IF(بنين!$F$10:$F$512=$S$3,ROW($D$10:$D$512)-ROW($D$10)+1)),ROWS($B$10:B39))),\"\")","v":""},{"$f":"IFERROR(INDEX(بنين!$E$10:$E$512,SMALL(IF(بنين!$D$10:$D$512=$G$8,IF(بنين!$F$10:$F$512=$S$3,ROW($D$10:$D$512)-ROW($D$10)+1)),ROWS($B$10:C39))),\"\")","v":""},{"$f":"IFERROR(INDEX(بنين!$F$10:$F$512,SMALL(IF(بنين!$D$10:$D$512=$G$8,IF(بنين!$F$10:$F$512=$S$3,ROW($D$10:$D$512)-ROW($D$10)+1)),ROWS($B$10:D39))),\"\")","v":""},{"$f":"IFERROR(INDEX(بنين!$G$10:$G$512,SMALL(IF(بنين!$D$10:$D$512=$G$8,IF(بنين!$F$10:$F$512=$S$3,ROW($D$10:$D$512)-ROW($D$10)+1)),ROWS($B$10:E39))),\"\")","v":""},"",{"$f":"IFERROR(INDEX(بنين!$C$10:$C$512,SMALL(IF(بنين!$D$10:$D$512=$G$8,IF(بنين!$F$10:$F$512=$S$4,ROW($D$10:$D$512)-ROW($D$10)+1)),ROWS($B$10:G39))),\"\")","v":""},{"$f":"IFERROR(INDEX(بنين!$E$10:$E$512,SMALL(IF(بنين!$D$10:$D$512=$G$8,IF(بنين!$F$10:$F$512=$S$4,ROW($D$10:$D$512)-ROW($D$10)+1)),ROWS($B$10:H39))),\"\")","v":""},{"$f":"IFERROR(INDEX(بنين!$F$10:$F$512,SMALL(IF(بنين!$D$10:$D$512=$G$8,IF(بنين!$F$10:$F$512=$S$4,ROW($D$10:$D$512)-ROW($D$10)+1)),ROWS($B$10:I39))),\"\")","v":""},{"$f":"IFERROR(INDEX(بنين!$G$10:$G$512,SMALL(IF(بنين!$D$10:$D$512=$G$8,IF(بنين!$F$10:$F$512=$S$4,ROW($D$10:$D$512)-ROW($D$10)+1)),ROWS($B$10:J39))),\"\")","v":""},null,null,null,null,30]
[{"$f":"IF(B40=\"\",\"\",ROW()-9)","v":""},{"$f":"IFERROR(INDEX(بنين!$C$10:$C$512,SMALL(IF(بنين!$D$10:$D$512=$G$8,IF(بنين!$F$10:$F$512=$S$3,ROW($D$10:$D$512)-ROW($D$10)+1)),ROWS($B$10:B40))),\"\")","v":""},{"$f":"IFERROR(INDEX(بنين!$E$10:$E$512,SMALL(IF(بنين!$D$10:$D$512=$G$8,IF(بنين!$F$10:$F$512=$S$3,ROW($D$10:$D$512)-ROW($D$10)+1)),ROWS($B$10:C40))),\"\")","v":""},{"$f":"IFERROR(INDEX(بنين!$F$10:$F$512,SMALL(IF(بنين!$D$10:$D$512=$G$8,IF(بنين!$F$10:$F$512=$S$3,ROW($D$10:$D$512)-ROW($D$10)+1)),ROWS($B$10:D40))),\"\")","v":""},{"$f":"IFERROR(INDEX(بنين!$G$10:$G$512,SMALL(IF(بنين!$D$10:$D$512=$G$8,IF(بنين!$F$10:$F$512=$S$3,ROW($D$10:$D$512)-ROW($D$10)+1)),ROWS($B$10:E40))),\"\")","v":""},"",{"$f":"IFERROR(INDEX(بنين!$C$10:$C$512,SMALL(IF(بنين!$D$10:$D$512=$G$8,IF(بنين!$F$10:$F$512=$S$4,ROW($D$10:$D$512)-ROW($D$10)+1)),ROWS($B$10:G40))),\"\")","v":""},{"$f":"IFERROR(INDEX(بنين!$E$10:$E$512,SMALL(IF(بنين!$D$10:$D$512=$G$8,IF(بنين!$F$10:$F$512=$S$4,ROW($D$10:$D$512)-ROW($D$10)+1)),ROWS($B$10:H40))),\"\")","v":""},{"$f":"IFERROR(INDEX(بنين!$F$10:$F$512,SMALL(IF(بنين!$D$10:$D$512=$G$8,IF(بنين!$F$10:$F$512=$S$4,ROW($D$10:$D$512)-ROW($D$10)+1)),ROWS($B$10:I40))),\"\")","v":""},{"$f":"IFERROR(INDEX(بنين!$G$10:$G$512,SMALL(IF(بنين!$D$10:$D$512=$G$8,IF(بنين!$F$10:$F$512=$S$4,ROW($D$10:$D$512)-ROW($D$10)+1)),ROWS($B$10:J40))),\"\")","v":""},null,null,null,null,31]
[{"$f":"IF(B41=\"\",\"\",ROW()-9)","v":""},{"$f":"IFERROR(INDEX(بنين!$C$10:$C$512,SMALL(IF(بنين!$D$10:$D$512=$G$8,IF(بنين!$F$10:$F$512=$S$3,ROW($D$10:$D$512)-ROW($D$10)+1)),ROWS($B$10:B41))),\"\")","v":""},{"$f":"IFERROR(INDEX(بنين!$E$10:$E$512,SMALL(IF(بنين!$D$10:$D$512=$G$8,IF(بنين!$F$10:$F$512=$S$3,ROW($D$10:$D$512)-ROW($D$10)+1)),ROWS($B$10:C41))),\"\")","v":""},{"$f":"IFERROR(INDEX(بنين!$F$10:$F$512,SMALL(IF(بنين!$D$10:$D$512=$G$8,IF(بنين!$F$10:$F$512=$S$3,ROW($D$10:$D$512)-ROW($D$10)+1)),ROWS($B$10:D41))),\"\")","v":""},{"$f":"IFERROR(INDEX(بنين!$G$10:$G$512,SMALL(IF(بنين!$D$10:$D$512=$G$8,IF(بنين!$F$10:$F$512=$S$3,ROW($D$10:$D$512)-ROW($D$10)+1)),ROWS($B$10:E41))),\"\")","v":""},"",{"$f":"IFERROR(INDEX(بنين!$C$10:$C$512,SMALL(IF(بنين!$D$10:$D$512=$G$8,IF(بنين!$F$10:$F$512=$S$4,ROW($D$10:$D$512)-ROW($D$10)+1)),ROWS($B$10:G41))),\"\")","v":""},{"$f":"IFERROR(INDEX(بنين!$E$10:$E$512,SMALL(IF(بنين!$D$10:$D$512=$G$8,IF(بنين!$F$10:$F$512=$S$4,ROW($D$10:$D$512)-ROW($D$10)+1)),ROWS($B$10:H41))),\"\")","v":""},{"$f":"IFERROR(INDEX(بنين!$F$10:$F$512,SMALL(IF(بنين!$D$10:$D$512=$G$8,IF(بنين!$F$10:$F$512=$S$4,ROW($D$10:$D$512)-ROW($D$10)+1)),ROWS($B$10:I41))),\"\")","v":""},{"$f":"IFERROR(INDEX(بنين!$G$10:$G$512,SMALL(IF(بنين!$D$10:$D$512=$G$8,IF(بنين!$F$10:$F$512=$S$4,ROW($D$10:$D$512)-ROW($D$10)+1)),ROWS($B$10:J41))),\"\")","v":""},null,null,null,null,32]
[null,null,null,null,null,null,null,null,null,null,null,null,null,null,33]
[null,null,null,"ذكر","انثى","مجموع",null,null,null,null,null,null,null,null,34]
[null,null,"مستـجد",{"$f":"SUMPRODUCT((C10:C42=$R$3)*(D10:D42=$S$3))+SUMPRODUCT((H10:H42=$R$3)*(I10:I42=$S$3))","v":22},{"$f":"SUMPRODUCT((C10:C42=$R$5)*(D10:D42=$S$4))+SUMPRODUCT((H10:H42=$R$5)*(I10:I42=$S$4))","v":23},{"$f":"E44+D44","v":45},null,null,null,null,null,null,null,null,35]
[null,null,"معيد",{"$f":"SUMPRODUCT((C10:C41=$R$4)*(D10:D41=$S$3))+SUMPRODUCT((H10:H41=$R$4)*(I10:I41=$S$3))","v":6},{"$f":"SUMPRODUCT((C10:C41=$R$6)*(D10:D41=$S$4))+SUMPRODUCT((H10:H41=$R$6)*(I10:I41=$S$4))","v":4},{"$f":"E45+D45","v":10},null,null,null,null,null,null,null,null,36]
[null,null,"مسـلم",{"$f":"SUMPRODUCT((E10:E41=$T$3)*(D10:D41=$S$3))+SUMPRODUCT((J10:J41=$T$3)*(I10:I41=$S$3))","v":28},{"$f":"SUMPRODUCT((E10:E41=$T$5)*(D10:D41=$S$4))+SUMPRODUCT((J10:J41=$T$5)*(I10:I41=$S$4))","v":27},{"$f":"E46+D46","v":55},null,null,null,null,null,null,null,null,37]
[null,null,"مسيحـي",{"$f":"SUMPRODUCT((E11:E41=$T$4)*(D11:D41=$S$3))+SUMPRODUCT((J11:J41=$T$4)*(I11:I41=$S$3))","v":0},{"$f":"SUMPRODUCT((E11:E41=$T$6)*(D11:D41=$S$4))+SUMPRODUCT((J11:J41=$T$6)*(I11:I41=$S$4))","v":0},{"$f":"E47+D47","v":0},null,null,null,null,null,null,null,null,38]
[null,"رئيس شئون العاملين",null,null,null,null,"مدير المدرسة",null,null,null,null,null,null,null,39]
[null,null,null,null,null,null,null,null,null,null,null,null,null,null,40]
[null,null,null,null,null,null,null,null,null,null,null,null,null,null,41]
[null,null,null,null,null,null,null,null,null,null,null,null,null,null,42]
[null,null,null,null,null,null,null,null,null,null,null,null,null,null,43]
[null,null,null,null,null,null,null,null,null,null,null,null,null,null,44]
[null,null,null,null,null,null,null,null,null,null,null,null,null,null,45]
[null,null,null,null,null,null,null,null,null,null,null,null,null,null,46]
[null,null,null,null,null,null,null,null,null,null,null,null,null,null,47]
[null,null,null,null,null,null,null,null,null,null,null,null,null,null,48]
[null,null,null,null,null,null,null,null,null,null,null,null,null,null,49]
[null,null,null,null,null,null,null,null,null,null,null,null,null,null,50]
[null,null,null,null,null,null,null,null,null,null,null,null,null,null,51]
[null,null,null,null,null,null,null,null,null,null,null,null,null,null,52]
[null,null,null,null,null,null,null,null,null,null,null,null,null,null,53]
[null,null,null,null,null,null,null,null,null,null,null,null,null,null,54]
[null,null,null,null,null,null,null,null,null,null,null,null,null,null,55]
[null,null,null,null,null,null,null,null,null,null,null,null,null,null,56]
[null,null,null,null,null,null,null,null,null,null,null,null,null,null,57]
[null,null,null,null,null,null,null,null,null,null,null,null,null,null,58]
[null,null,null,null,null,null,null,null,null,null,null,null,null,null,59]
[null,null,null,null,null,null,null,null,null,null,null,null,null,null,60]
[null,null,null,null,null,null,null,null,null,null,null,null,null,null,{"$f":"ROW()-9","v":61}]
[null,null,null,null,null,null,null,null,null,null,null,null,null,null,62]
[null,null,null,null,null,null,null,null,null,null,null,null,null,null,63]
[null,null,null,null,null,null,null,null,null,null,null,null,null,null,64]
[null,null,null,null,null,null,null,null,null,null,null,null,null,null,65]
[null,null,null,null,null,null,null,null,null,null,null,null,null,null,66]
[null,null,null,null,null,null,null,null,null,null,null,null,null,null,67]
[null,null,null,null,null,null,null,null,null,null,null,null,null,null,68]
[null,null,null,null,null,null,null,null,null,null,null,null,null,null,69]
[null,null,null,null,null,null,null,null,null,null,null,null,null,null,70]
[null,null,null,null,null,null,null,null,null,null,null,null,null,null,71]
[null,null,null,null,null,null,null,null,null,null,null,null,null,null,72]
[null,null,null,null,null,null,null,null,null,null,null,null,null,null,73]
[null,null,null,null,null,null,null,null,null,null,null,null,null,null,74]
[null,null,null,null,null,null,null,null,null,null,null,null,null,null,75]
[null,null,null,null,null,null,null,null,null,null,null,null,null,null,76]
[null,null,null,null,null,null,null,null,null,null,null,null,null,null,77]
[null,null,null,null,null,null,null,null,null,null,null,null,null,null,78]
[null,null,null,null,null,null,null,null,null,null,null,null,null,null,79]
[null,null,null,null,null,null,null,null,null,null,null,null,null,null,80]
[null,null,null,null,null,null,null,null,null,null,null,null,null,null,81]
[null,null,null,null,null,null,null,null,null,null,null,null,null,null,82]
[null,null,null,null,null,null,null,null,null,null,null,null,null,null,83]
[null,null,null,null,null,null,null,null,null,null,null,null,null,null,84]
[null,null,null,null,null,null,null,null,null,null,null,null,null,null,85]
[null,null,null,null,null,null,null,null,null,null,null,null,null,null,86]
[null,null,null,null,null,null,null,null,null,null,null,null,null,null,87]
[null,null,null,null,null,null,null,null,null,null,null,null,null,null,88]
[null,null,null,null,null,null,null,null,null,null,null,null,null,null,89]
[null,null,null,null,null,null,null,null,null,null,null,null,null,null,90]
[null,null,null,null,null,null,null,null,null,null,null,null,null,null,91]
[null,null,null,null,null,null,null,null,null,null,null,null,null,null,92]
[null,null,null,null,null,null,null,null,null,null,null,null,null,null,93]
[null,null,null,null,null,null,null,null,null,null,null,null,null,null,94]
[null,null,null,null,null,null,null,null,null,null,null,null,null,null,95]
[null,null,null,null,null,null,null,null,null,null,null,null,null,null,96]
[null,null,null,null,null,null,null,null,null,null,null,null,null,null,97]
[null,null,null,null,null,null,null,null,null,null,null,null,null,null,98]
[null,null,null,null,null,null,null,null,null,null,null,null,null,null,99]
[null,null,null,null,null,null,null,null,null,null,null,null,null,null,100]
[null,null,null,null,null,null,null,null,null,null,null,null,null,null,101]
[null,null,null,null,null,null,null,null,null,null,null,null,null,null,102]
[null,null,null,null,null,null,null,null,null,null,null,null,null,null,103]
[null,null,null,null,null,null,null,null,null,null,null,null,null,null,104]
[null,null,null,null,null,null,null,null,null,null,null,null,null,null,105]
[null,null,null,null,null,null,null,null,null,null,null,null,null,null,106]
[null,null,null,null,null,null,null,null,null,null,null,null,null,null,107]
[null,null,null,null,null,null,null,null,null,null,null,null,null,null,108]
[null,null,null,null,null,null,null,null,null,null,null,null,null,null,109]
[null,null,null,null,null,null,null,null,null,null,null,null,null,null,110]
[null,null,null,null,null,null,null,null,null,null,null,null,null,null,111]
[null,null,null,null,null,null,null,null,null,null,null,null,null,null,112]
[null,null,null,null,null,null,null,null,null,null,null,null,null,null,113]
[null,null,null,null,null,null,null,null,null,null,null,null,null,null,114]
[null,null,null,null,null,null,null,null,null,null,null,null,null,null,115]
[null,null,null,null,null,null,null,null,null,null,null,null,null,null,116]
[null,null,null,null,null,null,null,null,null,null,null,null,null,null,117]
[null,null,null,null,null,null,null,null,null,null,null,null,null,null,118]
[null,null,null,null,null,null,null,null,null,null,null,null,null,null,119]
[null,null,null,null,null,null,null,null,null,null,null,null,null,null,120]
[null,null,null,null,null,null,null,null,null,null,null,null,null,null,121]
[null,null,null,null,null,null,null,null,null,null,null,null,null,null,122]
[null,null,null,null,null,null,null,null,null,null,null,null,null,null,123]
[null,null,null,null,null,null,null,null,null,null,null,null,null,null,124]
[null,null,null,null,null,null,null,null,null,null,null,null,null,null,{"$f":"ROW()-9","v":125}]
[null,null,null,null,null,null,null,null,null,null,null,null,null,null,126]
[null,null,null,null,null,null,null,null,null,null,null,null,null,null,127]
[null,null,null,null,null,null,null,null,null,null,null,null,null,null,128]
[null,null,null,null,null,null,null,null,null,null,null,null,null,null,129]
[null,null,null,null,null,null,null,null,null,null,null,null,null,null,130]
[null,null,null,null,null,null,null,null,null,null,null,null,null,null,131]
[]
[]
[]
[]
[]
[]
[]
[]
[]
[]
[]
[]
[]
[]
[]
[]
[]
[]
[]
[]
[]
[]
[]
[]
[]
[]
[]
[]
[]
[]
[]
[]
[]
[]
[]
[]
[]
[]
[]
[]
[]
[]
[]
[]
[]
[null,null,null,null,null,null,{"$f":"IF($H$6=\"الاول\",\"1\\1\",IF($H$6=\"الثاني\",\"2\\1\",IF($H$6=\"الثالث\",\"3\\1\",\"\")))","v":"2\\1"},null,null,null,null,null,null,null,1]
[null,null,null,null,null,null,{"$f":"IF($H$6=\"الاول\",\"1\\2\",IF($H$6=\"الثاني\",\"2\\2\",IF($H$6=\"الثالث\",\"3\\2\",\"\")))","v":"2\\2"},null,null,null,null,null,null,null,{"$f":"O186+1","v":2}]
[null,null,null,null,null,null,{"$f":"IF($H$6=\"الاول\",\"1\\3\",IF($H$6=\"الثاني\",\"2\\3\",IF($H$6=\"الثالث\",\"3\\3\",\"\")))","v":"2\\3"},null,null,null,null,null,null,null,{"$f":"O187+1","v":3}]
[null,null,null,null,null,null,{"$f":"IF($H$6=\"الاول\",\"1\\4\",IF($H$6=\"الثاني\",\"2\\4\",IF($H$6=\"الثالث\",\"3\\4\",\"\")))","v":"2\\4"},null,null,null,null,null,null,null,4]
[null,null,null,null,null,null,{"$f":"IF($H$6=\"الاول\",\"1\\5\",IF($H$6=\"الثاني\",\"2\\5\",IF($H$6=\"الثالث\",\"3\\5\",\"\")))","v":"2\\5"},null,null,null,null,null,null,null,5]
[null,null,null,null,null,null,{"$f":"IF($H$6=\"الاول\",\"1\\6\",IF($H$6=\"الثاني\",\"2\\6\",IF($H$6=\"الثالث\",\"3\\6\",\"\")))","v":"2\\6"},null,null,null,null,null,null,null,6]
[null,null,null,null,null,null,{"$f":"IF($H$6=\"الاول\",\"1\\7\",IF($H$6=\"الثاني\",\"2\\7\",IF($H$6=\"الثالث\",\"3\\7\",\"\")))","v":"2\\7"},null,null,null,null,null,null,null,7]
[null,null,null,null,null,null,{"$f":"IF($H$6=\"الاول\",\"1\\8\",IF($H$6=\"الثاني\",\"2\\8\",IF($H$6=\"الثالث\",\"3\\8\",\"\")))","v":"2\\8"},null,null,null,null,null,null,null,8]
[null,null,null,null,null,null,{"$f":"IF($H$6=\"الاول\",\"1\\9\",IF($H$6=\"الثاني\",\"2\\9\",IF($H$6=\"الثالث\",\"3\\9\",\"\")))","v":"2\\9"},null,null,null,null,null,null,null,9]
[null,null,null,null,null,null,{"$f":"IF($H$6=\"الاول\",\"1\\10\",IF($H$6=\"الثاني\",\"2\\10\",IF($H$6=\"الثالث\",\"3\\10\",\"\")))","v":"2\\10"},null,null,null,null,null,null,null,10]
[null,null,null,null,null,null,{"$f":"IF($H$6=\"الاول\",\"1\\11\",IF($H$6=\"الثاني\",\"2\\11\",IF($H$6=\"الثالث\",\"3\\11\",\"\")))","v":"2\\11"},null,null,null,null,null,null,null,11]
[null,null,null,null,null,null,{"$f":"IF($H$6=\"الاول\",\"1\\12\",IF($H$6=\"الثاني\",\"2\\12\",IF($H$6=\"الثالث\",\"3\\12\",\"\")))","v":"2\\12"},null,null,null,null,null,null,null,12]
[null,null,null,null,null,null,{"$f":"IF($H$6=\"الاول\",\"1\\13\",IF($H$6=\"الثاني\",\"2\\13\",IF($H$6=\"الثالث\",\"3\\13\",\"\")))","v":"2\\13"},null,null,null,null,null,null,null,13]
[null,null,null,null,null,null,{"$f":"IF($H$6=\"الاول\",\"1\\14\",IF($H$6=\"الثاني\",\"2\\14\",IF($H$6=\"الثالث\",\"3\\14\",\"\")))","v":"2\\14"},null,null,null,null,null,null,null,14]
[null,null,null,null,null,null,{"$f":"IF($H$6=\"الاول\",\"1\\15\",IF($H$6=\"الثاني\",\"2\\15\",IF($H$6=\"الثالث\",\"3\\15\",\"\")))","v":"2\\15"},null,null,null,null,null,null,null,15]
[null,null,null,null,null,null,{"$f":"IF($H$6=\"الاول\",\"1\\16\",IF($H$6=\"الثاني\",\"2\\16\",IF($H$6=\"الثالث\",\"3\\16\",\"\")))","v":"2\\16"},null,null,null,null,null,null,null,16]
[null,null,null,null,null,null,{"$f":"IF($H$6=\"الاول\",\"1\\17\",IF($H$6=\"الثاني\",\"2\\17\",IF($H$6=\"الثالث\",\"3\\17\",\"\")))","v":"2\\17"},null,null,null,null,null,null,null,17]
[null,null,null,null,null,null,{"$f":"IF($H$6=\"الاول\",\"1\\18\",IF($H$6=\"الثاني\",\"2\\18\",IF($H$6=\"الثالث\",\"3\\18\",\"\")))","v":"2\\18"},null,null,null,null,null,null,null,18]
[null,null,null,null,null,null,{"$f":"IF($H$6=\"الاول\",\"1\\19\",IF($H$6=\"الثاني\",\"2\\19\",IF($H$6=\"الثالث\",\"3\\19\",\"\")))","v":"2\\19"},null,null,null,null,null,null,null,19]
[null,null,null,null,null,null,{"$f":"IF($H$6=\"الاول\",\"1\\20\",IF($H$6=\"الثاني\",\"2\\20\",IF($H$6=\"الثالث\",\"3\\20\",\"\")))","v":"2\\20"},null,null,null,null,null,null,null,20]
[null,null,null,null,null,null,{"$f":"IF($H$6=\"الاول\",\"\",IF($H$6=\"الثاني\",\"\",IF($H$6=\"الثالث\",\"\",\"\")))","v":""},null,null,null,null,null,null,null,21]
[null,null,null,null,null,null,{"$f":"IF($H$6=\"الاول\",\"\",IF($H$6=\"الثاني\",\"\",IF($H$6=\"الثالث\",\"\",\"\")))","v":""},null,null,null,null,null,null,null,22]
[null,null,null,null,null,null,{"$f":"IF($H$6=\"الاول\",\"\",IF($H$6=\"الثاني\",\"\",IF($H$6=\"الثالث\",\"\",\"\")))","v":""},null,null,null,null,null,null,null,23]
[null,null,null,null,null,null,null,null,null,null,null,null,null,null,24]
[null,null,null,null,null,null,null,null,null,null,null,null,null,null,25]
[null,null,null,null,null,null,null,null,null,null,null,null,null,null,26]
[null,null,null,null,null,null,null,null,null,null,null,null,null,null,27]
[null,null,null,null,null,null,null,null,null,null,null,null,null,null,28]
[null,null,null,null,null,null,null,null,null,null,null,null,null,null,29]
[null,null,null,null,null,null,null,null,null,null,null,null,null,null,30]
[null,null,null,null,null,null,null,null,null,null,null,null,null,null,31]
[null,null,null,null,null,null,null,null,null,null,null,null,null,null,32]
[null,null,null,null,null,null,null,null,null,null,null,null,null,null,33]
[null,null,null,null,null,null,null,null,null,null,null,null,null,null,34]
[null,null,null,null,null,null,null,null,null,null,null,null,null,null,35]
[null,null,null,null,null,null,null,null,null,null,null,null,null,null,36]
[null,null,null,null,null,null,null,null,null,null,null,null,null,null,37]
[null,null,null,null,null,null,null,null,null,null,null,null,null,null,38]
[null,null,null,null,null,null,null,null,null,null,null,null,null,null,39]
[null,null,null,null,null,null,null,null,null,null,null,null,null,null,40]
[null,null,null,null,null,null,null,null,null,null,null,null,null,null,41]
[null,null,null,null,null,null,null,null,null,null,null,null,null,null,42]
[null,null,null,null,null,null,null,null,null,null,null,null,null,null,43]
[null,null,null,null,null,null,null,null,null,null,null,null,null,null,44]
[null,null,null,null,null,null,null,null,null,null,null,null,null,null,45]
[null,null,null,null,null,null,null,null,null,null,null,null,null,null,46]
[null,null,null,null,null,null,null,null,null,null,null,null,null,null,47]
[null,null,null,null,null,null,null,null,null,null,null,null,null,null,48]
[null,null,null,null,null,null,null,null,null,null,null,null,null,null,49]
[null,null,null,null,null,null,null,null,null,null,null,null,null,null,50]
[null,null,null,null,null,null,null,null,null,null,null,null,null,null,51]
[null,null,null,null,null,null,null,null,null,null,null,null,null,null,52]
[null,null,null,null,null,null,null,null,null,null,null,null,null,null,53]
[null,null,null,null,null,null,null,null,null,null,null,null,null,null,54]
[null,null,null,null,null,null,null,null,null,null,null,null,null,null,55]
[null,null,null,null,null,null,null,null,null,null,null,null,null,null,56]
[null,null,null,null,null,null,null,null,null,null,null,null,null,null,57]
[null,null,null,null,null,null,null,null,null,null,null,null,null,null,58]
[null,null,null,null,null,null,null,null,null,null,null,null,null,null,59]
[null,null,null,null,null,null,null,null,null,null,null,null,null,null,60]
[null,null,null,null,null,null,null,null,null,null,null,null,null,null,61]
[null,null,null,null,null,null,null,null,null,null,null,null,null,null,62]
[null,null,null,null,null,null,null,null,null,null,null,null,null,null,63]
[null,null,null,null,null,null,null,null,null,null,null,null,null,null,64]
[null,null,null,null,null,null,null,null,null,null,null,null,null,null,65]
[null,null,null,null,null,null,null,null,null,null,null,null,null,null,66]
[null,null,null,null,null,null,null,null,null,null,null,null,null,null,{"$f":"O251+1","v":67}]
[null,null,null,null,null,null,null,null,null,null,null,null,null,null,68]
[null,null,null,null,null,null,null,null,null,null,null,null,null,null,69]
[null,null,null,null,null,null,null,null,null,null,null,null,null,null,70]
[null,null,null,null,null,null,null,null,null,null,null,null,null,null,71]
[null,null,null,null,null,null,null,null,null,null,null,null,null,null,72]
[null,null,null,null,null,null,null,null,null,null,null,null,null,null,73]
[null,null,null,null,null,null,null,null,null,null,null,null,null,null,74]
[null,null,null,null,null,null,null,null,null,null,null,null,null,null,75]
[null,null,null,null,null,null,null,null,null,null,null,null,null,null,76]
[null,null,null,null,null,null,null,null,null,null,null,null,null,null,77]
[null,null,null,null,null,null,null,null,null,null,null,null,null,null,78]
[null,null,null,null,null,null,null,null,null,null,null,null,null,null,79]
[null,null,null,null,null,null,null,null,null,null,null,null,null,null,80]
[null,null,null,null,null,null,null,null,null,null,null,null,null,null,81]
[null,null,null,null,null,null,null,null,null,null,null,null,null,null,82]
[null,null,null,null,null,null,null,null,null,null,null,null,null,null,{"$f":"O267+1","v":83}]
[null,null,null,null,null,null,null,null,null,null,null,null,null,null,84]
[null,null,null,null,null,null,null,null,null,null,null,null,null,null,85]
[null,null,null,null,null,null,null,null,null,null,null,null,null,null,86]
[null,null,null,null,null,null,null,null,null,null,null,null,null,null,87]
[null,null,null,null,null,null,null,null,null,null,null,null,null,null,88]
[null,null,null,null,null,null,null,null,null,null,null,null,null,null,{"$f":"O273+1","v":89}]
[null,null,null,null,null,null,null,null,null,null,null,null,null,null,90]
[null,null,null,null,null,null,null,null,null,null,null,null,null,null,91]
[null,null,null,null,null,null,null,null,null,null,null,null,null,null,92]
[null,null,null,null,null,null,null,null,null,null,null,null,null,null,93]
[null,null,null,null,null,null,null,null,null,null,null,null,null,null,94]
[null,null,null,null,null,null,null,null,null,null,null,null,null,null,{"$f":"O279+1","v":95}]
[null,null,null,null,null,null,null,null,null,null,null,null,null,null,{"$f":"O280+1","v":96}]
[null,null,null,null,null,null,null,null,null,null,null,null,null,null,97]
[null,null,null,null,null,null,null,null,null,null,null,null,null,null,98]
[null,null,null,null,null,null,null,null,null,null,null,null,null,null,99]
[null,null,null,null,null,null,null,null,null,null,null,null,null,null,100]
[null,null,null,null,null,null,null,null,null,null,null,null,null,null,101]
[null,null,null,null,null,null,null,null,null,null,null,null,null,null,102]
[null,null,null,null,null,null,null,null,null,null,null,null,null,null,103]
[null,null,null,null,null,null,null,null,null,null,null,null,null,null,{"$f":"O288+1","v":104}]
[null,null,null,null,null,null,null,null,null,null,null,null,null,null,105]
[null,null,null,null,null,null,null,null,null,null,null,null,null,null,106]
[null,null,null,null,null,null,null,null,null,null,null,null,null,null,107]
[null,null,null,null,null,null,null,null,null,null,null,null,null,null,108]
[null,null,null,null,null,null,null,null,null,null,null,null,null,null,109]
[null,null,null,null,null,null,null,null,null,null,null,null,null,null,110]

{"sheet":"سجل درجات","index":2,"n_rows":322,"n_cols":22,"rows_kept":322,"cut":false,"hidden":false,"merged":[[4,0,4,1],[5,0,5,1],[6,0,6,1],[8,13,9,13],[8,12,9,12],[8,11,9,11],[5,7,5,8],[7,6,7,7],[8,0,9,0],[8,1,9,1],[8,2,8,4],[8,5,8,7],[8,8,8,10],[7,2,7,5]]}
[]
[]
[null,null,null,null,null,null,null,null,null,null,null,null,null,null,null,null,null,null,null,"مستجد","ذكر ","مسلم"]
[null,null,null,null,null,null,null,null,null,null,null,null,null,null,null,null,null,null,null,"معيد","انثى","مسيحي"]
["مديرية التربية والتعليم بطنطا",null,null,null,null,null,null,null,null,null,null,null,null,null,null,null,null,null,"الاول","مستجدة",null,"مسلمه"]
["إدارة شرق المحلة التعليمية",null,null,null,null,null,"الصف","الاول",null,"الاعدادي",null,null,null,null,null,null,null,null,"الثاني","معيدة",null,"مسيحيه"]
["مدرسة ميت السراج الاعدادية المشتركة",null,null,null,null,null,null,null,null,null,null,null,null,null,null,null,null,null,"الثالث"]
[null,null,"سجل درجات",null,null,null,"1\\4"]
["م","الاســـــــم",null,null,null,null,null,null,null,null,null,"مجموع","متوسط","نصف العام"]
[null,null,"نشاط","شفهى","سلوك","نشاط","شفهى","سلوك","نشاط","شفهى","سلوك"]
[{"$f":"IF(B11=\"\",\"\",ROW()-10)","v":1},{"$f":"VLOOK2ALL(بنين!$D$10:$D$2547,$G$8,Q11,0)","v":"محمد على صديق عبد الهادى"},null,null,null,null,null,null,null,null,null,null,null,null,null,null,{"$f":"ROW()-10","v":1}]
[2,{"$f":"VLOOK2ALL(بنين!$D$10:$D$2547,$G$8,Q12,0)","v":"محمد محمد ابراهيم ابراهيم هيكل"},null,null,null,null,null,null,null,null,null,null,null,null,null,null,{"$f":"ROW()-10","v":2}]
[3,{"$f":"VLOOK2ALL(بنين!$D$10:$D$2547,$G$8,Q13,0)","v":"محمد محمد غازى محمد"},null,null,null,null,null,null,null,null,null,null,null,null,null,null,3]
[4,{"$f":"VLOOK2ALL(بنين!$D$10:$D$2547,$G$8,Q14,0)","v":"محمد محمود العرابى رزق"},null,null,null,null,null,null,null,null,null,null,null,null,null,null,4]
[5,{"$f":"VLOOK2ALL(بنين!$D$10:$D$2547,$G$8,Q15,0)","v":"محمد نور الدين نور الدين فهمى"},null,null,null,null,null,null,null,null,null,null,null,null,null,null,5]
[6,{"$f":"VLOOK2ALL(بنين!$D$10:$D$2547,$G$8,Q16,0)","v":"محمد هانى محمود احمد هيكل"},null,null,null,null,null,null,null,null,null,null,null,null,null,null,6]
[7,{"$f":"VLOOK2ALL(بنين!$D$10:$D$2547,$G$8,Q17,0)","v":"محمد وائل احمد سلامه"},null,null,null,null,null,null,null,null,null,null,null,null,null,null,7]
[8,{"$f":"VLOOK2ALL(بنين!$D$10:$D$2547,$G$8,Q18,0)","v":"محمد ياسر الطنطاوى الغريب"},null,null,null,null,null,null,null,null,null,null,null,null,null,null,8]
[9,{"$f":"VLOOK2ALL(بنين!$D$10:$D$2547,$G$8,Q19,0)","v":"محمد ياسر محمد العدوى"},null,null,null,null,null,null,null,null,null,null,null,null,null,null,9]
[10,{"$f":"VLOOK2ALL(بنين!$D$10:$D$2547,$G$8,Q20,0)","v":"محمد يوسف حسن يوسف على"},null,null,null,null,null,null,null,null,null,null,null,null,null,null,10]
[11,{"$f":"VLOOK2ALL(بنين!$D$10:$D$2547,$G$8,Q21,0)","v":"محمود ابراهيم عبدالمجيد سراج الدين"},null,null,null,null,null,null,null,null,null,null,null,null,null,null,11]
[12,{"$f":"VLOOK2ALL(بنين!$D$10:$D$2547,$G$8,Q22,0)","v":"محمود حسن طه حسن محمد"},null,null,null,null,null,null,null,null,null,null,null,null,null,null,12]
[13,{"$f":"VLOOK2ALL(بنين!$D$10:$D$2547,$G$8,Q23,0)","v":"محمود رزق محمد بدير محارب"},null,null,null,null,null,null,null,null,null,null,null,null,null,null,13]
[14,{"$f":"VLOOK2ALL(بنين!$D$10:$D$2547,$G$8,Q24,0)","v":"محمود صبرى ابوالفتوح يونس النجار"},null,null,null,null,null,null,null,null,null,null,null,null,null,null,14]
[15,{"$f":"VLOOK2ALL(بنين!$D$10:$D$2547,$G$8,Q25,0)","v":"محمود عاطف يوسف على"},null,null,null,null,null,null,null,null,null,null,null,null,null,null,15]
[16,{"$f":"VLOOK2ALL(بنين!$D$10:$D$2547,$G$8,Q26,0)","v":"محمود عصام محمود الكومى"},null,null,null,null,null,null,null,null,null,null,null,null,null,null,16]
[17,{"$f":"VLOOK2ALL(بنين!$D$10:$D$2547,$G$8,Q27,0)","v":"محمود محمد السيد محمودالنداف"},null,null,null,null,null,null,null,null,null,null,null,null,null,null,17]
[18,{"$f":"VLOOK2ALL(بنين!$D$10:$D$2547,$G$8,Q28,0)","v":"مصطفى احمد مصطفى خليل"},null,null,null,null,null,null,null,null,null,null,null,null,null,null,18]
[19,{"$f":"VLOOK2ALL(بنين!$D$10:$D$2547,$G$8,Q29,0)","v":"مصطفى حسن السيد حسن المشد"},null,null,null,null,null,null,null,null,null,null,null,null,null,null,19]
[20,{"$f":"VLOOK2ALL(بنين!$D$10:$D$2547,$G$8,Q30,0)","v":"معاذ عبدالمنعم عبدالعاطى محمد دياب"},null,null,null,null,null,null,null,null,null,null,null,null,null,null,20]
[21,{"$f":"VLOOK2ALL(بنين!$D$10:$D$2547,$G$8,Q31,0)","v":"معوض الباتع عبدالباسط ابراهيم شادى"},null,null,null,null,null,null,null,null,null,null,null,null,null,null,21]
[22,{"$f":"VLOOK2ALL(بنين!$D$10:$D$2547,$G$8,Q32,0)","v":"هانى حماده يوسف عبداللطيف"},null,null,null,null,null,null,null,null,null,null,null,null,null,null,22]
[23,{"$f":"VLOOK2ALL(بنين!$D$10:$D$2547,$G$8,Q33,0)","v":"هشام عبدالحميد الامام السيد النبوى"},null,null,null,null,null,null,null,null,null,null,null,null,null,null,23]
[24,{"$f":"VLOOK2ALL(بنين!$D$10:$D$2547,$G$8,Q34,0)","v":"ياسر المتولى السيد السعيد جعفر"},null,null,null,null,null,null,null,null,null,null,null,null,null,null,24]
[25,{"$f":"VLOOK2ALL(بنين!$D$10:$D$2547,$G$8,Q35,0)","v":"يحيى محمد يحيى رياض"},null,null,null,null,null,null,null,null,null,null,null,null,null,null,25]
[26,{"$f":"VLOOK2ALL(بنين!$D$10:$D$2547,$G$8,Q36,0)","v":"يوسف محمد خليفة البسطويسى"},null,null,null,null,null,null,null,null,null,null,null,null,null,null,26]
[27,{"$f":"VLOOK2ALL(بنين!$D$10:$D$2547,$G$8,Q37,0)","v":"يوسف ناجد المغازى محمد"},null,null,null,null,null,null,null,null,null,null,null,null,null,null,27]
[28,{"$f":"VLOOK2ALL(بنين!$D$10:$D$2547,$G$8,Q38,0)","v":"شاديه السيد لطفى السيد"},null,null,null,null,null,null,null,null,null,null,null,null,null,null,28]
[29,{"$f":"VLOOK2ALL(بنين!$D$10:$D$2547,$G$8,Q39,0)","v":"مى محمد على محمود"},null,null,null,null,null,null,null,null,null,null,null,null,null,null,29]
[30,{"$f":"VLOOK2ALL(بنين!$D$10:$D$2547,$G$8,Q40,0)","v":"مياده محمود السيد احمد جمعه"},null,null,null,null,null,null,null,null,null,null,null,null,null,null,30]
[31,{"$f":"VLOOK2ALL(بنين!$D$10:$D$2547,$G$8,Q41,0)","v":"ناريمان فرج احمد شريف"},null,null,null,null,null,null,null,null,null,null,null,null,null,null,31]
[32,{"$f":"VLOOK2ALL(بنين!$D$10:$D$2547,$G$8,Q42,0)","v":"نجاه السيد لطفى السيد"},null,null,null,null,null,null,null,null,null,null,null,null,null,null,32]
[{"$f":"IF(B43=\"\",\"\",ROW()-10)","v":33},{"$f":"VLOOK2ALL(بنين!$D$10:$D$2547,$G$8,Q43,0)","v":"نجلاء طارق نصر ابوالخير"},null,null,null,null,null,null,null,null,null,null,null,null,null,null,33]
[34,{"$f":"VLOOK2ALL(بنين!$D$10:$D$2547,$G$8,Q44,0)","v":"نجلاء وائل محمد عبدالعاطى"},null,null,null,null,null,null,null,null,null,null,null,null,null,null,34]
[35,{"$f":"VLOOK2ALL(بنين!$D$10:$D$2547,$G$8,Q45,0)","v":"نجوى محمد السيد محمود بدر"},null,null,null,null,null,null,null,null,null,null,null,null,null,null,35]
[36,{"$f":"VLOOK2ALL(بنين!$D$10:$D$2547,$G$8,Q46,0)","v":"ندا وائل يحيى رياض"},null,null,null,null,null,null,null,null,null,null,null,null,null,null,36]
[37,{"$f":"VLOOK2ALL(بنين!$D$10:$D$2547,$G$8,Q47,0)","v":"ندى محمود محمود احمد"},null,null,null,null,null,null,null,null,null,null,null,null,null,null,37]
[38,{"$f":"VLOOK2ALL(بنين!$D$10:$D$2547,$G$8,Q48,0)","v":"نرمين محمد البيلى طاهر"},null,null,null,null,null,null,null,null,null,null,null,null,null,null,38]
[39,{"$f":"VLOOK2ALL(بنين!$D$10:$D$2547,$G$8,Q49,0)","v":"نور عبدالهادى محمود احمد"},null,null,null,null,null,null,null,null,null,null,null,null,null,null,39]
[40,{"$f":"VLOOK2ALL(بنين!$D$10:$D$2547,$G$8,Q50,0)","v":"نورا بسيونى عبدالعزيز عبدالغنى"},null,null,null,null,null,null,null,null,null,null,null,null,null,null,40]
[41,{"$f":"VLOOK2ALL(بنين!$D$10:$D$2547,$G$8,Q51,0)","v":"نوران طارق محمد سليمان"},null,null,null,null,null,null,null,null,null,null,null,null,null,null,41]
[42,{"$f":"VLOOK2ALL(بنين!$D$10:$D$2547,$G$8,Q52,0)","v":"نورهان سامح محمد عبدالعظيم النجار"},null,null,null,null,null,null,null,null,null,null,null,null,null,null,42]
[43,{"$f":"VLOOK2ALL(بنين!$D$10:$D$2547,$G$8,Q53,0)","v":"نورهان ضياء عبدالواحد محمد"},null,null,null,null,null,null,null,null,null,null,null,null,null,null,43]
[44,{"$f":"VLOOK2ALL(بنين!$D$10:$D$2547,$G$8,Q54,0)","v":"نورهان محمد رمضان محمد"},null,null,null,null,null,null,null,null,null,null,null,null,null,null,44]
[45,{"$f":"VLOOK2ALL(بنين!$D$10:$D$2547,$G$8,Q55,0)","v":"نيره محمد احمد السامولى"},null,null,null,null,null,null,null,null,null,null,null,null,null,null,45]
[46,{"$f":"VLOOK2ALL(بنين!$D$10:$D$2547,$G$8,Q56,0)","v":"هاجر عطيه عبدالمنعم عبدالحليم هيكل"},null,null,null,null,null,null,null,null,null,null,null,null,null,null,46]
[47,{"$f":"VLOOK2ALL(بنين!$D$10:$D$2547,$G$8,Q57,0)","v":"هاجر عيسى ابراهيم حامد"},null,null,null,null,null,null,null,null,null,null,null,null,null,null,47]
[48,{"$f":"VLOOK2ALL(بنين!$D$10:$D$2547,$G$8,Q58,0)","v":"هانم يوسف احمد يوسف"},null,null,null,null,null,null,null,null,null,null,null,null,null,null,48]
[49,{"$f":"VLOOK2ALL(بنين!$D$10:$D$2547,$G$8,Q59,0)","v":"هبه احمد زكريا حسين"},null,null,null,null,null,null,null,null,null,null,null,null,null,null,49]
[50,{"$f":"VLOOK2ALL(بنين!$D$10:$D$2547,$G$8,Q60,0)","v":"هبه محمد همام دنقل كريم"},null,null,null,null,null,null,null,null,null,null,null,null,null,null,50]
[51,{"$f":"VLOOK2ALL(بنين!$D$10:$D$2547,$G$8,Q61,0)","v":"هدير عيسى غازى محمد عيسى"},null,null,null,null,null,null,null,null,null,null,null,null,null,null,51]
[52,{"$f":"VLOOK2ALL(بنين!$D$10:$D$2547,$G$8,Q62,0)","v":"هناء عبدالباسط محمد طه"},null,null,null,null,null,null,null,null,null,null,null,null,null,null,52]
[53,{"$f":"VLOOK2ALL(بنين!$D$10:$D$2547,$G$8,Q63,0)","v":"وفاء هانى سعد محمد"},null,null,null,null,null,null,null,null,null,null,null,null,null,null,53]
[54,{"$f":"VLOOK2ALL(بنين!$D$10:$D$2547,$G$8,Q64,0)","v":"يارا محمد محمد فؤاد متولى"},null,null,null,null,null,null,null,null,null,null,null,null,null,null,54,null,null,{"$f":"IF(B64=\"\",\"\",COUNTA(B64))","v":1}]
[55,{"$f":"VLOOK2ALL(بنين!$D$10:$D$2547,$G$8,Q65,0)","v":"ياسمين محمد محمد الحنفى"},null,null,null,null,null,null,null,null,null,null,null,null,null,null,55,null,null,1]
[56,{"$f":"VLOOK2ALL(بنين!$D$10:$D$2547,$G$8,Q66,0)","v":0},null,null,null,null,null,null,null,null,null,null,null,null,null,null,56,null,null,1]
[57,{"$f":"VLOOK2ALL(بنين!$D$10:$D$2547,$G$8,Q67,0)","v":0},null,null,null,null,null,null,null,null,null,null,null,null,null,null,57,null,null,1]
[58,{"$f":"VLOOK2ALL(بنين!$D$10:$D$2547,$G$8,Q68,0)","v":0},null,null,null,null,null,null,null,null,null,null,null,null,null,null,58,null,null,1]
[59,{"$f":"VLOOK2ALL(بنين!$D$10:$D$2547,$G$8,Q69,0)","v":0},null,null,null,null,null,null,null,null,null,null,null,null,null,null,59,null,null,1]
[60,{"$f":"VLOOK2ALL(بنين!$D$10:$D$2547,$G$8,Q70,0)","v":0},null,null,null,null,null,null,null,null,null,null,null,null,null,null,60,null,null,1]
[61,{"$f":"VLOOK2ALL(بنين!$D$10:$D$2547,$G$8,Q71,0)","v":0},null,null,null,null,null,null,null,null,null,null,null,null,null,null,61,null,null,1]
[62,{"$f":"VLOOK2ALL(بنين!$D$10:$D$2547,$G$8,Q72,0)","v":0},null,null,null,null,null,null,null,null,null,null,null,null,null,null,62,null,null,1]
[63,{"$f":"VLOOK2ALL(بنين!$D$10:$D$2547,$G$8,Q73,0)","v":0},null,null,null,null,null,null,null,null,null,null,null,null,null,null,63,null,null,1]
[null,null,null,null,null,null,null,null,null,null,null,null,null,null,null,null,64]
[null,null,null,null,null,null,null,null,null,null,null,null,null,null,null,null,65]
[null,null,null,null,null,null,null,null,null,null,null,null,null,null,null,null,{"$f":"ROW()-10","v":66}]
[null,null,{"$f":"COUNTA(C11:C73)","v":0},null,null,null,null,null,null,null,null,null,null,null,null,null,67]
[null,null,null,null,null,null,null,null,null,null,null,null,null,null,null,null,68]
[null,null,null,null,null,null,null,null,null,null,null,null,null,null,null,null,69]
[null,null,null,null,null,null,null,null,null,null,null,null,null,null,null,null,70]
[null,null,null,null,null,null,null,null,null,null,null,null,null,null,null,null,71]
[null,null,null,null,null,null,null,null,null,null,null,null,null,null,null,null,72]
[null,null,null,null,null,null,null,null,null,null,null,null,null,null,null,null,73]
[null,null,null,null,null,null,null,null,null,null,null,null,null,null,null,null,74]
[null,null,null,null,null,null,null,null,null,null,null,null,null,null,null,null,75]
[null,null,null,null,null,null,null,null,null,null,null,null,null,null,null,null,76]
[null,null,null,null,null,null,null,null,null,null,null,null,null,null,null,null,77]
[null,null,null,null,null,null,null,null,null,null,null,null,null,null,null,null,78]
[null,null,null,null,null,null,null,null,null,null,null,null,null,null,null,null,79]
[null,null,null,null,null,null,null,null,null,null,null,null,null,null,null,null,80]
[null,null,null,null,null,null,null,null,null,null,null,null,null,null,null,null,81]
[null,null,null,null,null,null,null,null,null,null,null,null,null,null,null,null,82]
[null,null,null,null,null,null,null,null,null,null,null,null,null,null,null,null,83]
[null,null,null,null,null,null,null,null,null,null,null,null,null,null,null,null,84]
[null,null,null,null,null,null,null,null,null,null,null,null,null,null,null,null,85]
[null,null,null,null,null,null,null,null,null,null,null,null,null,null,null,null,86]
[null,null,null,null,null,null,null,null,null,null,null,null,null,null,null,null,87]
[null,null,null,null,null,null,null,null,null,null,null,null,null,null,null,null,88]
[null,null,null,null,null,null,null,null,null,null,null,null,null,null,null,null,89]
[null,null,null,null,null,null,null,null,null,null,null,null,null,null,null,null,90]
[null,null,null,null,null,null,null,null,null,null,null,null,null,null,null,null,91]
[null,null,null,null,null,null,null,null,null,null,null,null,null,null,null,null,92]
[null,null,null,null,null,null,null,null,null,null,null,null,null,null,null,null,93]
[null,null,null,null,null,null,null,null,null,null,null,null,null,null,null,null,94]
[null,null,null,null,null,null,null,null,null,null,null,null,null,null,null,null,95]
[null,null,null,null,null,null,null,null,null,null,null,null,null,null,null,null,96]
[null,null,null,null,null,null,null,null,null,null,null,null,null,null,null,null,97]
[null,null,null,null,null,null,null,null,null,null,null,null,null,null,null,null,98]
[null,null,null,null,null,null,null,null,null,null,null,null,null,null,null,null,99]
[null,null,null,null,null,null,null,null,null,null,null,null,null,null,null,null,100]
[null,null,null,null,null,null,null,null,null,null,null,null,null,null,null,null,101]
[null,null,null,null,null,null,null,null,null,null,null,null,null,null,null,null,102]
[null,null,null,null,null,null,null,null,null,null,null,null,null,null,null,null,103]
[null,null,null,null,null,null,null,null,null,null,null,null,null,null,null,null,104]
[null,null,null,null,null,null,null,null,null,null,null,null,null,null,null,null,105]
[null,null,null,null,null,null,null,null,null,null,null,null,null,null,null,null,106]
[null,null,null,null,null,null,null,null,null,null,null,null,null,null,null,null,107]
[null,null,null,null,null,null,null,null,null,null,null,null,null,null,null,null,108]
[null,null,null,null,null,null,null,null,null,null,null,null,null,null,null,null,109]
[null,null,null,null,null,null,null,null,null,null,null,null,null,null,null,null,110]
[null,null,null,null,null,null,null,null,null,null,null,null,null,null,null,null,111]
[null,null,null,null,null,null,null,null,null,null,null,null,null,null,null,null,112]
[null,null,null,null,null,null,null,null,null,null,null,null,null,null,null,null,113]
[null,null,null,null,null,null,null,null,null,null,null,null,null,null,null,null,114]
[null,null,null,null,null,null,null,null,null,null,null,null,null,null,null,null,115]
[null,null,null,null,null,null,null,null,null,null,null,null,null,null,null,null,116]
[null,null,null,null,null,null,null,null,null,null,null,null,null,null,null,null,117]
[null,null,null,null,null,null,null,null,null,null,null,null,null,null,null,null,118]
[null,null,null,null,null,null,null,null,null,null,null,null,null,null,null,null,119]
[null,null,null,null,null,null,null,null,null,null,null,null,null,null,null,null,120]
[null,null,null,null,null,null,null,null,null,null,null,null,null,null,null,null,121]
[null,null,null,null,null,null,null,null,null,null,null,null,null,null,null,null,122]
[null,null,null,null,null,null,null,null,null,null,null,null,null,null,null,null,123]
[null,null,null,null,null,null,null,null,null,null,null,null,null,null,null,null,124]
[null,null,null,null,null,null,null,null,null,null,null,null,null,null,null,null,125]
[null,null,null,null,null,null,null,null,null,null,null,null,null,null,null,null,126]
[null,null,null,null,null,null,null,null,null,null,null,null,null,null,null,null,127]
[null,null,null,null,null,null,null,null,null,null,null,null,null,null,null,null,128]
[null,null,null,null,null,null,null,null,null,null,null,null,null,null,null,null,129]
[null,null,null,null,null,null,null,null,null,null,null,null,null,null,null,null,{"$f":"ROW()-10","v":130}]
[null,null,null,null,null,null,null,null,null,null,null,null,null,null,null,null,131]
[null,null,null,null,null,null,null,null,null,null,null,null,null,null,null,null,132]
[null,null,null,null,null,null,null,null,null,null,null,null,null,null,null,null,133]
[null,null,null,null,null,null,null,null,null,null,null,null,null,null,null,null,134]
[null,null,null,null,null,null,null,null,null,null,null,null,null,null,null,null,135]
[null,null,null,null,null,null,null,null,null,null,null,null,null,null,null,null,136]
[null,null,null,null,null,null,null,null,null,null,null,null,null,null,null,null,137]
[null,null,null,null,null,null,null,null,null,null,null,null,null,null,null,null,138]
[null,null,null,null,null,null,null,null,null,null,null,null,null,null,null,null,139]
[null,null,null,null,null,null,null,null,null,null,null,null,null,null,null,null,140]
[null,null,null,null,null,null,null,null,null,null,null,null,null,null,null,null,141]
[null,null,null,null,null,null,null,null,null,null,null,null,null,null,null,null,142]
[null,null,null,null,null,null,null,null,null,null,null,null,null,null,null,null,143]
[null,null,null,null,null,null,null,null,null,null,null,null,null,null,null,null,144]
[null,null,null,null,null,null,null,null,null,null,null,null,null,null,null,null,145]
[null,null,null,null,null,null,null,null,null,null,null,null,null,null,null,null,146]
[null,null,null,null,null,null,null,null,null,null,null,null,null,null,null,null,147]
[null,null,null,null,null,null,null,null,null,null,null,null,null,null,null,null,148]
[null,null,null,null,null,null,null,null,null,null,null,null,null,null,null,null,149]
[null,null,null,null,null,null,null,null,null,null,null,null,null,null,null,null,150]
[null,null,null,null,null,null,null,null,null,null,null,null,null,null,null,null,151]
[null,null,null,null,null,null,null,null,null,null,null,null,null,null,null,null,152]
[null,null,null,null,null,null,null,null,null,null,null,null,null,null,null,null,153]
[null,null,null,null,null,null,null,null,null,null,null,null,null,null,null,null,154]
[null,null,null,null,null,null,null,null,null,null,null,null,null,null,null,null,155]
[null,null,null,null,null,null,null,null,null,null,null,null,null,null,null,null,156]
[null,null,null,null,null,null,null,null,null,null,null,null,null,null,null,null,157]
[]
[]
[]
[]
[]
[]
[]
[]
[]
[]
[]
[]
[]
[]
[]
[]
[]
[]
[]
[]
[]
[]
[]
[]
[]
[]
[]
[]
[]
[]
[]
[]
[]
[]
[]
[]
[]
[]
[]
[]
[]
[]
[]
[]
[]
[null,null,null,null,null,null,{"$f":"IF($H$6=\"الاول\",\"1\\1\",IF($H$6=\"الثاني\",\"2\\1\",IF($H$6=\"الثالث\",\"3\\1\",\"\")))","v":"1\\1"},null,null,null,null,null,null,null,null,null,1]
[null,null,null,null,null,null,{"$f":"IF($H$6=\"الاول\",\"1\\2\",IF($H$6=\"الثاني\",\"2\\2\",IF($H$6=\"الثالث\",\"3\\2\",\"\")))","v":"1\\2"},null,null,null,null,null,null,null,null,null,{"$f":"Q213+1","v":2}]
[null,null,null,null,null,null,{"$f":"IF($H$6=\"الاول\",\"1\\3\",IF($H$6=\"الثاني\",\"2\\3\",IF($H$6=\"الثالث\",\"3\\3\",\"\")))","v":"1\\3"},null,null,null,null,null,null,null,null,null,3]
[null,null,null,null,null,null,{"$f":"IF($H$6=\"الاول\",\"1\\4\",IF($H$6=\"الثاني\",\"2\\4\",IF($H$6=\"الثالث\",\"3\\4\",\"\")))","v":"1\\4"},null,null,null,null,null,null,null,null,null,4]
[null,null,null,null,null,null,{"$f":"IF($H$6=\"الاول\",\"1\\5\",IF($H$6=\"الثاني\",\"2\\5\",IF($H$6=\"الثالث\",\"3\\5\",\"\")))","v":"1\\5"},null,null,null,null,null,null,null,null,null,5]
[null,null,null,null,null,null,{"$f":"IF($H$6=\"الاول\",\"1\\6\",IF($H$6=\"الثاني\",\"2\\6\",IF($H$6=\"الثالث\",\"3\\6\",\"\")))","v":"1\\6"},null,null,null,null,null,null,null,null,null,6]
[null,null,null,null,null,null,{"$f":"IF($H$6=\"الاول\",\"1\\7\",IF($H$6=\"الثاني\",\"2\\7\",IF($H$6=\"الثالث\",\"3\\7\",\"\")))","v":"1\\7"},null,null,null,null,null,null,null,null,null,7]
[null,null,null,null,null,null,{"$f":"IF($H$6=\"الاول\",\"1\\8\",IF($H$6=\"الثاني\",\"2\\8\",IF($H$6=\"الثالث\",\"3\\8\",\"\")))","v":"1\\8"},null,null,null,null,null,null,null,null,null,8]
[null,null,null,null,null,null,{"$f":"IF($H$6=\"الاول\",\"1\\9\",IF($H$6=\"الثاني\",\"2\\9\",IF($H$6=\"الثالث\",\"3\\9\",\"\")))","v":"1\\9"},null,null,null,null,null,null,null,null,null,9]
[null,null,null,null,null,null,{"$f":"IF($H$6=\"الاول\",\"1\\10\",IF($H$6=\"الثاني\",\"2\\10\",IF($H$6=\"الثالث\",\"3\\10\",\"\")))","v":"1\\10"},null,null,null,null,null,null,null,null,null,10]
[null,null,null,null,null,null,{"$f":"IF($H$6=\"الاول\",\"1\\11\",IF($H$6=\"الثاني\",\"2\\11\",IF($H$6=\"الثالث\",\"3\\11\",\"\")))","v":"1\\11"},null,null,null,null,null,null,null,null,null,11]
[null,null,null,null,null,null,{"$f":"IF($H$6=\"الاول\",\"1\\12\",IF($H$6=\"الثاني\",\"2\\12\",IF($H$6=\"الثالث\",\"3\\12\",\"\")))","v":"1\\12"},null,null,null,null,null,null,null,null,null,12]
[null,null,null,null,null,null,{"$f":"IF($H$6=\"الاول\",\"1\\13\",IF($H$6=\"الثاني\",\"2\\13\",IF($H$6=\"الثالث\",\"3\\13\",\"\")))","v":"1\\13"},null,null,null,null,null,null,null,null,null,13]
[null,null,null,null,null,null,{"$f":"IF($H$6=\"الاول\",\"1\\14\",IF($H$6=\"الثاني\",\"2\\14\",IF($H$6=\"الثالث\",\"3\\14\",\"\")))","v":"1\\14"},null,null,null,null,null,null,null,null,null,14]
[null,null,null,null,null,null,{"$f":"IF($H$6=\"الاول\",\"1\\15\",IF($H$6=\"الثاني\",\"2\\15\",IF($H$6=\"الثالث\",\"3\\15\",\"\")))","v":"1\\15"},null,null,null,null,null,null,null,null,null,15]
[null,null,null,null,null,null,{"$f":"IF($H$6=\"الاول\",\"1\\16\",IF($H$6=\"الثاني\",\"2\\16\",IF($H$6=\"الثالث\",\"3\\16\",\"\")))","v":"1\\16"},null,null,null,null,null,null,null,null,null,16]
[null,null,null,null,null,null,{"$f":"IF($H$6=\"الاول\",\"1\\17\",IF($H$6=\"الثاني\",\"2\\17\",IF($H$6=\"الثالث\",\"3\\17\",\"\")))","v":"1\\17"},null,null,null,null,null,null,null,null,null,17]
[null,null,null,null,null,null,{"$f":"IF($H$6=\"الاول\",\"1\\18\",IF($H$6=\"الثاني\",\"2\\18\",IF($H$6=\"الثالث\",\"3\\18\",\"\")))","v":"1\\18"},null,null,null,null,null,null,null,null,null,18]
[null,null,null,null,null,null,{"$f":"IF($H$6=\"الاول\",\"1\\19\",IF($H$6=\"الثاني\",\"2\\19\",IF($H$6=\"الثالث\",\"3\\19\",\"\")))","v":"1\\19"},null,null,null,null,null,null,null,null,null,19]
[null,null,null,null,null,null,{"$f":"IF($H$6=\"الاول\",\"1\\20\",IF($H$6=\"الثاني\",\"2\\20\",IF($H$6=\"الثالث\",\"3\\20\",\"\")))","v":"1\\20"},null,null,null,null,null,null,null,null,null,20]
[null,null,null,null,null,null,{"$f":"IF($H$6=\"الاول\",\"\",IF($H$6=\"الثاني\",\"\",IF($H$6=\"الثالث\",\"\",\"\")))","v":""},null,null,null,null,null,null,null,null,null,21]
[null,null,null,null,null,null,{"$f":"IF($H$6=\"الاول\",\"\",IF($H$6=\"الثاني\",\"\",IF($H$6=\"الثالث\",\"\",\"\")))","v":""},null,null,null,null,null,null,null,null,null,22]
[null,null,null,null,null,null,{"$f":"IF($H$6=\"الاول\",\"\",IF($H$6=\"الثاني\",\"\",IF($H$6=\"الثالث\",\"\",\"\")))","v":""},null,null,null,null,null,null,null,null,null,23]
[null,null,null,null,null,null,null,null,null,null,null,null,null,null,null,null,24]
[null,null,null,null,null,null,null,null,null,null,null,null,null,null,null,null,25]
[null,null,null,null,null,null,null,null,null,null,null,null,null,null,null,null,26]
[null,null,null,null,null,null,null,null,null,null,null,null,null,null,null,null,27]
[null,null,null,null,null,null,null,null,null,null,null,null,null,null,null,null,28]
[null,null,null,null,null,null,null,null,null,null,null,null,null,null,null,null,29]
[null,null,null,null,null,null,null,null,null,null,null,null,null,null,null,null,30]
[null,null,null,null,null,null,null,null,null,null,null,null,null,null,null,null,31]
[null,null,null,null,null,null,null,null,null,null,null,null,null,null,null,null,32]
[null,null,null,null,null,null,null,null,null,null,null,null,null,null,null,null,33]
[null,null,null,null,null,null,null,null,null,null,null,null,null,null,null,null,{"$f":"Q245+1","v":34}]
[null,null,null,null,null,null,null,null,null,null,null,null,null,null,null,null,35]
[null,null,null,null,null,null,null,null,null,null,null,null,null,null,null,null,36]
[null,null,null,null,null,null,null,null,null,null,null,null,null,null,null,null,37]
[null,null,null,null,null,null,null,null,null,null,null,null,null,null,null,null,38]
[null,null,null,null,null,null,null,null,null,null,null,null,null,null,null,null,39]
[null,null,null,null,null,null,null,null,null,null,null,null,null,null,null,null,40]
[null,null,null,null,null,null,null,null,null,null,null,null,null,null,null,null,41]
[null,null,null,null,null,null,null,null,null,null,null,null,null,null,null,null,42]
[null,null,null,null,null,null,null,null,null,null,null,null,null,null,null,null,43]
[null,null,null,null,null,null,null,null,null,null,null,null,null,null,null,null,44]
[null,null,null,null,null,null,null,null,null,null,null,null,null,null,null,null,45]
[null,null,null,null,null,null,null,null,null,null,null,null,null,null,null,null,46]
[null,null,null,null,null,null,null,null,null,null,null,null,null,null,null,null,47]
[null,null,null,null,null,null,null,null,null,null,null,null,null,null,null,null,48]
[null,null,null,null,null,null,null,null,null,null,null,null,null,null,null,null,49]
[null,null,null,null,null,null,null,null,null,null,null,null,null,null,null,null,50]
[null,null,null,null,null,null,null,null,null,null,null,null,null,null,null,null,51]
[null,null,null,null,null,null,null,null,null,null,null,null,null,null,null,null,52]
[null,null,null,null,null,null,null,null,null,null,null,null,null,null,null,null,53]
[null,null,null,null,null,null,null,null,null,null,null,null,null,null,null,null,54]
[null,null,null,null,null,null,null,null,null,null,null,null,null,null,null,null,55]
[null,null,null,null,null,null,null,null,null,null,null,null,null,null,null,null,56]
[null,null,null,null,null,null,null,null,null,null,null,null,null,null,null,null,57]
[null,null,null,null,null,null,null,null,null,null,null,null,null,null,null,null,58]
[null,null,null,null,null,null,null,null,null,null,null,null,null,null,null,null,59]
[null,null,null,null,null,null,null,null,null,null,null,null,null,null,null,null,60]
[null,null,null,null,null,null,null,null,null,null,null,null,null,null,null,null,61]
[null,null,null,null,null,null,null,null,null,null,null,null,null,null,null,null,62]
[null,null,null,null,null,null,null,null,null,null,null,null,null,null,null,null,63]
[null,null,null,null,null,null,null,null,null,null,null,null,null,null,null,null,64]
[null,null,null,null,null,null,null,null,null,null,null,null,null,null,null,null,65]
[null,null,null,null,null,null,null,null,null,null,null,null,null,null,null,null,{"$f":"Q277+1","v":66}]
[null,null,null,null,null,null,null,null,null,null,null,null,null,null,null,null,67]
[null,null,null,null,null,null,null,null,null,null,null,null,null,null,null,null,68]
[null,null,null,null,null,null,null,null,null,null,null,null,null,null,null,null,69]
[null,null,null,null,null,null,null,null,null,null,null,null,null,null,null,null,70]
[null,null,null,null,null,null,null,null,null,null,null,null,null,null,null,null,71]
[null,null,null,null,null,null,null,null,null,null,null,null,null,null,null,null,72]
[null,null,null,null,null,null,null,null,null,null,null,null,null,null,null,null,73]
[null,null,null,null,null,null,null,null,null,null,null,null,null,null,null,null,74]
[null,null,null,null,null,null,null,null,null,null,null,null,null,null,null,null,75]
[null,null,null,null,null,null,null,null,null,null,null,null,null,null,null,null,76]
[null,null,null,null,null,null,null,null,null,null,null,null,null,null,null,null,77]
[null,null,null,null,null,null,null,null,null,null,null,null,null,null,null,null,78]
[null,null,null,null,null,null,null,null,null,null,null,null,null,null,null,null,79]
[null,null,null,null,null,null,null,null,null,null,null,null,null,null,null,null,80]
[null,null,null,null,null,null,null,null,null,null,null,null,null,null,null,null,81]
[null,null,null,null,null,null,null,null,null,null,null,null,null,null,null,null,82]
[null,null,null,null,null,null,null,null,null,null,null,null,null,null,null,null,83]
[null,null,null,null,null,null,null,null,null,null,null,null,null,null,null,null,84]
[null,null,null,null,null,null,null,null,null,null,null,null,null,null,null,null,85]
[null,null,null,null,null,null,null,null,null,null,null,null,null,null,null,null,86]
[null,null,null,null,null,null,null,null,null,null,null,null,null,null,null,null,87]
[null,null,null,null,null,null,null,null,null,null,null,null,null,null,null,null,88]
[null,null,null,null,null,null,null,null,null,null,null,null,null,null,null,null,89]
[null,null,null,null,null,null,null,null,null,null,null,null,null,null,null,null,90]
[null,null,null,null,null,null,null,null,null,null,null,null,null,null,null,null,91]
[null,null,null,null,null,null,null,null,null,null,null,null,null,null,null,null,92]
[null,null,null,null,null,null,null,null,null,null,null,null,null,null,null,null,93]
[null,null,null,null,null,null,null,null,null,null,null,null,null,null,null,null,94]
[null,null,null,null,null,null,null,null,null,null,null,null,null,null,null,null,95]
[null,null,null,null,null,null,null,null,null,null,null,null,null,null,null,null,96]
[null,null,null,null,null,null,null,null,null,null,null,null,null,null,null,null,97]
[null,null,null,null,null,null,null,null,null,null,null,null,null,null,null,null,{"$f":"Q309+1","v":98}]
[null,null,null,null,null,null,null,null,null,null,null,null,null,null,null,null,99]
[null,null,null,null,null,null,null,null,null,null,null,null,null,null,null,null,100]
[null,null,null,null,null,null,null,null,null,null,null,null,null,null,null,null,101]
[null,null,null,null,null,null,null,null,null,null,null,null,null,null,null,null,102]
[null,null,null,null,null,null,null,null,null,null,null,null,null,null,null,null,103]
[null,null,null,null,null,null,null,null,null,null,null,null,null,null,null,null,104]
[null,null,null,null,null,null,null,null,null,null,null,null,null,null,null,null,105]
[null,null,null,null,null,null,null,null,null,null,null,null,null,null,null,null,106]
[null,null,null,null,null,null,null,null,null,null,null,null,null,null,null,null,107]
[null,null,null,null,null,null,null,null,null,null,null,null,null,null,null,null,108]
[null,null,null,null,null,null,null,null,null,null,null,null,null,null,null,null,109]
[null,null,null,null,null,null,null,null,null,null,null,null,null,null,null,null,110]

{"sheet":"غياب1-1","index":3,"n_rows":75,"n_cols":333,"rows_kept":75,"cut":false,"hidden":false,"merged":[[73,2,73,10],[74,2,74,10],[73,46,73,54],[74,46,74,54],[73,80,73,88],[74,80,74,88],[73,114,73,122],[74,114,74,122],[73,148,73,156],[74,148,74,156],[73,284,73,292],[74,284,74,292],[73,182,73,190],[74,182,74,190],[73,216,73,224],[74,216,74,224],[73,250,73,258],[74,250,74,258]]}
[null,null,null,null,"1\\1",null,null,null,null,"سبتمبر",null,null,null,null,null,null,null,null,null,null,null,null,null,null,null,null,null,null,null,null,null,null,null,null,null,null,null,null,null,null,null,null,null,null,null,null,null,null,"1\\1",null,null,null,null,null,null,null,"اكتوبر",null,null,null,null,null,null,null,null,null,null,null,null,null,null,null,null,null,null,null,null,null,null,null,null,null,"1\\1",null,null,null,null,null,null,null,"نوفمبر",null,null,null,null,null,null,null,null,null,null,null,null,null,null,null,null,null,null,null,null,null,null,null,null,null,"1\\1",null,null,null,null,null,null,"ديسمبر",null,null,null,null,null,null,null,null,null,null,null,null,null,null,null,null,null,null,null,null,null,null,null,null,null,null,"1\\1",null,null,null,null,null,null,null,"يناير",null,null,null,null,null,null,null,null,null,null,null,null,null,null,null,null,null,null,null,null,null,null,null,null,null,"1\\1",null,null,null,null,null,null,null,null,"فبراير",null,null,null,null,null,null,null,null,null,null,null,null,null,null,null,null,null,null,null,null,null,null,null,null,"1\\1",null,null,null,null,null,null,null,"مارس",null,null,null,null,null,null,null,null,null,null,null,null,null,null,null,null,null,null,null,null,null,null,null,null,null,"1\\1",null,null,null,null,null,null,null,"ابريل",null,null,null,null,null,null,null,null,null,null,null,null,null,null,null,null,null,null,null,null,null,null,null,null,null,"1\\1",null,null,null,null,null,null,null,"مايو"]
[]
[]
[null,null,"2018-08-30","2018-08-30","2018-08-30","2018-08-30","2018-08-30","2018-08-30",null,null,null,null,null,null,null,null,null,null,null,null,null,null,null,null,null,null,null,null,null,null,null,null,null,{"$f":"COUNTA(C4:AG4)","v":6},null,null,null,null,null,null,null,null,null,null,null,null,"2018-08-30","2018-08-30","2018-08-30",null,null,null,null,null,null,null,null,null,null,null,null,null,null,null,null,"2018-08-30",null,null,null,null,null,null,null,null,null,null,null,{"$f":"COUNT(AU4:BY4)","v":4},null,null,"2018-08-30","2018-08-30",null,null,null,null,null,null,null,null,null,null,null,null,null,null,null,null,null,null,null,null,null,null,null,null,null,null,null,null,null,{"$f":"COUNT(CC4:DF4)","v":2},null,null,"2018-08-30","2018-08-30",null,null,null,null,null,null,null,null,null,null,null,null,null,null,null,null,null,null,null,null,null,null,null,null,null,null,null,null,null,{"$f":"COUNT(DK4:EO4)","v":2},null,null,"2018-08-30","2018-08-30",null,null,null,null,null,null,null,null,null,null,null,null,null,null,null,null,null,null,null,null,null,null,null,null,null,null,null,null,null,{"$f":"COUNT(ES4:FW4)","v":2},null,null,null,"2018-08-30","2018-08-30","2018-08-30",null,null,null,null,null,null,null,null,null,null,null,null,null,null,null,null,null,null,null,null,null,null,null,null,null,null,null,{"$f":"COUNT(GA4:HB4)","v":3},null,null,"2018-08-30","2018-08-30",null,null,null,null,null,null,null,null,null,null,null,null,null,null,null,null,null,null,null,null,null,null,null,null,null,null,null,null,null,{"$f":"COUNT(HI4:IM4)","v":2},null,null,"2018-08-29",null,null,null,null,null,null,null,null,null,null,null,null,null,null,null,null,null,null,null,null,null,null,null,null,null,null,null,null,null,null,{"$f":"COUNTA(IQ4:JT4)","v":1},null,null,"2018-08-30","2018-08-30",null,null,null,null,null,null,null,null,null,null,null,null,null,null,null,null,null,null,null,null,null,null,null,null,null,null,null,null,null,{"$f":"COUNT(JY4:LC4)","v":2}]
["م","الاســــــــــــــــــــــــم",1,2,3,4,5,6,7,8,9,10,11,12,13,14,15,16,17,18,19,20,21,22,23,24,25,26,27,28,29,30,null,null,null,null,null,null,null,null,null,null,null,null,{"$f":"ROW()-4","v":1},null,1,2,3,4,5,6,7,8,9,10,11,12,13,14,15,16,17,18,19,20,21,22,23,24,25,26,27,28,29,30,31,null,null,null,1,2,3,4,5,6,7,8,9,10,11,12,13,14,15,16,17,18,19,20,21,22,23,24,25,26,27,28,29,30,null,null,null,null,1,2,3,4,5,6,7,8,9,10,11,12,13,14,15,16,17,18,19,20,21,22,23,24,25,26,27,28,29,30,31,null,null,null,1,2,3,4,5,6,7,8,9,10,11,12,13,14,15,16,17,18,19,20,21,22,23,24,25,26,27,28,29,30,31,null,null,null,1,2,3,4,5,6,7,8,9,10,11,12,13,14,15,16,17,18,19,20,21,22,23,24,25,26,27,28,null,null,null,null,null,null,1,2,3,4,5,6,7,8,9,10,11,12,13,14,15,16,17,18,19,20,21,22,23,24,25,26,27,28,29,30,31,null,null,null,1,2,3,4,5,6,7,8,9,10,11,12,13,14,15,16,17,18,19,20,21,22,23,24,25,26,27,28,29,30,null,null,null,null,1,2,3,4,5,6,7,8,9,10,11,12,13,14,15,16,17,18,19,20,21,22,23,24,25,26,27,28,29,30,31,null,null,null,null,null,null,null,null,null,null,null,null,null,null,null,null,null,"1\\1"]
[{"$f":"IF(B6=\"\",\"\",ROW()-5)","v":1},{"$f":"VLOOK2ALL(بنين!$D$10:$D$2547,$E$1,AS5,0)","v":"ابراهيم ابراهيم على ابراهيم البدحى"},null,null,null,null,null,null,null,null,null,null,null,null,null,null,null,null,null,null,null,null,null,null,null,null,null,null,null,null,null,null,null,{"$f":"COUNTA(C6:AG6)","v":0},null,null,null,null,null,null,null,null,null,null,{"$f":"ROW()-4","v":2},null,"غ",null,"غ",null,null,null,null,null,null,null,null,null,null,null,null,null,null,null,null,null,null,null,null,null,null,null,null,null,null,null,null,{"$f":"COUNTA(AU6:BY6)","v":2},null,null,"غ",null,"غ",null,null,null,null,null,null,null,null,null,null,null,null,null,null,null,null,null,null,null,null,null,null,null,null,null,null,null,null,{"$f":"COUNTA(CC6:DG6)","v":2},null,null,"غ",null,"غ",null,null,null,null,null,null,null,null,null,null,null,null,null,null,null,null,null,null,null,null,null,null,null,null,null,null,null,null,{"$f":"COUNTA(DK6:EO6)","v":2},null,null,"غ",null,"غ",null,null,null,null,null,null,null,null,null,null,null,null,null,null,null,null,null,null,null,null,null,null,null,null,null,null,null,null,{"$f":"COUNTA(ES6:FW6)","v":2},null,null,"غ",null,"غ",null,null,null,null,null,null,null,null,null,null,null,null,null,null,null,null,null,null,null,null,null,null,null,null,null,null,null,null,{"$f":"COUNTA(GA6:HE6)","v":2},null,null,"غ",null,"غ",null,null,null,null,null,null,null,null,null,null,null,null,null,null,null,null,null,null,null,null,null,null,null,null,null,null,null,null,{"$f":"COUNTA(HI6:IM6)","v":2},null,null,"غ",null,"غ",null,null,null,null,null,null,null,null,null,null,null,null,null,null,null,null,null,null,null,null,null,null,null,null,null,null,null,null,{"$f":"COUNTA(IQ6:JU6)","v":2},null,null,"غ",null,"غ",null,null,null,null,null,null,null,null,null,null,null,null,null,null,null,null,null,null,null,null,null,null,null,null,null,null,null,null,{"$f":"COUNTA(JY6:LC6)","v":2},null,null,null,null,null,null,null,null,null,null,null,null,null,null,null,null,"1\\2"]
[{"$f":"IF(B7=\"\",\"\",ROW()-5)","v":2},{"$f":"VLOOK2ALL(بنين!$D$10:$D$2547,$E$1,AS6,0)","v":"ابراهيم السيد ابراهيم احمد محمد"},null,null,null,null,null,null,null,null,null,null,null,null,null,null,null,null,null,null,null,null,null,null,null,null,null,null,null,null,null,null,null,0,null,null,null,null,null,null,null,null,null,null,3,null,"غ",null,null,null,null,null,null,null,null,null,"غ",null,null,null,null,null,"غ",null,null,"غ",null,null,null,null,null,null,null,null,null,null,null,4,null,null,"غ",null,null,null,null,null,null,null,null,null,"غ",null,null,null,null,null,"غ",null,null,"غ",null,null,null,null,null,null,null,null,null,null,null,4,null,null,"غ",null,null,null,null,null,null,null,null,null,"غ",null,null,null,null,null,"غ",null,null,"غ",null,null,null,null,null,null,null,null,null,null,null,4,null,null,"غ",null,null,null,null,null,null,null,null,null,"غ",null,null,null,null,null,"غ",null,null,"غ",null,null,null,null,null,null,null,null,null,null,null,4,null,null,"غ",null,null,null,null,null,null,null,null,null,"غ",null,null,null,null,null,"غ",null,null,"غ",null,null,null,null,null,null,null,null,null,null,null,4,null,null,"غ",null,null,null,null,null,null,null,null,null,"غ",null,null,null,null,null,"غ",null,null,"غ",null,null,null,null,null,null,null,null,null,null,null,4,null,null,"غ",null,null,null,null,null,null,null,null,null,"غ",null,null,null,null,null,"غ",null,null,"غ",null,null,null,null,null,null,null,null,null,null,null,4,null,null,"غ",null,null,null,null,null,null,null,null,null,"غ",null,null,null,null,null,"غ",null,null,"غ",null,null,null,null,null,null,null,null,null,null,null,4,null,null,null,null,null,null,null,null,null,null,null,null,null,null,null,null,"1\\3"]
[3,{"$f":"VLOOK2ALL(بنين!$D$10:$D$2547,$E$1,AS7,0)","v":"ابراهيم المرسى يوسف جمال الدين"},null,null,null,null,null,null,null,null,null,null,null,null,null,null,null,null,null,null,null,null,null,null,null,null,null,null,null,null,null,null,null,0,null,null,null,null,null,null,null,null,null,null,4,null,"غ",null,null,null,null,null,null,null,null,null,null,null,null,null,null,null,null,null,null,null,null,null,null,null,null,null,null,null,null,null,null,1,null,null,"غ",null,null,null,null,null,null,null,null,null,null,null,null,null,null,null,null,null,null,null,null,null,null,null,null,null,null,null,null,null,null,1,null,null,"غ",null,null,null,null,null,null,null,null,null,null,null,null,null,null,null,null,null,null,null,null,null,null,null,null,null,null,null,null,null,null,1,null,null,"غ",null,null,null,null,null,null,null,null,null,null,null,null,null,null,null,null,null,null,null,null,null,null,null,null,null,null,null,null,null,null,1,null,null,"غ",null,null,null,null,null,null,null,null,null,null,null,null,null,null,null,null,null,null,null,null,null,null,null,null,null,null,null,null,null,null,1,null,null,"غ",null,null,null,null,null,null,null,null,null,null,null,null,null,null,null,null,null,null,null,null,null,null,null,null,null,null,null,null,null,null,1,null,null,"غ",null,null,null,null,null,null,null,null,null,null,null,null,null,null,null,null,null,null,null,null,null,null,null,null,null,null,null,null,null,null,1,null,null,"غ",null,null,null,null,null,null,null,null,null,null,null,null,null,null,null,null,null,null,null,null,null,null,null,null,null,null,null,null,null,null,1,null,null,null,null,null,null,null,null,null,null,null,null,null,null,null,null,"1\\4"]
[4,{"$f":"VLOOK2ALL(بنين!$D$10:$D$2547,$E$1,AS8,0)","v":"ابراهيم حسن محروس محمد"},null,null,null,null,null,null,null,null,null,null,null,null,null,null,null,null,null,null,null,null,null,null,null,null,null,null,null,null,null,null,null,0,null,null,null,null,null,null,null,null,null,null,5,null,null,null,null,null,null,null,null,null,null,null,null,null,null,null,null,null,null,null,null,null,null,null,null,null,null,null,null,null,null,null,null,0,null,null,null,null,null,null,null,null,null,null,null,null,null,null,null,null,null,null,null,null,null,null,null,null,null,null,null,null,null,null,null,null,null,0,null,null,null,null,null,null,null,null,null,null,null,null,null,null,null,null,null,null,null,null,null,null,null,null,null,null,null,null,null,null,null,null,null,0,null,null,null,null,null,null,null,null,null,null,null,null,null,null,null,null,null,null,null,null,null,null,null,null,null,null,null,null,null,null,null,null,null,0,null,null,null,null,null,null,null,null,null,null,null,null,null,null,null,null,null,null,null,null,null,null,null,null,null,null,null,null,null,null,null,null,null,0,null,null,null,null,null,null,null,null,null,null,null,null,null,null,null,null,null,null,null,null,null,null,null,null,null,null,null,null,null,null,null,null,null,0,null,null,null,null,null,null,null,null,null,null,null,null,null,null,null,null,null,null,null,null,null,null,null,null,null,null,null,null,null,null,null,null,null,0,null,null,null,null,null,null,null,null,null,null,null,null,null,null,null,null,null,null,null,null,null,null,null,null,null,null,null,null,null,null,null,null,null,0,null,null,null,null,null,null,null,null,null,null,null,null,null,null,null,null,"2\\1"]
[5,{"$f":"VLOOK2ALL(بنين!$D$10:$D$2547,$E$1,AS9,0)","v":"ابراهيم عاطف محمد حاتم"},null,null,null,null,null,null,null,null,null,null,null,null,null,null,null,null,null,null,null,null,null,null,null,null,null,null,null,null,null,null,null,0,null,null,null,null,null,null,null,null,null,null,6,null,null,null,null,null,null,null,null,null,null,null,null,null,null,null,null,null,null,null,null,null,null,null,null,null,null,null,null,null,null,null,null,0,null,null,null,null,null,null,null,null,null,null,null,null,null,null,null,null,null,null,null,null,null,null,null,null,null,null,null,null,null,null,null,null,null,0,null,null,null,null,null,null,null,null,null,null,null,null,null,null,null,null,null,null,null,null,null,null,null,null,null,null,null,null,null,null,null,null,null,0,null,null,null,null,null,null,null,null,null,null,null,null,null,null,null,null,null,null,null,null,null,null,null,null,null,null,null,null,null,null,null,null,null,0,null,null,null,null,null,null,null,null,null,null,null,null,null,null,null,null,null,null,null,null,null,null,null,null,null,null,null,null,null,null,null,null,null,0,null,null,null,null,null,null,null,null,null,null,null,null,null,null,null,null,null,null,null,null,null,null,null,null,null,null,null,null,null,null,null,null,null,0,null,null,null,null,null,null,null,null,null,null,null,null,null,null,null,null,null,null,null,null,null,null,null,null,null,null,null,null,null,null,null,null,null,0,null,null,null,null,null,null,null,null,null,null,null,null,null,null,null,null,null,null,null,null,null,null,null,null,null,null,null,null,null,null,null,null,null,0,null,null,null,null,null,null,null,null,null,null,null,null,null,null,null,null,"2\\2"]
[6,{"$f":"VLOOK2ALL(بنين!$D$10:$D$2547,$E$1,AS10,0)","v":"احمد السيد احمد محمد"},null,null,null,null,null,null,null,null,null,null,null,null,null,null,null,null,null,null,null,null,null,null,null,null,null,null,null,null,null,null,null,0,null,null,null,null,null,null,null,null,null,null,7,null,null,null,null,null,null,null,null,null,null,null,null,null,null,null,null,null,null,null,null,null,null,null,null,null,null,null,null,null,null,null,null,0,null,null,null,null,null,null,null,null,null,null,null,null,null,null,null,null,null,null,null,null,null,null,null,null,null,null,null,null,null,null,null,null,null,0,null,null,null,null,null,null,null,null,null,null,null,null,null,null,null,null,null,null,null,null,null,null,null,null,null,null,null,null,null,null,null,null,null,0,null,null,null,null,null,null,null,null,null,null,null,null,null,null,null,null,null,null,null,null,null,null,null,null,null,null,null,null,null,null,null,null,null,0,null,null,null,null,null,null,null,null,null,null,null,null,null,null,null,null,null,null,null,null,null,null,null,null,null,null,null,null,null,null,null,null,null,0,null,null,null,null,null,null,null,null,null,null,null,null,null,null,null,null,null,null,null,null,null,null,null,null,null,null,null,null,null,null,null,null,null,0,null,null,null,null,null,null,null,null,null,null,null,null,null,null,null,null,null,null,null,null,null,null,null,null,null,null,null,null,null,null,null,null,null,0,null,null,null,null,null,null,null,null,null,null,null,null,null,null,null,null,null,null,null,null,null,null,null,null,null,null,null,null,null,null,null,null,null,0,null,null,null,null,null,null,null,null,null,null,null,null,null,null,null,null,"2\\3"]
[7,{"$f":"VLOOK2ALL(بنين!$D$10:$D$2547,$E$1,AS11,0)","v":"احمد بسيونى ابراهيم البسيونى"},null,null,null,null,null,null,null,null,null,null,null,null,null,null,null,null,null,null,null,null,null,null,null,null,null,null,null,null,null,null,null,0,null,null,null,null,null,null,null,null,null,null,8,null,null,null,null,null,null,null,null,null,null,null,null,null,null,null,null,null,null,null,null,null,null,null,null,null,null,null,null,null,null,null,null,0,null,null,null,null,null,null,null,null,null,null,null,null,null,null,null,null,null,null,null,null,null,null,null,null,null,null,null,null,null,null,null,null,null,0,null,null,null,null,null,null,null,null,null,null,null,null,null,null,null,null,null,null,null,null,null,null,null,null,null,null,null,null,null,null,null,null,null,0,null,null,null,null,null,null,null,null,null,null,null,null,null,null,null,null,null,null,null,null,null,null,null,null,null,null,null,null,null,null,null,null,null,0,null,null,null,null,null,null,null,null,null,null,null,null,null,null,null,null,null,null,null,null,null,null,null,null,null,null,null,null,null,null,null,null,null,0,null,null,null,null,null,null,null,null,null,null,null,null,null,null,null,null,null,null,null,null,null,null,null,null,null,null,null,null,null,null,null,null,null,0,null,null,null,null,null,null,null,null,null,null,null,null,null,null,null,null,null,null,null,null,null,null,null,null,null,null,null,null,null,null,null,null,null,0,null,null,null,null,null,null,null,null,null,null,null,null,null,null,null,null,null,null,null,null,null,null,null,null,null,null,null,null,null,null,null,null,null,0,null,null,null,null,null,null,null,null,null,null,null,null,null,null,null,null,"3\\1"]
[8,{"$f":"VLOOK2ALL(بنين!$D$10:$D$2547,$E$1,AS12,0)","v":"احمد حماده صديق عبدالهادى"},null,null,null,null,null,null,null,null,null,null,null,null,null,null,null,null,null,null,null,null,null,null,null,null,null,null,null,null,null,null,null,0,null,null,null,null,null,null,null,null,null,null,9,null,null,null,null,null,null,null,null,null,null,null,null,null,null,null,null,null,null,null,null,null,null,null,null,null,null,null,null,null,null,null,null,0,null,null,null,null,null,null,null,null,null,null,null,null,null,null,null,null,null,null,null,null,null,null,null,null,null,null,null,null,null,null,null,null,null,0,null,null,null,null,null,null,null,null,null,null,null,null,null,null,null,null,null,null,null,null,null,null,null,null,null,null,null,null,null,null,null,null,null,0,null,null,null,null,null,null,null,null,null,null,null,null,null,null,null,null,null,null,null,null,null,null,null,null,null,null,null,null,null,null,null,null,null,0,null,null,null,null,null,null,null,null,null,null,null,null,null,null,null,null,null,null,null,null,null,null,null,null,null,null,null,null,null,null,null,null,null,0,null,null,null,null,null,null,null,null,null,null,null,null,null,null,null,null,null,null,null,null,null,null,null,null,null,null,null,null,null,null,null,null,null,0,null,null,null,null,null,null,null,null,null,null,null,null,null,null,null,null,null,null,null,null,null,null,null,null,null,null,null,null,null,null,null,null,null,0,null,null,null,null,null,null,null,null,null,null,null,null,null,null,null,null,null,null,null,null,null,null,null,null,null,null,null,null,null,null,null,null,null,0,null,null,null,null,null,null,null,null,null,null,null,null,null,null,null,null,"3\\2"]
[9,{"$f":"VLOOK2ALL(بنين!$D$10:$D$2547,$E$1,AS13,0)","v":"احمد رزق مرزوق زكى احمد"},null,null,null,null,null,null,null,null,null,null,null,null,null,null,null,null,null,null,null,null,null,null,null,null,null,null,null,null,null,null,null,0,null,null,null,null,null,null,null,null,null,null,10,null,null,null,null,null,null,null,null,null,null,null,null,null,null,null,null,null,null,null,null,null,null,null,null,null,null,null,null,null,null,null,null,0,null,null,null,null,null,null,null,null,null,null,null,null,null,null,null,null,null,null,null,null,null,null,null,null,null,null,null,null,null,null,null,null,null,0,null,null,null,null,null,null,null,null,null,null,null,null,null,null,null,null,null,null,null,null,null,null,null,null,null,null,null,null,null,null,null,null,null,0,null,null,null,null,null,null,null,null,null,null,null,null,null,null,null,null,null,null,null,null,null,null,null,null,null,null,null,null,null,null,null,null,null,0,null,null,null,null,null,null,null,null,null,null,null,null,null,null,null,null,null,null,null,null,null,null,null,null,null,null,null,null,null,null,null,null,null,0,null,null,null,null,null,null,null,null,null,null,null,null,null,null,null,null,null,null,null,null,null,null,null,null,null,null,null,null,null,null,null,null,null,0,null,null,null,null,null,null,null,null,null,null,null,null,null,null,null,null,null,null,null,null,null,null,null,null,null,null,null,null,null,null,null,null,null,0,null,null,null,null,null,null,null,null,null,null,null,null,null,null,null,null,null,null,null,null,null,null,null,null,null,null,null,null,null,null,null,null,null,0,null,null,null,null,null,null,null,null,null,null,null,null,null,null,null,null,"3\\3"]
[10,{"$f":"VLOOK2ALL(بنين!$D$10:$D$2547,$E$1,AS14,0)","v":"احمد شعبان السيد على جحا"},null,null,null,null,null,null,null,null,null,null,null,null,null,null,null,null,null,null,null,null,null,null,null,null,null,null,null,null,null,null,null,0,null,null,null,null,null,null,null,null,null,null,11,null,null,null,null,null,null,null,null,null,null,null,null,null,null,null,null,null,null,null,null,null,null,null,null,null,null,null,null,null,null,null,null,0,null,null,null,null,null,null,null,null,null,null,null,null,null,null,null,null,null,null,null,null,null,null,null,null,null,null,null,null,null,null,null,null,null,0,null,null,null,null,null,null,null,null,null,null,null,null,null,null,null,null,null,null,null,null,null,null,null,null,null,null,null,null,null,null,null,null,null,0,null,null,null,null,null,null,null,null,null,null,null,null,null,null,null,null,null,null,null,null,null,null,null,null,null,null,null,null,null,null,null,null,null,0,null,null,null,null,null,null,null,null,null,null,null,null,null,null,null,null,null,null,null,null,null,null,null,null,null,null,null,null,null,null,null,null,null,0,null,null,null,null,null,null,null,null,null,null,null,null,null,null,null,null,null,null,null,null,null,null,null,null,null,null,null,null,null,null,null,null,null,0,null,null,null,null,null,null,null,null,null,null,null,null,null,null,null,null,null,null,null,null,null,null,null,null,null,null,null,null,null,null,null,null,null,0,null,null,null,null,null,null,null,null,null,null,null,null,null,null,null,null,null,null,null,null,null,null,null,null,null,null,null,null,null,null,null,null,null,0]
[11,{"$f":"VLOOK2ALL(بنين!$D$10:$D$2547,$E$1,AS15,0)","v":"احمد محمد حلمى السيد رمضان"},null,null,null,null,null,null,null,null,null,null,null,null,null,null,null,null,null,null,null,null,null,null,null,null,null,null,null,null,null,null,null,0,null,null,null,null,null,null,null,null,null,null,12,null,null,null,null,null,null,null,null,null,null,null,null,null,null,null,null,null,null,null,null,null,null,null,null,null,null,null,null,null,null,null,null,0,null,null,null,null,null,null,null,null,null,null,null,null,null,null,null,null,null,null,null,null,null,null,null,null,null,null,null,null,null,null,null,null,null,0,null,null,null,null,null,null,null,null,null,null,null,null,null,null,null,null,null,null,null,null,null,null,null,null,null,null,null,null,null,null,null,null,null,0,null,null,null,null,null,null,null,null,null,null,null,null,null,null,null,null,null,null,null,null,null,null,null,null,null,null,null,null,null,null,null,null,null,0,null,null,null,null,null,null,null,null,null,null,null,null,null,null,null,null,null,null,null,null,null,null,null,null,null,null,null,null,null,null,null,null,null,0,null,null,null,null,null,null,null,null,null,null,null,null,null,null,null,null,null,null,null,null,null,null,null,null,null,null,null,null,null,null,null,null,null,0,null,null,null,null,null,null,null,null,null,null,null,null,null,null,null,null,null,null,null,null,null,null,null,null,null,null,null,null,null,null,null,null,null,0,null,null,null,null,null,null,null,null,null,null,null,null,null,null,null,null,null,null,null,null,null,null,null,null,null,null,null,null,null,null,null,null,null,0]
[12,{"$f":"VLOOK2ALL(بنين!$D$10:$D$2547,$E$1,AS16,0)","v":"احمد محمد رجب حسن"},null,null,null,null,null,null,null,null,null,null,null,null,null,null,null,null,null,null,null,null,null,null,null,null,null,null,null,null,null,null,null,0,null,null,null,null,null,null,null,null,null,null,13,null,null,null,null,null,null,null,null,null,null,null,null,null,null,null,null,null,null,null,null,null,null,null,null,null,null,null,null,null,null,null,null,0,null,null,null,null,null,null,null,null,null,null,null,null,null,null,null,null,null,null,null,null,null,null,null,null,null,null,null,null,null,null,null,null,null,0,null,null,null,null,null,null,null,null,null,null,null,null,null,null,null,null,null,null,null,null,null,null,null,null,null,null,null,null,null,null,null,null,null,0,null,null,null,null,null,null,null,null,null,null,null,null,null,null,null,null,null,null,null,null,null,null,null,null,null,null,null,null,null,null,null,null,null,0,null,null,null,null,null,null,null,null,null,null,null,null,null,null,null,null,null,null,null,null,null,null,null,null,null,null,null,null,null,null,null,null,null,0,null,null,null,null,null,null,null,null,null,null,null,null,null,null,null,null,null,null,null,null,null,null,null,null,null,null,null,null,null,null,null,null,null,0,null,null,null,null,null,null,null,null,null,null,null,null,null,null,null,null,null,null,null,null,null,null,null,null,null,null,null,null,null,null,null,null,null,0,null,null,null,null,null,null,null,null,null,null,null,null,null,null,null,null,null,null,null,null,null,null,null,null,null,null,null,null,null,null,null,null,null,0]
[13,{"$f":"VLOOK2ALL(بنين!$D$10:$D$2547,$E$1,AS17,0)","v":"احمد محمود بدر محمود بدر"},null,null,null,null,null,null,null,null,null,null,null,null,null,null,null,null,null,null,null,null,null,null,null,null,null,null,null,null,null,null,null,0,null,null,null,null,null,null,null,null,null,null,14,null,null,null,null,null,null,null,null,null,null,null,null,null,null,null,null,null,null,null,null,null,null,null,null,null,null,null,null,null,null,null,null,0,null,null,null,null,null,null,null,null,null,null,null,null,null,null,null,null,null,null,null,null,null,null,null,null,null,null,null,null,null,null,null,null,null,0,null,null,null,null,null,null,null,null,null,null,null,null,null,null,null,null,null,null,null,null,null,null,null,null,null,null,null,null,null,null,null,null,null,0,null,null,null,null,null,null,null,null,null,null,null,null,null,null,null,null,null,null,null,null,null,null,null,null,null,null,null,null,null,null,null,null,null,0,null,null,null,null,null,null,null,null,null,null,null,null,null,null,null,null,null,null,null,null,null,null,null,null,null,null,null,null,null,null,null,null,null,0,null,null,null,null,null,null,null,null,null,null,null,null,null,null,null,null,null,null,null,null,null,null,null,null,null,null,null,null,null,null,null,null,null,0,null,null,null,null,null,null,null,null,null,null,null,null,null,null,null,null,null,null,null,null,null,null,null,null,null,null,null,null,null,null,null,null,null,0,null,null,null,null,null,null,null,null,null,null,null,null,null,null,null,null,null,null,null,null,null,null,null,null,null,null,null,null,null,null,null,null,null,0]
[14,{"$f":"VLOOK2ALL(بنين!$D$10:$D$2547,$E$1,AS18,0)","v":"احمد هلال احمد العراقى"},null,null,null,null,null,null,null,null,null,null,null,null,null,null,null,null,null,null,null,null,null,null,null,null,null,null,null,null,null,null,null,0,null,null,null,null,null,null,null,null,null,null,15,null,null,null,null,null,null,null,null,null,null,null,null,null,null,null,null,null,null,null,null,null,null,null,null,null,null,null,null,null,null,null,null,0,null,null,null,null,null,null,null,null,null,null,null,null,null,null,null,null,null,null,null,null,null,null,null,null,null,null,null,null,null,null,null,null,null,0,null,null,null,null,null,null,null,null,null,null,null,null,null,null,null,null,null,null,null,null,null,null,null,null,null,null,null,null,null,null,null,null,null,0,null,null,null,null,null,null,null,null,null,null,null,null,null,null,null,null,null,null,null,null,null,null,null,null,null,null,null,null,null,null,null,null,null,0,null,null,null,null,null,null,null,null,null,null,null,null,null,null,null,null,null,null,null,null,null,null,null,null,null,null,null,null,null,null,null,null,null,0,null,null,null,null,null,null,null,null,null,null,null,null,null,null,null,null,null,null,null,null,null,null,null,null,null,null,null,null,null,null,null,null,null,0,null,null,null,null,null,null,null,null,null,null,null,null,null,null,null,null,null,null,null,null,null,null,null,null,null,null,null,null,null,null,null,null,null,0,null,null,null,null,null,null,null,null,null,null,null,null,null,null,null,null,null,null,null,null,null,null,null,null,null,null,null,null,null,null,null,null,null,0]
[15,{"$f":"VLOOK2ALL(بنين!$D$10:$D$2547,$E$1,AS19,0)","v":"اسلام الجلالى مالكى اسماعيل"},null,null,null,null,null,null,null,null,null,null,null,null,null,null,null,null,null,null,null,null,null,null,null,null,null,null,null,null,null,null,null,0,null,null,null,null,null,null,null,null,null,null,16,null,null,null,null,null,null,null,null,null,null,null,null,null,null,null,null,null,null,null,null,null,null,null,null,null,null,null,null,null,null,null,null,0,null,null,null,null,null,null,null,null,null,null,null,null,null,null,null,null,null,null,null,null,null,null,null,null,null,null,null,null,null,null,null,null,null,0,null,null,null,null,null,null,null,null,null,null,null,null,null,null,null,null,null,null,null,null,null,null,null,null,null,null,null,null,null,null,null,null,null,0,null,null,null,null,null,null,null,null,null,null,null,null,null,null,null,null,null,null,null,null,null,null,null,null,null,null,null,null,null,null,null,null,null,0,null,null,null,null,null,null,null,null,null,null,null,null,null,null,null,null,null,null,null,null,null,null,null,null,null,null,null,null,null,null,null,null,null,0,null,null,null,null,null,null,null,null,null,null,null,null,null,null,null,null,null,null,null,null,null,null,null,null,null,null,null,null,null,null,null,null,null,0,null,null,null,null,null,null,null,null,null,null,null,null,null,null,null,null,null,null,null,null,null,null,null,null,null,null,null,null,null,null,null,null,null,0,null,null,null,null,null,null,null,null,null,null,null,null,null,null,null,null,null,null,null,null,null,null,null,null,null,null,null,null,null,null,null,null,null,0]
[16,{"$f":"VLOOK2ALL(بنين!$D$10:$D$2547,$E$1,AS20,0)","v":"السيد ابراهيم ابراهيم السيد قوره"},null,null,null,null,null,null,null,null,null,null,null,null,null,null,null,null,null,null,null,null,null,null,null,null,null,null,null,null,null,null,null,0,null,null,null,null,null,null,null,null,null,null,17,null,null,null,null,null,null,null,null,null,null,null,null,null,null,null,null,null,null,null,null,null,null,null,null,null,null,null,null,null,null,null,null,0,null,null,null,null,null,null,null,null,null,null,null,null,null,null,null,null,null,null,null,null,null,null,null,null,null,null,null,null,null,null,null,null,null,0,null,null,null,null,null,null,null,null,null,null,null,null,null,null,null,null,null,null,null,null,null,null,null,null,null,null,null,null,null,null,null,null,null,0,null,null,null,null,null,null,null,null,null,null,null,null,null,null,null,null,null,null,null,null,null,null,null,null,null,null,null,null,null,null,null,null,null,0,null,null,null,null,null,null,null,null,null,null,null,null,null,null,null,null,null,null,null,null,null,null,null,null,null,null,null,null,null,null,null,null,null,0,null,null,null,null,null,null,null,null,null,null,null,null,null,null,null,null,null,null,null,null,null,null,null,null,null,null,null,null,null,null,null,null,null,0,null,null,null,null,null,null,null,null,null,null,null,null,null,null,null,null,null,null,null,null,null,null,null,null,null,null,null,null,null,null,null,null,null,0,null,null,null,null,null,null,null,null,null,null,null,null,null,null,null,null,null,null,null,null,null,null,null,null,null,null,null,null,null,null,null,null,null,0]
[17,{"$f":"VLOOK2ALL(بنين!$D$10:$D$2547,$E$1,AS21,0)","v":"السيد احمد عبدالعزيز محمد الرهبينى"},null,null,null,null,null,null,null,null,null,null,null,null,null,null,null,null,null,null,null,null,null,null,null,null,null,null,null,null,null,null,null,0,null,null,null,null,null,null,null,null,null,null,18,null,null,null,null,null,null,null,null,null,null,null,null,null,null,null,null,null,null,null,null,null,null,null,null,null,null,null,null,null,null,null,null,0,null,null,null,null,null,null,null,null,null,null,null,null,null,null,null,null,null,null,null,null,null,null,null,null,null,null,null,null,null,null,null,null,null,0,null,null,null,null,null,null,null,null,null,null,null,null,null,null,null,null,null,null,null,null,null,null,null,null,null,null,null,null,null,null,null,null,null,0,null,null,null,null,null,null,null,null,null,null,null,null,null,null,null,null,null,null,null,null,null,null,null,null,null,null,null,null,null,null,null,null,null,0,null,null,null,null,null,null,null,null,null,null,null,null,null,null,null,null,null,null,null,null,null,null,null,null,null,null,null,null,null,null,null,null,null,0,null,null,null,null,null,null,null,null,null,null,null,null,null,null,null,null,null,null,null,null,null,null,null,null,null,null,null,null,null,null,null,null,null,0,null,null,null,null,null,null,null,null,null,null,null,null,null,null,null,null,null,null,null,null,null,null,null,null,null,null,null,null,null,null,null,null,null,0,null,null,null,null,null,null,null,null,null,null,null,null,null,null,null,null,null,null,null,null,null,null,null,null,null,null,null,null,null,null,null,null,null,0]
[18,{"$f":"VLOOK2ALL(بنين!$D$10:$D$2547,$E$1,AS22,0)","v":"السيد بكر محى الدين بكر"},null,null,null,null,null,null,null,null,null,null,null,null,null,null,null,null,null,null,null,null,null,null,null,null,null,null,null,null,null,null,null,0,null,null,null,null,null,null,null,null,null,null,19,null,null,null,null,null,null,null,null,null,null,null,null,null,null,null,null,null,null,null,null,null,null,null,null,null,null,null,null,null,null,null,null,0,null,null,null,null,null,null,null,null,null,null,null,null,null,null,null,null,null,null,null,null,null,null,null,null,null,null,null,null,null,null,null,null,null,0,null,null,null,null,null,null,null,null,null,null,null,null,null,null,null,null,null,null,null,null,null,null,null,null,null,null,null,null,null,null,null,null,null,0,null,null,null,null,null,null,null,null,null,null,null,null,null,null,null,null,null,null,null,null,null,null,null,null,null,null,null,null,null,null,null,null,null,0,null,null,null,null,null,null,null,null,null,null,null,null,null,null,null,null,null,null,null,null,null,null,null,null,null,null,null,null,null,null,null,null,null,0,null,null,null,null,null,null,null,null,null,null,null,null,null,null,null,null,null,null,null,null,null,null,null,null,null,null,null,null,null,null,null,null,null,0,null,null,null,null,null,null,null,null,null,null,null,null,null,null,null,null,null,null,null,null,null,null,null,null,null,null,null,null,null,null,null,null,null,0,null,null,null,null,null,null,null,null,null,null,null,null,null,null,null,null,null,null,null,null,null,null,null,null,null,null,null,null,null,null,null,null,null,0]
[19,{"$f":"VLOOK2ALL(بنين!$D$10:$D$2547,$E$1,AS23,0)","v":"ايمن محمد الشحات عبدالنبى حافظ"},null,null,null,null,null,null,null,null,null,null,null,null,null,null,null,null,null,null,null,null,null,null,null,null,null,null,null,null,null,null,null,0,null,null,null,null,null,null,null,null,null,null,20,null,null,null,null,null,null,null,null,null,null,null,null,null,null,null,null,null,null,null,null,null,null,null,null,null,null,null,null,null,null,null,null,0,null,null,null,null,null,null,null,null,null,null,null,null,null,null,null,null,null,null,null,null,null,null,null,null,null,null,null,null,null,null,null,null,null,0,null,null,null,null,null,null,null,null,null,null,null,null,null,null,null,null,null,null,null,null,null,null,null,null,null,null,null,null,null,null,null,null,null,0,null,null,null,null,null,null,null,null,null,null,null,null,null,null,null,null,null,null,null,null,null,null,null,null,null,null,null,null,null,null,null,null,null,0,null,null,null,null,null,null,null,null,null,null,null,null,null,null,null,null,null,null,null,null,null,null,null,null,null,null,null,null,null,null,null,null,null,0,null,null,null,null,null,null,null,null,null,null,null,null,null,null,null,null,null,null,null,null,null,null,null,null,null,null,null,null,null,null,null,null,null,0,null,null,null,null,null,null,null,null,null,null,null,null,null,null,null,null,null,null,null,null,null,null,null,null,null,null,null,null,null,null,null,null,null,0,null,null,null,null,null,null,null,null,null,null,null,null,null,null,null,null,null,null,null,null,null,null,null,null,null,null,null,null,null,null,null,null,null,0]
[20,{"$f":"VLOOK2ALL(بنين!$D$10:$D$2547,$E$1,AS24,0)","v":"بدير احمد بدير احمد عيد"},null,null,null,null,null,null,null,null,null,null,null,null,null,null,null,null,null,null,null,null,null,null,null,null,null,null,null,null,null,null,null,0,null,null,null,null,null,null,null,null,null,null,21,null,null,null,null,null,null,null,null,null,null,null,null,null,null,null,null,null,null,null,null,null,null,null,null,null,null,null,null,null,null,null,null,0,null,null,null,null,null,null,null,null,null,null,null,null,null,null,null,null,null,null,null,null,null,null,null,null,null,null,null,null,null,null,null,null,null,0,null,null,null,null,null,null,null,null,null,null,null,null,null,null,null,null,null,null,null,null,null,null,null,null,null,null,null,null,null,null,null,null,null,0,null,null,null,null,null,null,null,null,null,null,null,null,null,null,null,null,null,null,null,null,null,null,null,null,null,null,null,null,null,null,null,null,null,0,null,null,null,null,null,null,null,null,null,null,null,null,null,null,null,null,null,null,null,null,null,null,null,null,null,null,null,null,null,null,null,null,null,0,null,null,null,null,null,null,null,null,null,null,null,null,null,null,null,null,null,null,null,null,null,null,null,null,null,null,null,null,null,null,null,null,null,0,null,null,null,null,null,null,null,null,null,null,null,null,null,null,null,null,null,null,null,null,null,null,null,null,null,null,null,null,null,null,null,null,null,0,null,null,null,null,null,null,null,null,null,null,null,null,null,null,null,null,null,null,null,null,null,null,null,null,null,null,null,null,null,null,null,null,null,0]
[21,{"$f":"VLOOK2ALL(بنين!$D$10:$D$2547,$E$1,AS25,0)","v":"حاتم عبدالهادى فكرى عبدالهادى"},null,null,null,null,null,null,null,null,null,null,null,null,null,null,null,null,null,null,null,null,null,null,null,null,null,null,null,null,null,null,null,0,null,null,null,null,null,null,null,null,null,null,22,null,null,null,null,null,null,null,null,null,null,null,null,null,null,null,null,null,null,null,null,null,null,null,null,null,null,null,null,null,null,null,null,0,null,null,null,null,null,null,null,null,null,null,null,null,null,null,null,null,null,null,null,null,null,null,null,null,null,null,null,null,null,null,null,null,null,0,null,null,null,null,null,null,null,null,null,null,null,null,null,null,null,null,null,null,null,null,null,null,null,null,null,null,null,null,null,null,null,null,null,0,null,null,null,null,null,null,null,null,null,null,null,null,null,null,null,null,null,null,null,null,null,null,null,null,null,null,null,null,null,null,null,null,null,0,null,null,null,null,null,null,null,null,null,null,null,null,null,null,null,null,null,null,null,null,null,null,null,null,null,null,null,null,null,null,null,null,null,0,null,null,null,null,null,null,null,null,null,null,null,null,null,null,null,null,null,null,null,null,null,null,null,null,null,null,null,null,null,null,null,null,null,0,null,null,null,null,null,null,null,null,null,null,null,null,null,null,null,null,null,null,null,null,null,null,null,null,null,null,null,null,null,null,null,null,null,0,null,null,null,null,null,null,null,null,null,null,null,null,null,null,null,null,null,null,null,null,null,null,null,null,null,null,null,null,null,null,null,null,null,0]
[22,{"$f":"VLOOK2ALL(بنين!$D$10:$D$2547,$E$1,AS26,0)","v":"حسام محمد سعد محمد"},null,null,null,null,null,null,null,null,null,null,null,null,null,null,null,null,null,null,null,null,null,null,null,null,null,null,null,null,null,null,null,0,null,null,null,null,null,null,null,null,null,null,23,null,null,null,null,null,null,null,null,null,null,null,null,null,null,null,null,null,null,null,null,null,null,null,null,null,null,null,null,null,null,null,null,0,null,null,null,null,null,null,null,null,null,null,null,null,null,null,null,null,null,null,null,null,null,null,null,null,null,null,null,null,null,null,null,null,null,0,null,null,null,null,null,null,null,null,null,null,null,null,null,null,null,null,null,null,null,null,null,null,null,null,null,null,null,null,null,null,null,null,null,0,null,null,null,null,null,null,null,null,null,null,null,null,null,null,null,null,null,null,null,null,null,null,null,null,null,null,null,null,null,null,null,null,null,0,null,null,null,null,null,null,null,null,null,null,null,null,null,null,null,null,null,null,null,null,null,null,null,null,null,null,null,null,null,null,null,null,null,0,null,null,null,null,null,null,null,null,null,null,null,null,null,null,null,null,null,null,null,null,null,null,null,null,null,null,null,null,null,null,null,null,null,0,null,null,null,null,null,null,null,null,null,null,null,null,null,null,null,null,null,null,null,null,null,null,null,null,null,null,null,null,null,null,null,null,null,0,null,null,null,null,null,null,null,null,null,null,null,null,null,null,null,null,null,null,null,null,null,null,null,null,null,null,null,null,null,null,null,null,null,0]
[23,{"$f":"VLOOK2ALL(بنين!$D$10:$D$2547,$E$1,AS27,0)","v":"حمزه عبداللطيف حمزه البسطويسى"},"غ",null,null,null,null,null,null,null,null,null,null,null,null,null,null,null,null,null,null,null,null,null,null,null,null,null,null,null,null,null,null,1,null,null,null,null,null,null,null,null,null,null,24,null,null,null,null,null,null,null,null,null,null,null,null,null,null,null,null,null,null,null,null,null,null,null,null,null,null,null,null,null,null,null,null,0,null,null,null,null,null,null,null,null,null,null,null,null,null,null,null,null,null,null,null,null,null,null,null,null,null,null,null,null,null,null,null,null,null,0,null,null,null,null,null,null,null,null,null,null,null,null,null,null,null,null,null,null,null,null,null,null,null,null,null,null,null,null,null,null,null,null,null,0,null,null,null,null,null,null,null,null,null,null,null,null,null,null,null,null,null,null,null,null,null,null,null,null,null,null,null,null,null,null,null,null,null,0,null,null,null,null,null,null,null,null,null,null,null,null,null,null,null,null,null,null,null,null,null,null,null,null,null,null,null,null,null,null,null,null,null,0,null,null,null,null,null,null,null,null,null,null,null,null,null,null,null,null,null,null,null,null,null,null,null,null,null,null,null,null,null,null,null,null,null,0,null,null,null,null,null,null,null,null,null,null,null,null,null,null,null,null,null,null,null,null,null,null,null,null,null,null,null,null,null,null,null,null,null,0,null,null,null,null,null,null,null,null,null,null,null,null,null,null,null,null,null,null,null,null,null,null,null,null,null,null,null,null,null,null,null,null,null,0]
[24,{"$f":"VLOOK2ALL(بنين!$D$10:$D$2547,$E$1,AS28,0)","v":"راجح المتولى عبداللطيف السيد موسى"},null,null,null,null,null,null,null,null,null,null,null,null,null,null,null,null,null,null,null,null,null,null,null,null,null,null,null,null,null,null,null,0,null,null,null,null,null,null,null,null,null,null,25,null,null,null,null,null,null,null,null,null,null,null,null,null,null,null,null,null,null,null,null,null,null,null,null,null,null,null,null,null,null,null,null,0,null,null,null,null,null,null,null,null,null,null,null,null,null,null,null,null,null,null,null,null,null,null,null,null,null,null,null,null,null,null,null,null,null,0,null,null,null,null,null,null,null,null,null,null,null,null,null,null,null,null,null,null,null,null,null,null,null,null,null,null,null,null,null,null,null,null,null,0,null,null,null,null,null,null,null,null,null,null,null,null,null,null,null,null,null,null,null,null,null,null,null,null,null,null,null,null,null,null,null,null,null,0,null,null,null,null,null,null,null,null,null,null,null,null,null,null,null,null,null,null,null,null,null,null,null,null,null,null,null,null,null,null,null,null,null,0,null,null,null,null,null,null,null,null,null,null,null,null,null,null,null,null,null,null,null,null,null,null,null,null,null,null,null,null,null,null,null,null,null,0,null,null,null,null,null,null,null,null,null,null,null,null,null,null,null,null,null,null,null,null,null,null,null,null,null,null,null,null,null,null,null,null,null,0,null,null,null,null,null,null,null,null,null,null,null,null,null,null,null,null,null,null,null,null,null,null,null,null,null,null,null,null,null,null,null,null,null,0]
[25,{"$f":"VLOOK2ALL(بنين!$D$10:$D$2547,$E$1,AS29,0)","v":"رزق محمد عبدالفتاح المرسى"},null,null,null,null,null,null,null,null,null,null,null,null,null,null,null,null,null,null,null,null,null,null,null,null,null,null,null,null,null,null,null,0,null,null,null,null,null,null,null,null,null,null,26,null,null,null,null,null,null,null,null,null,null,null,null,null,null,null,null,null,null,null,null,null,null,null,null,null,null,null,null,null,null,null,null,0,null,null,null,null,null,null,null,null,null,null,null,null,null,null,null,null,null,null,null,null,null,null,null,null,null,null,null,null,null,null,null,null,null,0,null,null,null,null,null,null,null,null,null,null,null,null,null,null,null,null,null,null,null,null,null,null,null,null,null,null,null,null,null,null,null,null,null,0,null,null,null,null,null,null,null,null,null,null,null,null,null,null,null,null,null,null,null,null,null,null,null,null,null,null,null,null,null,null,null,null,null,0,null,null,null,null,null,null,null,null,null,null,null,null,null,null,null,null,null,null,null,null,null,null,null,null,null,null,null,null,null,null,null,null,null,0,null,null,null,null,null,null,null,null,null,null,null,null,null,null,null,null,null,null,null,null,null,null,null,null,null,null,null,null,null,null,null,null,null,0,null,null,null,null,null,null,null,null,null,null,null,null,null,null,null,null,null,null,null,null,null,null,null,null,null,null,null,null,null,null,null,null,null,0,null,null,null,null,null,null,null,null,null,null,null,null,null,null,null,null,null,null,null,null,null,null,null,null,null,null,null,null,null,null,null,null,null,0]
[26,{"$f":"VLOOK2ALL(بنين!$D$10:$D$2547,$E$1,AS30,0)","v":"زيدان مصطفى جمعه بدير"},null,null,null,null,null,null,null,null,null,null,null,null,null,null,null,null,null,null,null,null,null,null,null,null,null,null,null,null,null,null,null,0,null,null,null,null,null,null,null,null,null,null,27,null,null,null,null,null,null,null,null,null,null,null,null,null,null,null,null,null,null,null,null,null,null,null,null,null,null,null,null,null,null,null,null,0,null,null,null,null,null,null,null,null,null,null,null,null,null,null,null,null,null,null,null,null,null,null,null,null,null,null,null,null,null,null,null,null,null,0,null,null,null,null,null,null,null,null,null,null,null,null,null,null,null,null,null,null,null,null,null,null,null,null,null,null,null,null,null,null,null,null,null,0,null,null,null,null,null,null,null,null,null,null,null,null,null,null,null,null,null,null,null,null,null,null,null,null,null,null,null,null,null,null,null,null,null,0,null,null,null,null,null,null,null,null,null,null,null,null,null,null,null,null,null,null,null,null,null,null,null,null,null,null,null,null,null,null,null,null,null,0,null,null,null,null,null,null,null,null,null,null,null,null,null,null,null,null,null,null,null,null,null,null,null,null,null,null,null,null,null,null,null,null,null,0,null,null,null,null,null,null,null,null,null,null,null,null,null,null,null,null,null,null,null,null,null,null,null,null,null,null,null,null,null,null,null,null,null,0,null,null,null,null,null,null,null,null,null,null,null,null,null,null,null,null,null,null,null,null,null,null,null,null,null,null,null,null,null,null,null,null,null,0]
[27,{"$f":"VLOOK2ALL(بنين!$D$10:$D$2547,$E$1,AS31,0)","v":"سعد محمد سعد محمد"},null,null,null,null,null,null,null,null,null,null,null,null,null,null,null,null,null,null,null,null,null,null,null,null,null,null,null,null,null,null,null,0,null,null,null,null,null,null,null,null,null,null,28,null,null,null,null,null,null,null,null,null,null,null,null,null,null,null,null,null,null,null,null,null,null,null,null,null,null,null,null,null,null,null,null,0,null,null,null,null,null,null,null,null,null,null,null,null,null,null,null,null,null,null,null,null,null,null,null,null,null,null,null,null,null,null,null,null,null,0,null,null,null,null,null,null,null,null,null,null,null,null,null,null,null,null,null,null,null,null,null,null,null,null,null,null,null,null,null,null,null,null,null,0,null,null,null,null,null,null,null,null,null,null,null,null,null,null,null,null,null,null,null,null,null,null,null,null,null,null,null,null,null,null,null,null,null,0,null,null,null,null,null,null,null,null,null,null,null,null,null,null,null,null,null,null,null,null,null,null,null,null,null,null,null,null,null,null,null,null,null,0,null,null,null,null,null,null,null,null,null,null,null,null,null,null,null,null,null,null,null,null,null,null,null,null,null,null,null,null,null,null,null,null,null,0,null,null,null,null,null,null,null,null,null,null,null,null,null,null,null,null,null,null,null,null,null,null,null,null,null,null,null,null,null,null,null,null,null,0,null,null,null,null,null,null,null,null,null,null,null,null,null,null,null,null,null,null,null,null,null,null,null,null,null,null,null,null,null,null,null,null,null,0]
[28,{"$f":"VLOOK2ALL(بنين!$D$10:$D$2547,$E$1,AS32,0)","v":"اسراء فتحى المغازى محمد"},null,null,null,null,null,null,null,null,null,null,null,null,null,null,null,null,null,null,null,null,null,null,null,null,null,null,null,null,null,null,null,0,null,null,null,null,null,null,null,null,null,null,29,null,null,null,null,null,null,null,null,null,null,null,null,null,null,null,null,null,null,null,null,null,null,null,null,null,null,null,null,null,null,null,null,0,null,null,null,null,null,null,null,null,null,null,null,null,null,null,null,null,null,null,null,null,null,null,null,null,null,null,null,null,null,null,null,null,null,0,null,null,null,null,null,null,null,null,null,null,null,null,null,null,null,null,null,null,null,null,null,null,null,null,null,null,null,null,null,null,null,null,null,0,null,null,null,null,null,null,null,null,null,null,null,null,null,null,null,null,null,null,null,null,null,null,null,null,null,null,null,null,null,null,null,null,null,0,null,null,null,null,null,null,null,null,null,null,null,null,null,null,null,null,null,null,null,null,null,null,null,null,null,null,null,null,null,null,null,null,null,0,null,null,null,null,null,null,null,null,null,null,null,null,null,null,null,null,null,null,null,null,null,null,null,null,null,null,null,null,null,null,null,null,null,0,null,null,null,null,null,null,null,null,null,null,null,null,null,null,null,null,null,null,null,null,null,null,null,null,null,null,null,null,null,null,null,null,null,0,null,null,null,null,null,null,null,null,null,null,null,null,null,null,null,null,null,null,null,null,null,null,null,null,null,null,null,null,null,null,null,null,null,0]
[29,{"$f":"VLOOK2ALL(بنين!$D$10:$D$2547,$E$1,AS33,0)","v":"اسماء السيد محمد عبدالقوى محمد"},null,null,null,null,null,null,null,null,null,null,null,null,null,null,null,null,null,null,null,null,null,null,null,null,null,null,null,null,null,null,null,0,null,null,null,null,null,null,null,null,null,null,30,null,null,null,null,null,null,null,null,null,null,null,null,null,null,null,null,null,null,null,null,null,null,null,null,null,null,null,null,null,null,null,null,0,null,null,null,null,null,null,null,null,null,null,null,null,null,null,null,null,null,null,null,null,null,null,null,null,null,null,null,null,null,null,null,null,null,0,null,null,null,null,null,null,null,null,null,null,null,null,null,null,null,null,null,null,null,null,null,null,null,null,null,null,null,null,null,null,null,null,null,0,null,null,null,null,null,null,null,null,null,null,null,null,null,null,null,null,null,null,null,null,null,null,null,null,null,null,null,null,null,null,null,null,null,0,null,null,null,null,null,null,null,null,null,null,null,null,null,null,null,null,null,null,null,null,null,null,null,null,null,null,null,null,null,null,null,null,null,0,null,null,null,null,null,null,null,null,null,null,null,null,null,null,null,null,null,null,null,null,null,null,null,null,null,null,null,null,null,null,null,null,null,0,null,null,null,null,null,null,null,null,null,null,null,null,null,null,null,null,null,null,null,null,null,null,null,null,null,null,null,null,null,null,null,null,null,0,null,null,null,null,null,null,null,null,null,null,null,null,null,null,null,null,null,null,null,null,null,null,null,null,null,null,null,null,null,null,null,null,null,0]
[30,{"$f":"VLOOK2ALL(بنين!$D$10:$D$2547,$E$1,AS34,0)","v":"اسماء السيد محمد عمرعبدالله"},null,null,null,null,null,null,null,null,null,null,null,null,null,null,null,null,null,null,null,null,null,null,null,null,null,null,null,null,null,null,null,0,null,null,null,null,null,null,null,null,null,null,31,null,null,null,null,null,null,null,null,null,null,null,null,null,null,null,null,null,null,null,null,null,null,null,null,null,null,null,null,null,null,null,null,0,null,null,null,null,null,null,null,null,null,null,null,null,null,null,null,null,null,null,null,null,null,null,null,null,null,null,null,null,null,null,null,null,null,0,null,null,null,null,null,null,null,null,null,null,null,null,null,null,null,null,null,null,null,null,null,null,null,null,null,null,null,null,null,null,null,null,null,0,null,null,null,null,null,null,null,null,null,null,null,null,null,null,null,null,null,null,null,null,null,null,null,null,null,null,null,null,null,null,null,null,null,0,null,null,null,null,null,null,null,null,null,null,null,null,null,null,null,null,null,null,null,null,null,null,null,null,null,null,null,null,null,null,null,null,null,0,null,null,null,null,null,null,null,null,null,null,null,null,null,null,null,null,null,null,null,null,null,null,null,null,null,null,null,null,null,null,null,null,null,0,null,null,null,null,null,null,null,null,null,null,null,null,null,null,null,null,null,null,null,null,null,null,null,null,null,null,null,null,null,null,null,null,null,0,null,null,null,null,null,null,null,null,null,null,null,null,null,null,null,null,null,null,null,null,null,null,null,null,null,null,null,null,null,null,null,null,null,0]
[31,{"$f":"VLOOK2ALL(بنين!$D$10:$D$2547,$E$1,AS35,0)","v":"اسماء حماده فتحى عبدالمحسن"},null,null,null,null,null,null,null,null,null,null,null,null,null,null,null,null,null,null,null,null,null,null,null,null,null,null,null,null,null,null,null,0,null,null,null,null,null,null,null,null,null,null,32,null,null,null,null,null,null,null,null,null,null,null,null,null,null,null,null,null,null,null,null,null,null,null,null,null,null,null,null,null,null,null,null,0,null,null,null,null,null,null,null,null,null,null,null,null,null,null,null,null,null,null,null,null,null,null,null,null,null,null,null,null,null,null,null,null,null,0,null,null,null,null,null,null,null,null,null,null,null,null,null,null,null,null,null,null,null,null,null,null,null,null,null,null,null,null,null,null,null,null,null,0,null,null,null,null,null,null,null,null,null,null,null,null,null,null,null,null,null,null,null,null,null,null,null,null,null,null,null,null,null,null,null,null,null,0,null,null,null,null,null,null,null,null,null,null,null,null,null,null,null,null,null,null,null,null,null,null,null,null,null,null,null,null,null,null,null,null,null,0,null,null,null,null,null,null,null,null,null,null,null,null,null,null,null,null,null,null,null,null,null,null,null,null,null,null,null,null,null,null,null,null,null,0,null,null,null,null,null,null,null,null,null,null,null,null,null,null,null,null,null,null,null,null,null,null,null,null,null,null,null,null,null,null,null,null,null,0,null,null,null,null,null,null,null,null,null,null,null,null,null,null,null,null,null,null,null,null,null,null,null,null,null,null,null,null,null,null,null,null,null,0]
[32,{"$f":"VLOOK2ALL(بنين!$D$10:$D$2547,$E$1,AS36,0)","v":"اسماء عامر سعد عامر محمد"},null,null,null,null,null,null,null,null,null,null,null,null,null,null,null,null,null,null,null,null,null,null,null,null,null,null,null,null,null,null,null,0,null,null,null,null,null,null,null,null,null,null,33,null,null,null,null,null,null,null,null,null,null,null,null,null,null,null,null,null,null,null,null,null,null,null,null,null,null,null,null,null,null,null,null,0,null,null,null,null,null,null,null,null,null,null,null,null,null,null,null,null,null,null,null,null,null,null,null,null,null,null,null,null,null,null,null,null,null,0,null,null,null,null,null,null,null,null,null,null,null,null,null,null,null,null,null,null,null,null,null,null,null,null,null,null,null,null,null,null,null,null,null,0,null,null,null,null,null,null,null,null,null,null,null,null,null,null,null,null,null,null,null,null,null,null,null,null,null,null,null,null,null,null,null,null,null,0,null,null,null,null,null,null,null,null,null,null,null,null,null,null,null,null,null,null,null,null,null,null,null,null,null,null,null,null,null,null,null,null,null,0,null,null,null,null,null,null,null,null,null,null,null,null,null,null,null,null,null,null,null,null,null,null,null,null,null,null,null,null,null,null,null,null,null,0,null,null,null,null,null,null,null,null,null,null,null,null,null,null,null,null,null,null,null,null,null,null,null,null,null,null,null,null,null,null,null,null,null,0,null,null,null,null,null,null,null,null,null,null,null,null,null,null,null,null,null,null,null,null,null,null,null,null,null,null,null,null,null,null,null,null,null,0]
[33,{"$f":"VLOOK2ALL(بنين!$D$10:$D$2547,$E$1,AS37,0)","v":"اسماء ياسر البيومى محمد"},null,null,null,null,null,null,null,null,null,null,null,null,null,null,null,null,null,null,null,null,null,null,null,null,null,null,null,null,null,null,null,{"$f":"COUNTA(C38:AG38)","v":0},null,null,null,null,null,null,null,null,null,null,34,null,null,null,null,null,null,null,null,null,null,null,null,null,null,null,null,null,null,null,null,null,null,null,null,null,null,null,null,null,null,null,null,0,null,null,null,null,null,null,null,null,null,null,null,null,null,null,null,null,null,null,null,null,null,null,null,null,null,null,null,null,null,null,null,null,null,0,null,null,null,null,null,null,null,null,null,null,null,null,null,null,null,null,null,null,null,null,null,null,null,null,null,null,null,null,null,null,null,null,null,0,null,null,null,null,null,null,null,null,null,null,null,null,null,null,null,null,null,null,null,null,null,null,null,null,null,null,null,null,null,null,null,null,null,0,null,null,null,null,null,null,null,null,null,null,null,null,null,null,null,null,null,null,null,null,null,null,null,null,null,null,null,null,null,null,null,null,null,0,null,null,null,null,null,null,null,null,null,null,null,null,null,null,null,null,null,null,null,null,null,null,null,null,null,null,null,null,null,null,null,null,null,0,null,null,null,null,null,null,null,null,null,null,null,null,null,null,null,null,null,null,null,null,null,null,null,null,null,null,null,null,null,null,null,null,null,0,null,null,null,null,null,null,null,null,null,null,null,null,null,null,null,null,null,null,null,null,null,null,null,null,null,null,null,null,null,null,null,null,null,0]
[34,{"$f":"VLOOK2ALL(بنين!$D$10:$D$2547,$E$1,AS38,0)","v":"اسماء ياسر عبدالسلام حسن"},null,null,null,null,null,null,null,null,null,null,null,null,null,null,null,null,null,null,null,null,null,null,null,null,null,null,null,null,null,null,null,0,null,null,null,null,null,null,null,null,null,null,35,null,null,null,null,null,null,null,null,null,null,null,null,null,null,null,null,null,null,null,null,null,null,null,null,null,null,null,null,null,null,null,null,0,null,null,null,null,null,null,null,null,null,null,null,null,null,null,null,null,null,null,null,null,null,null,null,null,null,null,null,null,null,null,null,null,null,0,null,null,null,null,null,null,null,null,null,null,null,null,null,null,null,null,null,null,null,null,null,null,null,null,null,null,null,null,null,null,null,null,null,0,null,null,null,null,null,null,null,null,null,null,null,null,null,null,null,null,null,null,null,null,null,null,null,null,null,null,null,null,null,null,null,null,null,0,null,null,null,null,null,null,null,null,null,null,null,null,null,null,null,null,null,null,null,null,null,null,null,null,null,null,null,null,null,null,null,null,null,0,null,null,null,null,null,null,null,null,null,null,null,null,null,null,null,null,null,null,null,null,null,null,null,null,null,null,null,null,null,null,null,null,null,0,null,null,null,null,null,null,null,null,null,null,null,null,null,null,null,null,null,null,null,null,null,null,null,null,null,null,null,null,null,null,null,null,null,0,null,null,null,null,null,null,null,null,null,null,null,null,null,null,null,null,null,null,null,null,null,null,null,null,null,null,null,null,null,null,null,null,null,0]
[35,{"$f":"VLOOK2ALL(بنين!$D$10:$D$2547,$E$1,AS39,0)","v":"الاء عبدالحميد محمد الكومي"},null,null,null,null,null,null,null,null,null,null,null,null,null,null,null,null,null,null,null,null,null,null,null,null,null,null,null,null,null,null,null,0,null,null,null,null,null,null,null,null,null,null,36,null,null,null,null,null,null,null,null,null,null,null,null,null,null,null,null,null,null,null,null,null,null,null,null,null,null,null,null,null,null,null,null,0,null,null,null,null,null,null,null,null,null,null,null,null,null,null,null,null,null,null,null,null,null,null,null,null,null,null,null,null,null,null,null,null,null,0,null,null,null,null,null,null,null,null,null,null,null,null,null,null,null,null,null,null,null,null,null,null,null,null,null,null,null,null,null,null,null,null,null,0,null,null,null,null,null,null,null,null,null,null,null,null,null,null,null,null,null,null,null,null,null,null,null,null,null,null,null,null,null,null,null,null,null,0,null,null,null,null,null,null,null,null,null,null,null,null,null,null,null,null,null,null,null,null,null,null,null,null,null,null,null,null,null,null,null,null,null,0,null,null,null,null,null,null,null,null,null,null,null,null,null,null,null,null,null,null,null,null,null,null,null,null,null,null,null,null,null,null,null,null,null,0,null,null,null,null,null,null,null,null,null,null,null,null,null,null,null,null,null,null,null,null,null,null,null,null,null,null,null,null,null,null,null,null,null,0,null,null,null,null,null,null,null,null,null,null,null,null,null,null,null,null,null,null,null,null,null,null,null,null,null,null,null,null,null,null,null,null,null,0]
[36,{"$f":"VLOOK2ALL(بنين!$D$10:$D$2547,$E$1,AS40,0)","v":"امانى صلاح عبدالعزيز صلاح"},null,null,null,null,null,null,null,null,null,null,null,null,null,null,null,null,null,null,null,null,null,null,null,null,null,null,null,null,null,null,null,0,null,null,null,null,null,null,null,null,null,null,37,null,null,null,null,null,null,null,null,null,null,null,null,null,null,null,null,null,null,null,null,null,null,null,null,null,null,null,null,null,null,null,null,0,null,null,null,null,null,null,null,null,null,null,null,null,null,null,null,null,null,null,null,null,null,null,null,null,null,null,null,null,null,null,null,null,null,0,null,null,null,null,null,null,null,null,null,null,null,null,null,null,null,null,null,null,null,null,null,null,null,null,null,null,null,null,null,null,null,null,null,0,null,null,null,null,null,null,null,null,null,null,null,null,null,null,null,null,null,null,null,null,null,null,null,null,null,null,null,null,null,null,null,null,null,0,null,null,null,null,null,null,null,null,null,null,null,null,null,null,null,null,null,null,null,null,null,null,null,null,null,null,null,null,null,null,null,null,null,0,null,null,null,null,null,null,null,null,null,null,null,null,null,null,null,null,null,null,null,null,null,null,null,null,null,null,null,null,null,null,null,null,null,0,null,null,null,null,null,null,null,null,null,null,null,null,null,null,null,null,null,null,null,null,null,null,null,null,null,null,null,null,null,null,null,null,null,0,null,null,null,null,null,null,null,null,null,null,null,null,null,null,null,null,null,null,null,null,null,null,null,null,null,null,null,null,null,null,null,null,null,0]
[37,{"$f":"VLOOK2ALL(بنين!$D$10:$D$2547,$E$1,AS41,0)","v":"امنيه محمد الحايس البدراوى"},null,null,null,null,null,null,null,null,null,null,null,null,null,null,null,null,null,null,null,null,null,null,null,null,null,null,null,null,null,null,null,0,null,null,null,null,null,null,null,null,null,null,38,null,null,null,null,null,null,null,null,null,null,null,null,null,null,null,null,null,null,null,null,null,null,null,null,null,null,null,null,null,null,null,null,0,null,null,null,null,null,null,null,null,null,null,null,null,null,null,null,null,null,null,null,null,null,null,null,null,null,null,null,null,null,null,null,null,null,0,null,null,null,null,null,null,null,null,null,null,null,null,null,null,null,null,null,null,null,null,null,null,null,null,null,null,null,null,null,null,null,null,null,0,null,null,null,null,null,null,null,null,null,null,null,null,null,null,null,null,null,null,null,null,null,null,null,null,null,null,null,null,null,null,null,null,null,0,null,null,null,null,null,null,null,null,null,null,null,null,null,null,null,null,null,null,null,null,null,null,null,null,null,null,null,null,null,null,null,null,null,0,null,null,null,null,null,null,null,null,null,null,null,null,null,null,null,null,null,null,null,null,null,null,null,null,null,null,null,null,null,null,null,null,null,0,null,null,null,null,null,null,null,null,null,null,null,null,null,null,null,null,null,null,null,null,null,null,null,null,null,null,null,null,null,null,null,null,null,0,null,null,null,null,null,null,null,null,null,null,null,null,null,null,null,null,null,null,null,null,null,null,null,null,null,null,null,null,null,null,null,null,null,0]
[38,{"$f":"VLOOK2ALL(بنين!$D$10:$D$2547,$E$1,AS42,0)","v":"اميره عبد الله محمد رخا المشد"},null,null,null,null,null,null,null,null,null,null,null,null,null,null,null,null,null,null,null,null,null,null,null,null,null,null,null,null,null,null,null,0,null,null,null,null,null,null,null,null,null,null,39,null,null,null,null,null,null,null,null,null,null,null,null,null,null,null,null,null,null,null,null,null,null,null,null,null,null,null,null,null,null,null,null,0,null,null,null,null,null,null,null,null,null,null,null,null,null,null,null,null,null,null,null,null,null,null,null,null,null,null,null,null,null,null,null,null,null,0,null,null,null,null,null,null,null,null,null,null,null,null,null,null,null,null,null,null,null,null,null,null,null,null,null,null,null,null,null,null,null,null,null,0,null,null,null,null,null,null,null,null,null,null,null,null,null,null,null,null,null,null,null,null,null,null,null,null,null,null,null,null,null,null,null,null,null,0,null,null,null,null,null,null,null,null,null,null,null,null,null,null,null,null,null,null,null,null,null,null,null,null,null,null,null,null,null,null,null,null,null,0,null,null,null,null,null,null,null,null,null,null,null,null,null,null,null,null,null,null,null,null,null,null,null,null,null,null,null,null,null,null,null,null,null,0,null,null,null,null,null,null,null,null,null,null,null,null,null,null,null,null,null,null,null,null,null,null,null,null,null,null,null,null,null,null,null,null,null,0,null,null,null,null,null,null,null,null,null,null,null,null,null,null,null,null,null,null,null,null,null,null,null,null,null,null,null,null,null,null,null,null,null,0]
[39,{"$f":"VLOOK2ALL(بنين!$D$10:$D$2547,$E$1,AS43,0)","v":"اميره عبدالله عبدالمنعم احمد"},null,null,null,null,null,null,null,null,null,null,null,null,null,null,null,null,null,null,null,null,null,null,null,null,null,null,null,null,null,null,null,0,null,null,null,null,null,null,null,null,null,null,40,null,null,null,null,null,null,null,null,null,null,null,null,null,null,null,null,null,null,null,null,null,null,null,null,null,null,null,null,null,null,null,null,0,null,null,null,null,null,null,null,null,null,null,null,null,null,null,null,null,null,null,null,null,null,null,null,null,null,null,null,null,null,null,null,null,null,0,null,null,null,null,null,null,null,null,null,null,null,null,null,null,null,null,null,null,null,null,null,null,null,null,null,null,null,null,null,null,null,null,null,0,null,null,null,null,null,null,null,null,null,null,null,null,null,null,null,null,null,null,null,null,null,null,null,null,null,null,null,null,null,null,null,null,null,0,null,null,null,null,null,null,null,null,null,null,null,null,null,null,null,null,null,null,null,null,null,null,null,null,null,null,null,null,null,null,null,null,null,0,null,null,null,null,null,null,null,null,null,null,null,null,null,null,null,null,null,null,null,null,null,null,null,null,null,null,null,null,null,null,null,null,null,0,null,null,null,null,null,null,null,null,null,null,null,null,null,null,null,null,null,null,null,null,null,null,null,null,null,null,null,null,null,null,null,null,null,0,null,null,null,null,null,null,null,null,null,null,null,null,null,null,null,null,null,null,null,null,null,null,null,null,null,null,null,null,null,null,null,null,null,0]
[40,{"$f":"VLOOK2ALL(بنين!$D$10:$D$2547,$E$1,AS44,0)","v":"ايمان زنهم جميل امبابى"},null,null,null,null,null,null,null,null,null,null,null,null,null,null,null,null,null,null,null,null,null,null,null,null,null,null,null,null,null,null,null,0,null,null,null,null,null,null,null,null,null,null,41,null,null,null,null,null,null,null,null,null,null,null,null,null,null,null,null,null,null,null,null,null,null,null,null,null,null,null,null,null,null,null,null,0,null,null,null,null,null,null,null,null,null,null,null,null,null,null,null,null,null,null,null,null,null,null,null,null,null,null,null,null,null,null,null,null,null,0,null,null,null,null,null,null,null,null,null,null,null,null,null,null,null,null,null,null,null,null,null,null,null,null,null,null,null,null,null,null,null,null,null,0,null,null,null,null,null,null,null,null,null,null,null,null,null,null,null,null,null,null,null,null,null,null,null,null,null,null,null,null,null,null,null,null,null,0,null,null,null,null,null,null,null,null,null,null,null,null,null,null,null,null,null,null,null,null,null,null,null,null,null,null,null,null,null,null,null,null,null,0,null,null,null,null,null,null,null,null,null,null,null,null,null,null,null,null,null,null,null,null,null,null,null,null,null,null,null,null,null,null,null,null,null,0,null,null,null,null,null,null,null,null,null,null,null,null,null,null,null,null,null,null,null,null,null,null,null,null,null,null,null,null,null,null,null,null,null,0,null,null,null,null,null,null,null,null,null,null,null,null,null,null,null,null,null,null,null,null,null,null,null,null,null,null,null,null,null,null,null,null,null,0]
[41,{"$f":"VLOOK2ALL(بنين!$D$10:$D$2547,$E$1,AS45,0)","v":"ايمان شعبان محمد السيد محمد"},null,null,null,null,null,null,null,null,null,null,null,null,null,null,null,null,null,null,null,null,null,null,null,null,null,null,null,null,null,null,null,0,null,null,null,null,null,null,null,null,null,null,42,null,null,null,null,null,null,null,null,null,null,null,null,null,null,null,null,null,null,null,null,null,null,null,null,null,null,null,null,null,null,null,null,0,null,null,null,null,null,null,null,null,null,null,null,null,null,null,null,null,null,null,null,null,null,null,null,null,null,null,null,null,null,null,null,null,null,0,null,null,null,null,null,null,null,null,null,null,null,null,null,null,null,null,null,null,null,null,null,null,null,null,null,null,null,null,null,null,null,null,null,0,null,null,null,null,null,null,null,null,null,null,null,null,null,null,null,null,null,null,null,null,null,null,null,null,null,null,null,null,null,null,null,null,null,0,null,null,null,null,null,null,null,null,null,null,null,null,null,null,null,null,null,null,null,null,null,null,null,null,null,null,null,null,null,null,null,null,null,0,null,null,null,null,null,null,null,null,null,null,null,null,null,null,null,null,null,null,null,null,null,null,null,null,null,null,null,null,null,null,null,null,null,0,null,null,null,null,null,null,null,null,null,null,null,null,null,null,null,null,null,null,null,null,null,null,null,null,null,null,null,null,null,null,null,null,null,0,null,null,null,null,null,null,null,null,null,null,null,null,null,null,null,null,null,null,null,null,null,null,null,null,null,null,null,null,null,null,null,null,null,0]
[42,{"$f":"VLOOK2ALL(بنين!$D$10:$D$2547,$E$1,AS46,0)","v":"ايه السيد اليمانى عمرعبدالله"},null,null,null,null,null,null,null,null,null,null,null,null,null,null,null,null,null,null,null,null,null,null,null,null,null,null,null,null,null,null,null,0,null,null,null,null,null,null,null,null,null,null,43,null,null,null,null,null,null,null,null,null,null,null,null,null,null,null,null,null,null,null,null,null,null,null,null,null,null,null,null,null,null,null,null,0,null,null,null,null,null,null,null,null,null,null,null,null,null,null,null,null,null,null,null,null,null,null,null,null,null,null,null,null,null,null,null,null,null,0,null,null,null,null,null,null,null,null,null,null,null,null,null,null,null,null,null,null,null,null,null,null,null,null,null,null,null,null,null,null,null,null,null,0,null,null,null,null,null,null,null,null,null,null,null,null,null,null,null,null,null,null,null,null,null,null,null,null,null,null,null,null,null,null,null,null,null,0,null,null,null,null,null,null,null,null,null,null,null,null,null,null,null,null,null,null,null,null,null,null,null,null,null,null,null,null,null,null,null,null,null,0,null,null,null,null,null,null,null,null,null,null,null,null,null,null,null,null,null,null,null,null,null,null,null,null,null,null,null,null,null,null,null,null,null,0,null,null,null,null,null,null,null,null,null,null,null,null,null,null,null,null,null,null,null,null,null,null,null,null,null,null,null,null,null,null,null,null,null,0,null,null,null,null,null,null,null,null,null,null,null,null,null,null,null,null,null,null,null,null,null,null,null,null,null,null,null,null,null,null,null,null,null,0]
[43,{"$f":"VLOOK2ALL(بنين!$D$10:$D$2547,$E$1,AS47,0)","v":"بسمه بهاءالدين عبدالنبى حافظ"},null,null,null,null,null,null,null,null,null,null,null,null,null,null,null,null,null,null,null,null,null,null,null,null,null,null,null,null,null,null,null,0,null,null,null,null,null,null,null,null,null,null,44,null,null,null,null,null,null,null,null,null,null,null,null,null,null,null,null,null,null,null,null,null,null,null,null,null,null,null,null,null,null,null,null,0,null,null,null,null,null,null,null,null,null,null,null,null,null,null,null,null,null,null,null,null,null,null,null,null,null,null,null,null,null,null,null,null,null,0,null,null,null,null,null,null,null,null,null,null,null,null,null,null,null,null,null,null,null,null,null,null,null,null,null,null,null,null,null,null,null,null,null,0,null,null,null,null,null,null,null,null,null,null,null,null,null,null,null,null,null,null,null,null,null,null,null,null,null,null,null,null,null,null,null,null,null,0,null,null,null,null,null,null,null,null,null,null,null,null,null,null,null,null,null,null,null,null,null,null,null,null,null,null,null,null,null,null,null,null,null,0,null,null,null,null,null,null,null,null,null,null,null,null,null,null,null,null,null,null,null,null,null,null,null,null,null,null,null,null,null,null,null,null,null,0,null,null,null,null,null,null,null,null,null,null,null,null,null,null,null,null,null,null,null,null,null,null,null,null,null,null,null,null,null,null,null,null,null,0,null,null,null,null,null,null,null,null,null,null,null,null,null,null,null,null,null,null,null,null,null,null,null,null,null,null,null,null,null,null,null,null,null,0]
[44,{"$f":"VLOOK2ALL(بنين!$D$10:$D$2547,$E$1,AS48,0)","v":"بشرى صلاح الدين عبدالعزيز صلاح"},null,null,null,null,null,null,null,null,null,null,null,null,null,null,null,null,null,null,null,null,null,null,null,null,null,null,null,null,null,null,null,0,null,null,null,null,null,null,null,null,null,null,45,null,null,null,null,null,null,null,null,null,null,null,null,null,null,null,null,null,null,null,null,null,null,null,null,null,null,null,null,null,null,null,null,0,null,null,null,null,null,null,null,null,null,null,null,null,null,null,null,null,null,null,null,null,null,null,null,null,null,null,null,null,null,null,null,null,null,0,null,null,null,null,null,null,null,null,null,null,null,null,null,null,null,null,null,null,null,null,null,null,null,null,null,null,null,null,null,null,null,null,null,0,null,null,null,null,null,null,null,null,null,null,null,null,null,null,null,null,null,null,null,null,null,null,null,null,null,null,null,null,null,null,null,null,null,0,null,null,null,null,null,null,null,null,null,null,null,null,null,null,null,null,null,null,null,null,null,null,null,null,null,null,null,null,null,null,null,null,null,0,null,null,null,null,null,null,null,null,null,null,null,null,null,null,null,null,null,null,null,null,null,null,null,null,null,null,null,null,null,null,null,null,null,0,null,null,null,null,null,null,null,null,null,null,null,null,null,null,null,null,null,null,null,null,null,null,null,null,null,null,null,null,null,null,null,null,null,0,null,null,null,null,null,null,null,null,null,null,null,null,null,null,null,null,null,null,null,null,null,null,null,null,null,null,null,null,null,null,null,null,null,0]
[45,{"$f":"VLOOK2ALL(بنين!$D$10:$D$2547,$E$1,AS49,0)","v":"تحيه تامر حسن عبدالغنى"},null,null,null,null,null,null,null,null,null,null,null,null,null,null,null,null,null,null,null,null,null,null,null,null,null,null,null,null,null,null,null,0,null,null,null,null,null,null,null,null,null,null,46,null,null,null,null,null,null,null,null,null,null,null,null,null,null,null,null,null,null,null,null,null,null,null,null,null,null,null,null,null,null,null,null,0,null,null,null,null,null,null,null,null,null,null,null,null,null,null,null,null,null,null,null,null,null,null,null,null,null,null,null,null,null,null,null,null,null,0,null,null,null,null,null,null,null,null,null,null,null,null,null,null,null,null,null,null,null,null,null,null,null,null,null,null,null,null,null,null,null,null,null,0,null,null,null,null,null,null,null,null,null,null,null,null,null,null,null,null,null,null,null,null,null,null,null,null,null,null,null,null,null,null,null,null,null,0,null,null,null,null,null,null,null,null,null,null,null,null,null,null,null,null,null,null,null,null,null,null,null,null,null,null,null,null,null,null,null,null,null,0,null,null,null,null,null,null,null,null,null,null,null,null,null,null,null,null,null,null,null,null,null,null,null,null,null,null,null,null,null,null,null,null,null,0,null,null,null,null,null,null,null,null,null,null,null,null,null,null,null,null,null,null,null,null,null,null,null,null,null,null,null,null,null,null,null,null,null,0,null,null,null,null,null,null,null,null,null,null,null,null,null,null,null,null,null,null,null,null,null,null,null,null,null,null,null,null,null,null,null,null,null,0]
[46,{"$f":"VLOOK2ALL(بنين!$D$10:$D$2547,$E$1,AS50,0)","v":"حبيبه ربيع محمد سيد احمد"},null,null,null,null,null,null,null,null,null,null,null,null,null,null,null,null,null,null,null,null,null,null,null,null,null,null,null,null,null,null,null,0,null,null,null,null,null,null,null,null,null,null,47,null,null,null,null,null,null,null,null,null,null,null,null,null,null,null,null,null,null,null,null,null,null,null,null,null,null,null,null,null,null,null,null,0,null,null,null,null,null,null,null,null,null,null,null,null,null,null,null,null,null,null,null,null,null,null,null,null,null,null,null,null,null,null,null,null,null,0,null,null,null,null,null,null,null,null,null,null,null,null,null,null,null,null,null,null,null,null,null,null,null,null,null,null,null,null,null,null,null,null,null,0,null,null,null,null,null,null,null,null,null,null,null,null,null,null,null,null,null,null,null,null,null,null,null,null,null,null,null,null,null,null,null,null,null,0,null,null,null,null,null,null,null,null,null,null,null,null,null,null,null,null,null,null,null,null,null,null,null,null,null,null,null,null,null,null,null,null,null,0,null,null,null,null,null,null,null,null,null,null,null,null,null,null,null,null,null,null,null,null,null,null,null,null,null,null,null,null,null,null,null,null,null,0,null,null,null,null,null,null,null,null,null,null,null,null,null,null,null,null,null,null,null,null,null,null,null,null,null,null,null,null,null,null,null,null,null,0,null,null,null,null,null,null,null,null,null,null,null,null,null,null,null,null,null,null,null,null,null,null,null,null,null,null,null,null,null,null,null,null,null,0]
[47,{"$f":"VLOOK2ALL(بنين!$D$10:$D$2547,$E$1,AS51,0)","v":"حنان السيد عبدالعزيز عبدالحميد"},null,null,null,null,null,null,null,null,null,null,null,null,null,null,null,null,null,null,null,null,null,null,null,null,null,null,null,null,null,null,null,0,null,null,null,null,null,null,null,null,null,null,48,null,null,null,null,null,null,null,null,null,null,null,null,null,null,null,null,null,null,null,null,null,null,null,null,null,null,null,null,null,null,null,null,0,null,null,null,null,null,null,null,null,null,null,null,null,null,null,null,null,null,null,null,null,null,null,null,null,null,null,null,null,null,null,null,null,null,0,null,null,null,null,null,null,null,null,null,null,null,null,null,null,null,null,null,null,null,null,null,null,null,null,null,null,null,null,null,null,null,null,null,0,null,null,null,null,null,null,null,null,null,null,null,null,null,null,null,null,null,null,null,null,null,null,null,null,null,null,null,null,null,null,null,null,null,0,null,null,null,null,null,null,null,null,null,null,null,null,null,null,null,null,null,null,null,null,null,null,null,null,null,null,null,null,null,null,null,null,null,0,null,null,null,null,null,null,null,null,null,null,null,null,null,null,null,null,null,null,null,null,null,null,null,null,null,null,null,null,null,null,null,null,null,0,null,null,null,null,null,null,null,null,null,null,null,null,null,null,null,null,null,null,null,null,null,null,null,null,null,null,null,null,null,null,null,null,null,0,null,null,null,null,null,null,null,null,null,null,null,null,null,null,null,null,null,null,null,null,null,null,null,null,null,null,null,null,null,null,null,null,null,0]
[48,{"$f":"VLOOK2ALL(بنين!$D$10:$D$2547,$E$1,AS52,0)","v":"حنان علاء عبدالخالق ابراهيم شلبى"},null,null,null,null,null,null,null,null,null,null,null,null,null,null,null,null,null,null,null,null,null,null,null,null,null,null,null,null,null,null,null,0,null,null,null,null,null,null,null,null,null,null,49,null,null,null,null,null,null,null,null,null,null,null,null,null,null,null,null,null,null,null,null,null,null,null,null,null,null,null,null,null,null,null,null,0,null,null,null,null,null,null,null,null,null,null,null,null,null,null,null,null,null,null,null,null,null,null,null,null,null,null,null,null,null,null,null,null,null,0,null,null,null,null,null,null,null,null,null,null,null,null,null,null,null,null,null,null,null,null,null,null,null,null,null,null,null,null,null,null,null,null,null,0,null,null,null,null,null,null,null,null,null,null,null,null,null,null,null,null,null,null,null,null,null,null,null,null,null,null,null,null,null,null,null,null,null,0,null,null,null,null,null,null,null,null,null,null,null,null,null,null,null,null,null,null,null,null,null,null,null,null,null,null,null,null,null,null,null,null,null,0,null,null,null,null,null,null,null,null,null,null,null,null,null,null,null,null,null,null,null,null,null,null,null,null,null,null,null,null,null,null,null,null,null,0,null,null,null,null,null,null,null,null,null,null,null,null,null,null,null,null,null,null,null,null,null,null,null,null,null,null,null,null,null,null,null,null,null,0,null,null,null,null,null,null,null,null,null,null,null,null,null,null,null,null,null,null,null,null,null,null,null,null,null,null,null,null,null,null,null,null,null,0]
[49,{"$f":"VLOOK2ALL(بنين!$D$10:$D$2547,$E$1,AS53,0)","v":"خديجه عبدالفتاح مسعد محمودحجازى"},null,null,null,null,null,null,null,null,null,null,null,null,null,null,null,null,null,null,null,null,null,null,null,null,null,null,null,null,null,null,null,0,null,null,null,null,null,null,null,null,null,null,50,null,null,null,null,null,null,null,null,null,null,null,null,null,null,null,null,null,null,null,null,null,null,null,null,null,null,null,null,null,null,null,null,0,null,null,null,null,null,null,null,null,null,null,null,null,null,null,null,null,null,null,null,null,null,null,null,null,null,null,null,null,null,null,null,null,null,0,null,null,null,null,null,null,null,null,null,null,null,null,null,null,null,null,null,null,null,null,null,null,null,null,null,null,null,null,null,null,null,null,null,0,null,null,null,null,null,null,null,null,null,null,null,null,null,null,null,null,null,null,null,null,null,null,null,null,null,null,null,null,null,null,null,null,null,0,null,null,null,null,null,null,null,null,null,null,null,null,null,null,null,null,null,null,null,null,null,null,null,null,null,null,null,null,null,null,null,null,null,0,null,null,null,null,null,null,null,null,null,null,null,null,null,null,null,null,null,null,null,null,null,null,null,null,null,null,null,null,null,null,null,null,null,0,null,null,null,null,null,null,null,null,null,null,null,null,null,null,null,null,null,null,null,null,null,null,null,null,null,null,null,null,null,null,null,null,null,0,null,null,null,null,null,null,null,null,null,null,null,null,null,null,null,null,null,null,null,null,null,null,null,null,null,null,null,null,null,null,null,null,null,0]
[50,{"$f":"VLOOK2ALL(بنين!$D$10:$D$2547,$E$1,AS54,0)","v":"خلود محمد احمد جمعه وهبه"},null,null,null,null,null,null,null,null,null,null,null,null,null,null,null,null,null,null,null,null,null,null,null,null,null,null,null,null,null,null,null,0,null,null,null,null,null,null,null,null,null,null,51,null,null,null,null,null,null,null,null,null,null,null,null,null,null,null,null,null,null,null,null,null,null,null,null,null,null,null,null,null,null,null,null,0,null,null,null,null,null,null,null,null,null,null,null,null,null,null,null,null,null,null,null,null,null,null,null,null,null,null,null,null,null,null,null,null,null,0,null,null,null,null,null,null,null,null,null,null,null,null,null,null,null,null,null,null,null,null,null,null,null,null,null,null,null,null,null,null,null,null,null,0,null,null,null,null,null,null,null,null,null,null,null,null,null,null,null,null,null,null,null,null,null,null,null,null,null,null,null,null,null,null,null,null,null,0,null,null,null,null,null,null,null,null,null,null,null,null,null,null,null,null,null,null,null,null,null,null,null,null,null,null,null,null,null,null,null,null,null,0,null,null,null,null,null,null,null,null,null,null,null,null,null,null,null,null,null,null,null,null,null,null,null,null,null,null,null,null,null,null,null,null,null,0,null,null,null,null,null,null,null,null,null,null,null,null,null,null,null,null,null,null,null,null,null,null,null,null,null,null,null,null,null,null,null,null,null,0,null,null,null,null,null,null,null,null,null,null,null,null,null,null,null,null,null,null,null,null,null,null,null,null,null,null,null,null,null,null,null,null,null,0]
[51,{"$f":"VLOOK2ALL(بنين!$D$10:$D$2547,$E$1,AS55,0)","v":"داليا عبدالحميد عبدالرحيم عبدالعزيز"},null,null,null,null,null,null,null,null,null,null,null,null,null,null,null,null,null,null,null,null,null,null,null,null,null,null,null,null,null,null,null,0,null,null,null,null,null,null,null,null,null,null,52,null,null,null,null,null,null,null,null,null,null,null,null,null,null,null,null,null,null,null,null,null,null,null,null,null,null,null,null,null,null,null,null,0,null,null,null,null,null,null,null,null,null,null,null,null,null,null,null,null,null,null,null,null,null,null,null,null,null,null,null,null,null,null,null,null,null,0,null,null,null,null,null,null,null,null,null,null,null,null,null,null,null,null,null,null,null,null,null,null,null,null,null,null,null,null,null,null,null,null,null,0,null,null,null,null,null,null,null,null,null,null,null,null,null,null,null,null,null,null,null,null,null,null,null,null,null,null,null,null,null,null,null,null,null,0,null,null,null,null,null,null,null,null,null,null,null,null,null,null,null,null,null,null,null,null,null,null,null,null,null,null,null,null,null,null,null,null,null,0,null,null,null,null,null,null,null,null,null,null,null,null,null,null,null,null,null,null,null,null,null,null,null,null,null,null,null,null,null,null,null,null,null,0,null,null,null,null,null,null,null,null,null,null,null,null,null,null,null,null,null,null,null,null,null,null,null,null,null,null,null,null,null,null,null,null,null,0,null,null,null,null,null,null,null,null,null,null,null,null,null,null,null,null,null,null,null,null,null,null,null,null,null,null,null,null,null,null,null,null,null,0]
[52,{"$f":"VLOOK2ALL(بنين!$D$10:$D$2547,$E$1,AS56,0)","v":"دنيا ايمن عبدالله ابو المعاطي"},null,null,null,null,null,null,null,null,null,null,null,null,null,null,null,null,null,null,null,null,null,null,null,null,null,null,null,null,null,null,null,0,null,null,null,null,null,null,null,null,null,null,53,null,null,null,null,null,null,null,null,null,null,null,null,null,null,null,null,null,null,null,null,null,null,null,null,null,null,null,null,null,null,null,null,0,null,null,null,null,null,null,null,null,null,null,null,null,null,null,null,null,null,null,null,null,null,null,null,null,null,null,null,null,null,null,null,null,null,0,null,null,null,null,null,null,null,null,null,null,null,null,null,null,null,null,null,null,null,null,null,null,null,null,null,null,null,null,null,null,null,null,null,0,null,null,null,null,null,null,null,null,null,null,null,null,null,null,null,null,null,null,null,null,null,null,null,null,null,null,null,null,null,null,null,null,null,0,null,null,null,null,null,null,null,null,null,null,null,null,null,null,null,null,null,null,null,null,null,null,null,null,null,null,null,null,null,null,null,null,null,0,null,null,null,null,null,null,null,null,null,null,null,null,null,null,null,null,null,null,null,null,null,null,null,null,null,null,null,null,null,null,null,null,null,0,null,null,null,null,null,null,null,null,null,null,null,null,null,null,null,null,null,null,null,null,null,null,null,null,null,null,null,null,null,null,null,null,null,0,null,null,null,null,null,null,null,null,null,null,null,null,null,null,null,null,null,null,null,null,null,null,null,null,null,null,null,null,null,null,null,null,null,0]
[53,{"$f":"VLOOK2ALL(بنين!$D$10:$D$2547,$E$1,AS57,0)","v":0},null,null,null,null,null,null,null,null,null,null,null,null,null,null,null,null,null,null,null,null,null,null,null,null,null,null,null,null,null,null,null,0,null,null,null,null,null,null,null,null,null,null,54,null,null,null,null,null,null,null,null,null,null,null,null,null,null,null,null,null,null,null,null,null,null,null,null,null,null,null,null,null,null,null,null,0,null,null,null,null,null,null,null,null,null,null,null,null,null,null,null,null,null,null,null,null,null,null,null,null,null,null,null,null,null,null,null,null,null,0,null,null,null,null,null,null,null,null,null,null,null,null,null,null,null,null,null,null,null,null,null,null,null,null,null,null,null,null,null,null,null,null,null,0,null,null,null,null,null,null,null,null,null,null,null,null,null,null,null,null,null,null,null,null,null,null,null,null,null,null,null,null,null,null,null,null,null,0,null,null,null,null,null,null,null,null,null,null,null,null,null,null,null,null,null,null,null,null,null,null,null,null,null,null,null,null,null,null,null,null,null,0,null,null,null,null,null,null,null,null,null,null,null,null,null,null,null,null,null,null,null,null,null,null,null,null,null,null,null,null,null,null,null,null,null,0,null,null,null,null,null,null,null,null,null,null,null,null,null,null,null,null,null,null,null,null,null,null,null,null,null,null,null,null,null,null,null,null,null,0,null,null,null,null,null,null,null,null,null,null,null,null,null,null,null,null,null,null,null,null,null,null,null,null,null,null,null,null,null,null,null,null,null,0]
[54,{"$f":"VLOOK2ALL(بنين!$D$10:$D$2547,$E$1,AS58,0)","v":0},null,null,null,null,null,null,null,null,null,null,null,null,null,null,null,null,null,null,null,null,null,null,null,null,null,null,null,null,null,null,null,0,null,null,null,null,null,null,null,null,null,null,55,null,null,null,null,null,null,null,null,null,null,null,null,null,null,null,null,null,null,null,null,null,null,null,null,null,null,null,null,null,null,null,null,0,null,null,null,null,null,null,null,null,null,null,null,null,null,null,null,null,null,null,null,null,null,null,null,null,null,null,null,null,null,null,null,null,null,0,null,null,null,null,null,null,null,null,null,null,null,null,null,null,null,null,null,null,null,null,null,null,null,null,null,null,null,null,null,null,null,null,null,0,null,null,null,null,null,null,null,null,null,null,null,null,null,null,null,null,null,null,null,null,null,null,null,null,null,null,null,null,null,null,null,null,null,0,null,null,null,null,null,null,null,null,null,null,null,null,null,null,null,null,null,null,null,null,null,null,null,null,null,null,null,null,null,null,null,null,null,0,null,null,null,null,null,null,null,null,null,null,null,null,null,null,null,null,null,null,null,null,null,null,null,null,null,null,null,null,null,null,null,null,null,0,null,null,null,null,null,null,null,null,null,null,null,null,null,null,null,null,null,null,null,null,null,null,null,null,null,null,null,null,null,null,null,null,null,0,null,null,null,null,null,null,null,null,null,null,null,null,null,null,null,null,null,null,null,null,null,null,null,null,null,null,null,null,null,null,null,null,null,0]
[55,{"$f":"VLOOK2ALL(بنين!$D$10:$D$2547,$E$1,AS59,0)","v":0},null,null,null,null,null,null,null,null,null,null,null,null,null,null,null,null,null,null,null,null,null,null,null,null,null,null,null,null,null,null,null,0,null,null,null,null,null,null,null,null,null,null,56,null,null,null,null,null,null,null,null,null,null,null,null,null,null,null,null,null,null,null,null,null,null,null,null,null,null,null,null,null,null,null,null,0,null,null,null,null,null,null,null,null,null,null,null,null,null,null,null,null,null,null,null,null,null,null,null,null,null,null,null,null,null,null,null,null,null,0,null,null,null,null,null,null,null,null,null,null,null,null,null,null,null,null,null,null,null,null,null,null,null,null,null,null,null,null,null,null,null,null,null,0,null,null,null,null,null,null,null,null,null,null,null,null,null,null,null,null,null,null,null,null,null,null,null,null,null,null,null,null,null,null,null,null,null,0,null,null,null,null,null,null,null,null,null,null,null,null,null,null,null,null,null,null,null,null,null,null,null,null,null,null,null,null,null,null,null,null,null,0,null,null,null,null,null,null,null,null,null,null,null,null,null,null,null,null,null,null,null,null,null,null,null,null,null,null,null,null,null,null,null,null,null,0,null,null,null,null,null,null,null,null,null,null,null,null,null,null,null,null,null,null,null,null,null,null,null,null,null,null,null,null,null,null,null,null,null,0,null,null,null,null,null,null,null,null,null,null,null,null,null,null,null,null,null,null,null,null,null,null,null,null,null,null,null,null,null,null,null,null,null,0]
[56,{"$f":"VLOOK2ALL(بنين!$D$10:$D$2547,$E$1,AS60,0)","v":0},null,null,null,null,null,null,null,null,null,null,null,null,null,null,null,null,null,null,null,null,null,null,null,null,null,null,null,null,null,null,null,0,null,null,null,null,null,null,null,null,null,null,57,null,null,null,null,null,null,null,null,null,null,null,null,null,null,null,null,null,null,null,null,null,null,null,null,null,null,null,null,null,null,null,null,0,null,null,null,null,null,null,null,null,null,null,null,null,null,null,null,null,null,null,null,null,null,null,null,null,null,null,null,null,null,null,null,null,null,0,null,null,null,null,null,null,null,null,null,null,null,null,null,null,null,null,null,null,null,null,null,null,null,null,null,null,null,null,null,null,null,null,null,0,null,null,null,null,null,null,null,null,null,null,null,null,null,null,null,null,null,null,null,null,null,null,null,null,null,null,null,null,null,null,null,null,null,0,null,null,null,null,null,null,null,null,null,null,null,null,null,null,null,null,null,null,null,null,null,null,null,null,null,null,null,null,null,null,null,null,null,0,null,null,null,null,null,null,null,null,null,null,null,null,null,null,null,null,null,null,null,null,null,null,null,null,null,null,null,null,null,null,null,null,null,0,null,null,null,null,null,null,null,null,null,null,null,null,null,null,null,null,null,null,null,null,null,null,null,null,null,null,null,null,null,null,null,null,null,0,null,null,null,null,null,null,null,null,null,null,null,null,null,null,null,null,null,null,null,null,null,null,null,null,null,null,null,null,null,null,null,null,null,0]
[57,{"$f":"VLOOK2ALL(بنين!$D$10:$D$2547,$E$1,AS61,0)","v":0},null,null,null,null,null,null,null,null,null,null,null,null,null,null,null,null,null,null,null,null,null,null,null,null,null,null,null,null,null,null,null,0,null,null,null,null,null,null,null,null,null,null,58,null,null,null,null,null,null,null,null,null,null,null,null,null,null,null,null,null,null,null,null,null,null,null,null,null,null,null,null,null,null,null,null,0,null,null,null,null,null,null,null,null,null,null,null,null,null,null,null,null,null,null,null,null,null,null,null,null,null,null,null,null,null,null,null,null,null,0,null,null,null,null,null,null,null,null,null,null,null,null,null,null,null,null,null,null,null,null,null,null,null,null,null,null,null,null,null,null,null,null,null,0,null,null,null,null,null,null,null,null,null,null,null,null,null,null,null,null,null,null,null,null,null,null,null,null,null,null,null,null,null,null,null,null,null,0,null,null,null,null,null,null,null,null,null,null,null,null,null,null,null,null,null,null,null,null,null,null,null,null,null,null,null,null,null,null,null,null,null,0,null,null,null,null,null,null,null,null,null,null,null,null,null,null,null,null,null,null,null,null,null,null,null,null,null,null,null,null,null,null,null,null,null,0,null,null,null,null,null,null,null,null,null,null,null,null,null,null,null,null,null,null,null,null,null,null,null,null,null,null,null,null,null,null,null,null,null,0,null,null,null,null,null,null,null,null,null,null,null,null,null,null,null,null,null,null,null,null,null,null,null,null,null,null,null,null,null,null,null,null,null,0]
[58,{"$f":"VLOOK2ALL(بنين!$D$10:$D$2547,$E$1,AS62,0)","v":0},null,null,null,null,null,null,null,null,null,null,null,null,null,null,null,null,null,null,null,null,null,null,null,null,null,null,null,null,null,null,null,0,null,null,null,null,null,null,null,null,null,null,59,null,null,null,null,null,null,null,null,null,null,null,null,null,null,null,null,null,null,null,null,null,null,null,null,null,null,null,null,null,null,null,null,0,null,null,null,null,null,null,null,null,null,null,null,null,null,null,null,null,null,null,null,null,null,null,null,null,null,null,null,null,null,null,null,null,null,0,null,null,null,null,null,null,null,null,null,null,null,null,null,null,null,null,null,null,null,null,null,null,null,null,null,null,null,null,null,null,null,null,null,0,null,null,null,null,null,null,null,null,null,null,null,null,null,null,null,null,null,null,null,null,null,null,null,null,null,null,null,null,null,null,null,null,null,0,null,null,null,null,null,null,null,null,null,null,null,null,null,null,null,null,null,null,null,null,null,null,null,null,null,null,null,null,null,null,null,null,null,0,null,null,null,null,null,null,null,null,null,null,null,null,null,null,null,null,null,null,null,null,null,null,null,null,null,null,null,null,null,null,null,null,null,0,null,null,null,null,null,null,null,null,null,null,null,null,null,null,null,null,null,null,null,null,null,null,null,null,null,null,null,null,null,null,null,null,null,0,null,null,null,null,null,null,null,null,null,null,null,null,null,null,null,null,null,null,null,null,null,null,null,null,null,null,null,null,null,null,null,null,null,0]
[59,{"$f":"VLOOK2ALL(بنين!$D$10:$D$2547,$E$1,AS63,0)","v":0},null,null,null,null,null,null,null,null,null,null,null,null,null,null,null,null,null,null,null,null,null,null,null,null,null,null,null,null,null,null,null,0,null,null,null,null,null,null,null,null,null,null,60,null,null,null,null,null,null,null,null,null,null,null,null,null,null,null,null,null,null,null,null,null,null,null,null,null,null,null,null,null,null,null,null,0,null,null,null,null,null,null,null,null,null,null,null,null,null,null,null,null,null,null,null,null,null,null,null,null,null,null,null,null,null,null,null,null,null,0,null,null,null,null,null,null,null,null,null,null,null,null,null,null,null,null,null,null,null,null,null,null,null,null,null,null,null,null,null,null,null,null,null,0,null,null,null,null,null,null,null,null,null,null,null,null,null,null,null,null,null,null,null,null,null,null,null,null,null,null,null,null,null,null,null,null,null,0,null,null,null,null,null,null,null,null,null,null,null,null,null,null,null,null,null,null,null,null,null,null,null,null,null,null,null,null,null,null,null,null,null,0,null,null,null,null,null,null,null,null,null,null,null,null,null,null,null,null,null,null,null,null,null,null,null,null,null,null,null,null,null,null,null,null,null,0,null,null,null,null,null,null,null,null,null,null,null,null,null,null,null,null,null,null,null,null,null,null,null,null,null,null,null,null,null,null,null,null,null,0,null,null,null,null,null,null,null,null,null,null,null,null,null,null,null,null,null,null,null,null,null,null,null,null,null,null,null,null,null,null,null,null,null,0]
[60,{"$f":"VLOOK2ALL(بنين!$D$10:$D$2547,$E$1,AS64,0)","v":0},null,null,null,null,null,null,null,null,null,null,null,null,null,null,null,null,null,null,null,null,null,null,null,null,null,null,null,null,null,null,null,0,null,null,null,null,null,null,null,null,null,null,61,null,null,null,null,null,null,null,null,null,null,null,null,null,null,null,null,null,null,null,null,null,null,null,null,null,null,null,null,null,null,null,null,0,null,null,null,null,null,null,null,null,null,null,null,null,null,null,null,null,null,null,null,null,null,null,null,null,null,null,null,null,null,null,null,null,null,0,null,null,null,null,null,null,null,null,null,null,null,null,null,null,null,null,null,null,null,null,null,null,null,null,null,null,null,null,null,null,null,null,null,0,null,null,null,null,null,null,null,null,null,null,null,null,null,null,null,null,null,null,null,null,null,null,null,null,null,null,null,null,null,null,null,null,null,0,null,null,null,null,null,null,null,null,null,null,null,null,null,null,null,null,null,null,null,null,null,null,null,null,null,null,null,null,null,null,null,null,null,0,null,null,null,null,null,null,null,null,null,null,null,null,null,null,null,null,null,null,null,null,null,null,null,null,null,null,null,null,null,null,null,null,null,0,null,null,null,null,null,null,null,null,null,null,null,null,null,null,null,null,null,null,null,null,null,null,null,null,null,null,null,null,null,null,null,null,null,0,null,null,null,null,null,null,null,null,null,null,null,null,null,null,null,null,null,null,null,null,null,null,null,null,null,null,null,null,null,null,null,null,null,0]
[61,{"$f":"VLOOK2ALL(بنين!$D$10:$D$2547,$E$1,AS65,0)","v":0},null,null,null,null,null,null,null,null,null,null,null,null,null,null,null,null,null,null,null,null,null,null,null,null,null,null,null,null,null,null,null,0,null,null,null,null,null,null,null,null,null,null,62,null,null,null,null,null,null,null,null,null,null,null,null,null,null,null,null,null,null,null,null,null,null,null,null,null,null,null,null,null,null,null,null,0,null,null,null,null,null,null,null,null,null,null,null,null,null,null,null,null,null,null,null,null,null,null,null,null,null,null,null,null,null,null,null,null,null,0,null,null,null,null,null,null,null,null,null,null,null,null,null,null,null,null,null,null,null,null,null,null,null,null,null,null,null,null,null,null,null,null,null,0,null,null,null,null,null,null,null,null,null,null,null,null,null,null,null,null,null,null,null,null,null,null,null,null,null,null,null,null,null,null,null,null,null,0,null,null,null,null,null,null,null,null,null,null,null,null,null,null,null,null,null,null,null,null,null,null,null,null,null,null,null,null,null,null,null,null,null,0,null,null,null,null,null,null,null,null,null,null,null,null,null,null,null,null,null,null,null,null,null,null,null,null,null,null,null,null,null,null,null,null,null,0,null,null,null,null,null,null,null,null,null,null,null,null,null,null,null,null,null,null,null,null,null,null,null,null,null,null,null,null,null,null,null,null,null,0,null,null,null,null,null,null,null,null,null,null,null,null,null,null,null,null,null,null,null,null,null,null,null,null,null,null,null,null,null,null,null,null,null,0]
[62,{"$f":"VLOOK2ALL(بنين!$D$10:$D$2547,$E$1,AS66,0)","v":0},null,null,null,null,null,null,null,null,null,null,null,null,null,null,null,null,null,null,null,null,null,null,null,null,null,null,null,null,null,null,null,0,null,null,null,null,null,null,null,null,null,null,63,null,null,null,null,null,null,null,null,null,null,null,null,null,null,null,null,null,null,null,null,null,null,null,null,null,null,null,null,null,null,null,null,0,null,null,null,null,null,null,null,null,null,null,null,null,null,null,null,null,null,null,null,null,null,null,null,null,null,null,null,null,null,null,null,null,null,0,null,null,null,null,null,null,null,null,null,null,null,null,null,null,null,null,null,null,null,null,null,null,null,null,null,null,null,null,null,null,null,null,null,0,null,null,null,null,null,null,null,null,null,null,null,null,null,null,null,null,null,null,null,null,null,null,null,null,null,null,null,null,null,null,null,null,null,0,null,null,null,null,null,null,null,null,null,null,null,null,null,null,null,null,null,null,null,null,null,null,null,null,null,null,null,null,null,null,null,null,null,0,null,null,null,null,null,null,null,null,null,null,null,null,null,null,null,null,null,null,null,null,null,null,null,null,null,null,null,null,null,null,null,null,null,0,null,null,null,null,null,null,null,null,null,null,null,null,null,null,null,null,null,null,null,null,null,null,null,null,null,null,null,null,null,null,null,null,null,0,null,null,null,null,null,null,null,null,null,null,null,null,null,null,null,null,null,null,null,null,null,null,null,null,null,null,null,null,null,null,null,null,null,0]
[63,{"$f":"VLOOK2ALL(بنين!$D$10:$D$2547,$E$1,AS67,0)","v":0},null,null,null,null,null,null,null,null,null,null,null,null,null,null,null,null,null,null,null,null,null,null,null,null,null,null,null,null,null,null,null,0,null,null,null,null,null,null,null,null,null,null,64,null,null,null,null,null,null,null,null,null,null,null,null,null,null,null,null,null,null,null,null,null,null,null,null,null,null,null,null,null,null,null,null,0,null,null,null,null,null,null,null,null,null,null,null,null,null,null,null,null,null,null,null,null,null,null,null,null,null,null,null,null,null,null,null,null,null,0,null,null,null,null,null,null,null,null,null,null,null,null,null,null,null,null,null,null,null,null,null,null,null,null,null,null,null,null,null,null,null,null,null,0,null,null,null,null,null,null,null,null,null,null,null,null,null,null,null,null,null,null,null,null,null,null,null,null,null,null,null,null,null,null,null,null,null,0,null,null,null,null,null,null,null,null,null,null,null,null,null,null,null,null,null,null,null,null,null,null,null,null,null,null,null,null,null,null,null,null,null,0,null,null,null,null,null,null,null,null,null,null,null,null,null,null,null,null,null,null,null,null,null,null,null,null,null,null,null,null,null,null,null,null,null,0,null,null,null,null,null,null,null,null,null,null,null,null,null,null,null,null,null,null,null,null,null,null,null,null,null,null,null,null,null,null,null,null,null,0,null,null,null,null,null,null,null,null,null,null,null,null,null,null,null,null,null,null,null,null,null,null,null,null,null,null,null,null,null,null,null,null,null,0]
[64,{"$f":"VLOOK2ALL(بنين!$D$10:$D$2547,$E$1,AS68,0)","v":0},null,null,null,null,null,null,null,null,null,null,null,null,null,null,null,null,null,null,null,null,null,null,null,null,null,null,null,null,null,null,null,0,null,null,null,null,null,null,null,null,null,null,65,null,null,null,null,null,null,null,null,null,null,null,null,null,null,null,null,null,null,null,null,null,null,null,null,null,null,null,null,null,null,null,null,0,null,null,null,null,null,null,null,null,null,null,null,null,null,null,null,null,null,null,null,null,null,null,null,null,null,null,null,null,null,null,null,null,null,0,null,null,null,null,null,null,null,null,null,null,null,null,null,null,null,null,null,null,null,null,null,null,null,null,null,null,null,null,null,null,null,null,null,0,null,null,null,null,null,null,null,null,null,null,null,null,null,null,null,null,null,null,null,null,null,null,null,null,null,null,null,null,null,null,null,null,null,0,null,null,null,null,null,null,null,null,null,null,null,null,null,null,null,null,null,null,null,null,null,null,null,null,null,null,null,null,null,null,null,null,null,0,null,null,null,null,null,null,null,null,null,null,null,null,null,null,null,null,null,null,null,null,null,null,null,null,null,null,null,null,null,null,null,null,null,0,null,null,null,null,null,null,null,null,null,null,null,null,null,null,null,null,null,null,null,null,null,null,null,null,null,null,null,null,null,null,null,null,null,0,null,null,null,null,null,null,null,null,null,null,null,null,null,null,null,null,null,null,null,null,null,null,null,null,null,null,null,null,null,null,null,null,null,0]
[65,{"$f":"VLOOK2ALL(بنين!$D$10:$D$2547,$E$1,AS69,0)","v":0},null,null,null,null,null,null,null,null,null,null,null,null,null,null,null,null,null,null,null,null,null,null,null,null,null,null,null,null,null,null,null,{"$f":"COUNTA(C70:AG70)","v":0},null,null,null,null,null,null,null,null,null,null,{"$f":"ROW()-4","v":66},null,null,null,null,null,null,null,null,null,null,null,null,null,null,null,null,null,null,null,null,null,null,null,null,null,null,null,null,null,null,null,null,{"$f":"COUNTA(AU70:BY70)","v":0},null,null,null,null,null,null,null,null,null,null,null,null,null,null,null,null,null,null,null,null,null,null,null,null,null,null,null,null,null,null,null,null,null,{"$f":"COUNTA(CC70:DG70)","v":0},null,null,null,null,null,null,null,null,null,null,null,null,null,null,null,null,null,null,null,null,null,null,null,null,null,null,null,null,null,null,null,null,null,{"$f":"COUNTA(DK70:EO70)","v":0},null,null,null,null,null,null,null,null,null,null,null,null,null,null,null,null,null,null,null,null,null,null,null,null,null,null,null,null,null,null,null,null,null,{"$f":"COUNTA(ES70:FW70)","v":0},null,null,null,null,null,null,null,null,null,null,null,null,null,null,null,null,null,null,null,null,null,null,null,null,null,null,null,null,null,null,null,null,null,{"$f":"COUNTA(GA70:HE70)","v":0},null,null,null,null,null,null,null,null,null,null,null,null,null,null,null,null,null,null,null,null,null,null,null,null,null,null,null,null,null,null,null,null,null,{"$f":"COUNTA(HI70:IM70)","v":0},null,null,null,null,null,null,null,null,null,null,null,null,null,null,null,null,null,null,null,null,null,null,null,null,null,null,null,null,null,null,null,null,null,{"$f":"COUNTA(IQ70:JU70)","v":0},null,null,null,null,null,null,null,null,null,null,null,null,null,null,null,null,null,null,null,null,null,null,null,null,null,null,null,null,null,null,null,null,null,{"$f":"COUNTA(JY70:LC70)","v":0}]
[null,{"$f":"COUNT(B6:B70)","v":13},{"$f":"COUNTA(C6:C70)","v":1},{"$f":"COUNTA(D6:D70)","v":0},0,0,0,0,0,0,0,0,0,0,0,0,0,0,0,0,0,0,0,0,0,0,0,0,0,0,0,0,0,{"$f":"SUM(AH6:AH70)","v":1},null,null,null,null,null,null,null,null,null,null,null,null,{"$f":"COUNTA(AU6:AU70)","v":3},{"$f":"COUNTA(AV6:AV70)","v":0},1,0,0,0,0,0,0,0,1,0,0,0,0,0,1,0,0,1,0,0,0,0,0,0,0,0,0,0,0,{"$f":"SUM(BZ6:BZ70)","v":7},null,null,{"$f":"COUNTA(CC6:CC70)","v":3},{"$f":"COUNTA(CD6:CD70)","v":0},1,0,0,0,0,0,0,0,1,0,0,0,0,0,1,0,0,1,0,0,0,0,0,0,0,0,0,0,0,{"$f":"SUM(DH5:DH70)","v":7},null,null,{"$f":"COUNTA(DK6:DK70)","v":3},{"$f":"COUNTA(DL6:DL70)","v":0},1,0,0,0,0,0,0,0,1,0,0,0,0,0,1,0,0,1,0,0,0,0,0,0,0,0,0,0,0,{"$f":"SUM(EP6:EP70)","v":7},null,null,{"$f":"COUNTA(ES6:ES70)","v":3},{"$f":"COUNTA(ET6:ET70)","v":0},1,0,0,0,0,0,0,0,1,0,0,0,0,0,1,0,0,1,0,0,0,0,0,0,0,0,0,0,0,{"$f":"SUM(FX6:FX70)","v":7},null,null,{"$f":"COUNTA(GA6:GA70)","v":3},{"$f":"COUNTA(GB6:GB70)","v":0},1,0,0,0,0,0,0,0,1,0,0,0,0,0,1,0,0,1,0,0,0,0,0,0,0,0,0,0,0,{"$f":"SUM(HF6:HF70)","v":7},null,null,{"$f":"COUNTA(HI6:HI70)","v":3},{"$f":"COUNTA(HJ6:HJ70)","v":0},1,0,0,0,0,0,0,0,1,0,0,0,0,0,1,0,0,1,0,0,0,0,0,0,0,0,0,0,0,{"$f":"SUM(IN6:IN70)","v":7},null,null,{"$f":"COUNTA(IQ6:IQ70)","v":3},{"$f":"COUNTA(IR6:IR70)","v":0},1,0,0,0,0,0,0,0,1,0,0,0,0,0,1,0,0,1,0,0,0,0,0,0,0,0,0,0,null,{"$f":"SUM(JV6:JV70)","v":7},null,null,{"$f":"COUNTA(JY6:JY70)","v":3},{"$f":"COUNTA(JZ6:JZ70)","v":0},1,0,0,0,0,0,0,0,1,0,0,0,0,0,1,0,0,1,0,0,0,0,0,0,0,0,0,0,0,{"$f":"SUM(LD6:LD70)","v":7}]
[null,{"$f":"A70-B71","v":52}]
[]
[null,"عدد الطلبة × عدد الأيام",{"$f":"B72*AH4","v":312},null,null,null,null,null,null,null,null,null,null,null,null,null,null,null,null,null,null,null,null,null,null,null,null,null,null,null,null,null,null,null,null,null,null,null,null,null,null,null,null,null,null,null,{"$f":"B72*BZ4","v":208},null,null,null,null,null,null,null,null,null,null,null,null,null,null,null,null,null,null,null,null,null,null,null,null,null,null,null,null,null,null,null,null,null,{"$f":"B72*DH4","v":104},null,null,null,null,null,null,null,null,null,null,null,null,null,null,null,null,null,null,null,null,null,null,null,null,null,null,null,null,null,null,null,null,null,{"$f":"B72*EP4","v":104},null,null,null,null,null,null,null,null,null,null,null,null,null,null,null,null,null,null,null,null,null,null,null,null,null,null,null,null,null,null,null,null,null,{"$f":"B72*FX4","v":104},null,null,null,null,null,null,null,null,null,null,null,null,null,null,null,null,null,null,null,null,null,null,null,null,null,null,null,null,null,null,null,null,null,{"$f":"B72*HF4","v":156},null,null,null,null,null,null,null,null,null,null,null,null,null,null,null,null,null,null,null,null,null,null,null,null,null,null,null,null,null,null,null,null,null,{"$f":"B72*IN4","v":104},null,null,null,null,null,null,null,null,null,null,null,null,null,null,null,null,null,null,null,null,null,null,null,null,null,null,null,null,null,null,null,null,null,{"$f":"B72*JV4","v":52},null,null,null,null,null,null,null,null,null,null,null,null,null,null,null,null,null,null,null,null,null,null,null,null,null,null,null,null,null,null,null,null,null,{"$f":"B72*LD4","v":104}]
[null,"نسبة الغياب",{"$f":"AH71/C74*100","v":0.32051282051282048},null,null,null,null,null,null,null,null,null,null,null,null,null,null,null,null,null,null,null,null,null,null,null,null,null,null,null,null,null,null,null,null,null,null,null,null,null,null,null,null,null,null,null,{"$f":"BZ71/AU74*100","v":3.3653846153846154},null,null,null,null,null,null,null,null,null,null,null,null,null,null,null,null,null,null,null,null,null,null,null,null,null,null,null,null,null,null,null,null,null,{"$f":"DH71/CC74*100","v":6.7307692307692308},null,null,null,null,null,null,null,null,null,null,null,null,null,null,null,null,null,null,null,null,null,null,null,null,null,null,null,null,null,null,null,null,null,{"$f":"EP71/DK74*100","v":6.7307692307692308},null,null,null,null,null,null,null,null,null,null,null,null,null,null,null,null,null,null,null,null,null,null,null,null,null,null,null,null,null,null,null,null,null,{"$f":"FX71/ES74*100","v":6.7307692307692308},null,null,null,null,null,null,null,null,null,null,null,null,null,null,null,null,null,null,null,null,null,null,null,null,null,null,null,null,null,null,null,null,null,{"$f":"HF71/GA74*100","v":4.4871794871794872},null,null,null,null,null,null,null,null,null,null,null,null,null,null,null,null,null,null,null,null,null,null,null,null,null,null,null,null,null,null,null,null,null,{"$f":"IN71/HI74*100","v":6.7307692307692308},null,null,null,null,null,null,null,null,null,null,null,null,null,null,null,null,null,null,null,null,null,null,null,null,null,null,null,null,null,null,null,null,null,{"$f":"JV71/IQ74*100","v":13.461538461538462},null,null,null,null,null,null,null,null,null,null,null,null,null,null,null,null,null,null,null,null,null,null,null,null,null,null,null,null,null,null,null,null,null,{"$f":"LD71/JY74*100","v":6.7307692307692308}]